Workbook

Sheet 預算表
A1: 彭 定 吉 建 築 師 事 務 所
A2: 建築工程預算書 (詳細表)
A3: 業 主: 樂迦再生科技股份有限公司 | F3: 日 期:2022-07-
A4: 工程名稱:竹北生醫園區廠房新建工程 | F4: 施工地點:新竹縣竹北
A5: 項次 | B5: 名 稱 | C5: 單位 | D5: 數 量 | E5: 單 價 | F5: 複 價 | G5: 備 註
A6: 壹 | B6: 建築工程
A7: 一 | B7: 假設工程 | C7: 式 | D7: 1
A8: 二 | B8: 基礎工程 | C8: 式 | D8: 1
A9: 三 | B9: RC結構工程 | C9: 式 | D9: 1
A10: 四 | B10: 鋼構工程 | C10: 式 | D10: 1
A11: 五 | B11: 外牆裝修工程 | C11: 式 | D11: 1
A12: 六 | B12: 室內一般裝修工程 | C12: 式 | D12: 1
A13: 七 | B13: 門窗工程(含玻璃及門窗五金) | C13: 式 | D13: 1
A14: 八 | B14: 雜項工程 | C14: 式 | D14: 1
A15: 九 | B15: 電梯設備工程(含吊掛鋼樑等安裝須求項目) | C15: 式 | D15: 1
A16: 十 | B16: 景觀及植栽工程 | C16: 式 | D16: 1
B17: 小計(一~十)
A18: 十一 | B18: 勞工安全衛生管理費 (2%) | C18: 式 | D18: 1
A19: 十二 | B19: 交通維持、道路維護費及環境保護費 (1%) | C19: 式 | D19: 1
A20: 十三 | B20: 施工品質管制作業費 (1%) | C20: 式 | D20: 1
A21: 十四 | B21: 承包商利潤、管理及保險費 (7%) | C21: 式 | D21: 1
B22: 小計 (十一~十四)
B23: 合計 (一~十四)
A24: 十五 | B24: 加值營業稅 5% | C24: 式 | D24: 1
B25: 總計 (一~十五)
B26: 註: 1. 所有材料廠牌型號品質標準依據，廠商可依相同品質認証材料送審,未經業主與建築師同意不得使用於本建築內，
B27: 標單所列項目、數量僅供參考，廠商投標前應自行按圖詳估，如發現與圖說有出入等情形
B28: ，應合併於單價內或其他相關項目內估計之。
B29: 2. 投標時需提報施工計劃。
B30: 3. 使照申請時配合施作工項"廠商應依相關圖說自行增列項目並詳估費用。
B31: 4. 廠商須依圖說及標單項目內容評估屬一次性工項或配合使照申請分階段完成之工項自行估算
B32: 該工項之合理單價填入。
B33: 5.工地使用之鋼管施工架應全面符合國家標準CNS 4750及相關勞安衛規定。
B34: 6.本工程檢、試驗含於總價內，其試驗項目及次數，以施工圖說及公共工程施工規範為主。
B35: 7.營造公司負責本案建築執照之申辦及取得，並完成正式用水用電，為本工程之一部分。
B36: 土木建築工程
A37: 一 | B37: 假設工程
A38: 1 | B38: 基地清理及整地(高程整至GL0) | C38: M2 | D38: =+一般計算!E8 -> 
A39: 2 | B39: 甲種施工安全圍籬(含防溢座,相關設施及維護費) | C39: M | D39: =+一般計算!E9 -> 
A40: 3 | B40: 施工圍籬綠美化 | C40: M2 | D40: =+一般計算!E10 -> 
A41: 4 | B41: 施工圍籬，折疊式大門，12M，(含地坪混凝土鋪設) | C41: 樘 | D41: =+一般計算!E11 -> 
A42: 5 | B42: 施工圍籬，折疊式大門，8M，(含地坪混凝土鋪設) | C42: 樘 | D42: =+一般計算!E12 -> 
A43: 6 | B43: 環境保護，沖洗設備，(臨時洗車台設備及防污設備) | C43: 處 | D43: =+一般計算!E13 -> 
A44: 7 | B44: 廠區駐地警衛保全及崗亭 | C44: 處 | D44: =+一般計算!E14 -> 
A45: 8 | B45: 工地臨時辦公室(含水電設備及傢俱) | C45: 式 | D45: =+一般計算!E15 -> 
A46: 9 | B46: 臨時廁所，含化糞池 | C46: 座 | D46: =+一般計算!E16 -> 
A47: 10 | B47: 工地臨時給排水,電，照明，監視設備及臨時水電費 | C47: 式 | D47: =+一般計算!E17 -> 
A48: 11 | B48: 施工中安全防護﹑警示措施及設備費(含各種開口),消防設施 | C48: 式 | D48: =+一般計算!E18 -> 
A49: 12 | B49: 環境保護，灑水設施，各項汙染物防制及設置費 | C49: 式 | D49: =+一般計算!E19 -> 
A50: 13 | B50: 營建工地逕流廢水污染削減計畫書 | C50: 式 | D50: =+一般計算!E20 -> 
A51: 14 | B51: 營建廢棄物及生活垃圾運棄及吊運費 | C51: 式 | D51: =+一般計算!E21 -> 
A52: 15 | B52: 施工之臨時抽排水費 | C52: 式 | D52: =+一般計算!E22 -> 
A53: 16 | B53: 工程告示牌 | C53: 面 | D53: =+一般計算!E23 -> 
A54: 17 | B54: 工程攝錄影，紀錄片後製及報表相片等費用 | C54: 式 | D54: =+一般計算!E24 -> 
A55: 18 | B55: 完工交屋前清潔費 | C55: 式 | D55: =+一般計算!E25 -> 
A56: 19 | B56: 鄰房鑑定費 | C56: 式 | D56: =+一般計算!E26 -> 
A57: 20 | B57: 工程介面整合圖說及施工圖繪製 | C57: 式 | D57: =+一般計算!E27 -> 
A58: 21 | B58: 開工，放樣勘驗，使照請領費用 | C58: 式 | D58: =+一般計算!E28 -> 
A59: 22 | B59: 各項民俗儀式 | C59: 式 | D59: =+一般計算!E29 -> 
A60: 23 | B60: 公共設施復原(施工及申請) | C60: 式 | D60: =+一般計算!E30 -> 
A61: 24 | B61: 施工電梯(本項工作由營造自行評估) | C61: 式 | D61: 1
A62: 25 | B62: 施工固定式吊車(本項工作由營造自行評估) | C62: 式 | D62: 1
A63: 26 | B63: 外部施工鷹架含安全網 含斜籬 | C63: M2 | D63: =+一般計算!E33 -> 
A64: 27 | B64: 室內高層及挑空區週邊工作架 >4.5M | C64: M2 | D64: =+一般計算!E41 -> 
A65: 28 | B65: 高空工作車及移動工作架≦4.5M | C65: 式 | D65: =+一般計算!E48 -> 
B66: 計 | D66: =+一般計算!E49 -> 0
D67: =+一般計算!E50 -> 0
A68: 二 | B68: 基礎工程 | D68: =+一般計算!E51 -> 0
A69: 二.1 | B69: 地下開挖安全措施 | D69: =+一般計算!E52 -> 0
A70: 二.1.1 | B70: 擋土型鋼 H300*300*10*15 @50 L=14M | C70: 支 | D70: =+一般計算!E53 -> 
A71: 二.1.2 | B71: 擋土型鋼 H300*300*10*15 @50 L=16M | C71: 支 | D71: =+一般計算!E54 -> 
A72: 二.1.3 | B72: H300 中間樁 L=12(含止水板及截樁3.6M) | C72: 支 | D72: =+一般計算!E55 -> 
A73: 二.1.4 | B73: H300 中間樁 L=14(含止水板及截樁3.6M) | C73: 支 | D73: =+一般計算!E56 -> 
A74: 二.1.5 | B74: 第一層H型鋼橫擋及支撐 H-350*350*12*19 含H350圍令 | C74: M2 | D74: =+一般計算!E57 -> 
A75: 二.1.6 | B75: 第二層H型鋼橫擋及支撐 H-400*400*13*21 含H400圍令 | C75: M2 | D75: =+一般計算!E58 -> 
A76: 二.1.7 | B76: 第三層H型鋼橫擋回撐 H-250*250*9*14 含H250圍令 | C76: M2 | D76: =+一般計算!E59 -> 
A77: 二.1.8 | B77: 施工輔助，施工構台 | C77: M2 | D77: =+一般計算!E60 -> 
A78: 二.1.9 | B78: 構台及四週安全欄杆,安全母索,施工便梯 | C78: M | D78: =+一般計算!E61 -> 
A79: 二.1.10 | B79: 挖土方及運棄處理費(含警衛室) | C79: M3 | D79: =+一般計算!E62 -> 
A80: 二.1.11 | B80: 廢方運棄及土方處理費(含警衛室) | C80: M3 | D80: =+一般計算!E67 -> 
A81: 二.1.12 | B81: 現地土方回填(含警衛室) | C81: M2 | D81: =+一般計算!E71 -> 
A82: 二.2 | B82: 安全監測系統
A83: 二.2.1 | B83: 傾斜儀 L=14,16 | C83: 處 | D83: =+一般計算!E74 -> 
A84: 二.2.2 | B84: 建物傾斜計 | C84: 處 | D84: =+一般計算!E75 -> 
A85: 二.2.3 | B85: 支撐應變計 (振弦式) | C85: 組 | D85: =+一般計算!E76 -> 
A86: 二.2.4 | B86: 水位觀測井 12M | C86: 處 | D86: =+一般計算!E77 -> 
A87: 二.2.5 | B87: 沉陷觀測釘 | C87: 處 | D87: =+一般計算!E78 -> 
A88: 二.2.6 | B88: 中間柱隆起桿 | C88: 處 | D88: =+一般計算!E79 -> 
B89: 計
A91: 三 | B91: RC結構工程
A92: 三.1 | B92: 施工測量，放樣 | C92: M2 | D92: =+一般計算!E82 -> 
A93: 三.2 | B93: 結構用混凝土 140kgf/cm2 | C93: M3 | D93: =+一般計算!E84 -> 
A94: 三.3 | B94: 結構用混凝土 280kgf/cm2 | C94: M3 | D94: =+一般計算!E86 -> 
A95: 三.4 | B95: 筏基內回填低強度混凝土 | C95: M3 | D95: =+一般計算!E87 -> 
A96: 三.5 | B96: 鋼筋，SD420W | C96: 噸 | D96: =+一般計算!E90 -> 
A97: 三.6 | B97: 鋼絲網10*8/100*100&10*10/100*100 | C97: T | D97: =+一般計算!E91 -> 
A98: 三.7 | B98: 普通模板 | C98: M2 | D98: =+一般計算!E92 -> 
A99: 三.8 | B99: 平頂清水模板 | C99: M2 | D99: =+一般計算!E93 -> 
A100: 三.9 | B100: DECK鋼承板 BD65*1.2 | C100: M2 | D100: =+一般計算!E94 -> 
A101: 三.10 | B101: #8 鋼筋續接器 | C101: 組 | D101: =+一般計算!E95 -> 
A102: 三.11 | B102: #10 鋼筋續接器 | C102: 組 | D102: =+一般計算!E96 -> 
A103: 三.12 | B103: #10接鋼柱 鋼筋續接器 | C103: 組 | D103: =+一般計算!E97 -> 
A104: 三.13 | B104: #6 T頭 | C104: 組 | D104: =+一般計算!E98 -> 
A105: 三.14 | B105: #8 T頭 | C105: 組 | D105: =+一般計算!E99 -> 
A106: 三.15 | B106: #10 T頭 | C106: 組 | D106: =+一般計算!E100 -> 
A107: 三.16 | B107: 接鋼柱剪力釘 19∮*200 | C107: 支 | D107: =+一般計算!E101 -> 
A108: 三.17 | B108: 複合型橡膠鋼板止水帶 | C108: M | D108: =+一般計算!E102 -> 
B109: 計
A111: 四 | B111: 鋼構工程
A112: 四.1 | B112: 鋼板焊接口型鋼 SN490YC | C112: T | D112: =+一般計算!E106 -> 
A113: 四.2 | B113: 鋼板焊接口型鋼 SN490B | C113: T | D113: =+一般計算!E107 -> 
A114: 四.3 | B114: BH及RH型鋼 SN490B | C114: T | D114: =+一般計算!E108 -> 
A115: 四.4 | B115: H型鋼 A572 | C115: T | D115: =+一般計算!E109 -> 
A116: 四.5 | B116: H型鋼 A36 | C116: T | D116: =+一般計算!E110 -> 
A117: 四.6 | B117: 鋼板 SN490B,A572 | C117: T | D117: =+一般計算!E111 -> 
A118: 四.7 | B118: 鋼板 A36 | C118: T | D118: =+一般計算!E112 -> 
A119: 四.8 | B119: 預埋螺栓 L=700 M-36A.B | C119: 支 | D119: =+一般計算!E113 -> 
A120: 四.9 | B120: 預埋螺栓 L=600 M24 A.B | C120: 支 | D120: =+一般計算!E114 -> 
A121: 四.10 | B121: S10T 扭矩控制螺栓 | C121: T | D121: =+一般計算!E115 -> 
A122: 四.11 | B122: 25∮TIE 拉桿 | C122: 支' | D122: =+一般計算!E116 -> 
A123: 四.12 | B123: 剪力釘 19∮*76 | C123: T | D123: =+一般計算!E117 -> 
A124: 四.13 | B124: 剪力釘 19∮*100 | C124: 組 | D124: =+一般計算!E118 -> 
A125: 四.14 | B125: 柱內灌漿混凝土 | C125: M3 | D125: =+一般計算!E119 -> 
A126: 四.15 | B126: 不收縮砂漿 | C126: M3 | D126: =+一般計算!E120 -> 
A127: 四.16 | B127: 結構鋼構吊裝 | C127: T | D127: =+一般計算!E121 -> 
A128: 四.17 | B128: 鋼料半成品運費及小搬運 | C128: T | D128: =+一般計算!E122 -> 
A129: 四.18 | B129: 鋼樑工廠開孔補強 | C129: 孔 | D129: =+一般計算!E123 -> 
A130: 四.19 | B130: 鋼樑小樑工廠開孔補強 | C130: 孔 | D130: =+一般計算!E124 -> 
A131: 四.20 | B131: 鋼構一小時防火時效被覆 | C131: M2 | D131: =+一般計算!E125 -> 
A132: 四.21 | B132: 鋼構二小時防火時效被覆 | C132: M2 | D132: =+一般計算!E126 -> 
A133: 四.22 | B133: 鋼柱一小時防火漆 | C133: M3 | D133: =+一般計算!E127 -> 
A134: 四.23 | B134: 鋼柱二小時防火漆 | C134: M4 | D134: =+一般計算!E128 -> 
A135: 四.24 | B135: 室內鋼樓梯 | C135: T | D135: =+一般計算!E129 -> 
A136: 四.25 | B136: 樓梯 鋼筋網 | C136: M2 | D136: =+一般計算!E130 -> 
A137: 四.26 | B137: 樓梯 面層混凝土 280kg/cm2 | C137: M3 | D137: =+一般計算!E131 -> 
A138: 四.27 | B138: 電梯內樑柱 | C138: T | D138: =+一般計算!E132 -> 
B139: 計
A141: 五 | B141: 外牆裝修工程
A142: 五.1 | B142: 外牆造型2.5t佛碳烤漆鋁包板牆 (深灰色) | C142: M2 | D142: =+一般計算!E135 -> 
A143: 五.2 | B143: 外牆4t 烤漆鋁複合板包板牆 (淺灰色) | C143: M2 | D143: =+一般計算!E165 -> 
A144: 五.3 | B144: 外牆貼45*45小口磚 淺灰色 | C144: M2 | D144: =+一般計算!E177 -> 
A145: 五.4 | B145: 警衛室窗台板貼花崗石 | C145: M2 | D145: =+一般計算!E183 -> 
A146: 五.5 | B146: 氟碳烤漆金屬格柵裝飾牆 | C146: M2 | D146: =+一般計算!E185 -> 
A147: 五.6 | B147: 氣體區氟碳烤漆金屬格柵牆 | C147: M2 | D147: =+一般計算!E186 -> 
A148: 五.7 | B148: 氣體區氟碳烤漆金屬格柵門 140*210 | C148: 樘 | D148: =+一般計算!E187 -> 
B149: 計
A151: 六 | B151: 室內一般裝修工程
A152: 六.1 | B152: 高層水泥纖維板灌漿隔間12cm | C152: M2 | D152: =+一般計算!E190 -> 
A153: 六.2 | B153: 一般樓層水泥纖維板灌漿隔間12cm | C153: M2 | D153: =+一般計算!E194 -> 
A154: 六.3 | B154: 水泥纖維板廁所外側單面封板 | C154: M2 | D154: =+一般計算!E203 -> 
A155: 六.4 | B155: 高層雙面矽酸鈣板防火隔間牆 | C155: M2 | D155: =+一般計算!E214 -> 
A156: 六.5 | B156: 一般樓層雙面矽酸鈣板防火隔間牆 | C156: M2 | D156: =+一般計算!E217 -> 
A157: 六.6 | B157: 外牆內側金屬庫板隔間牆 | C157: M2 | D157: =+一般計算!E229 -> 
A158: 六.7 | B158: 一小時防火時效金屬庫板牆(挑空區管道間) | C158: M2 | D158: =+一般計算!E239 -> 
A159: 六.8 | B159: 牆面1:3水泥粉刷 | C159: M2 | D159: =+一般計算!E250 -> 
A160: 六.9 | B160: 輕隔間牆面批土整平 | C160: M2 | D160: =+一般計算!E251 -> 
A161: 六.10 | B161: 牆面1:3水泥粉刷批土刷水泥漆 | C161: M2 | D161: =+一般計算!E252 -> 
A162: 六.11 | B162: 地下室外側牆面1:2防水泥粉刷刷水泥漆 | C162: M2 | D162: =+一般計算!E253 -> 
A163: 六.12 | B163: 牆面1:3水泥粉刷貼30*60磁磚 | C163: M2 | D163: =+一般計算!E254 -> 
A164: 六.13 | B164: 輕隔間牆面貼30*60磁磚 | C164: M2 | D164: =+一般計算!E255 -> 
A165: 六.14 | B165: 輕隔間牆面批土刷水泥漆 | C165: M2 | D165: =+一般計算!E256 -> 
A166: 六.15 | B166: 輕隔間立體架乾式吊掛石材 | C166: M2 | D166: =+一般計算!E257 -> 
A167: 六.16 | B167: RC牆面乾掛石材 | C167: M2 | D167: =+一般計算!E258 -> 
A168: 六.17 | B168: 室內牆面金屬包板 | C168: M2 | D168: =+一般計算!E259 -> 
A169: 六.18 | B169: 廁所牆面1:2水泥砂漿貼30*60磁磚 | C169: M2 | D169: =+一般計算!E260 -> 
A170: 六.19 | B170: 廁所輕隔間牆面防水膠塗佈後黏著劑貼30*60磁磚 | C170: M2 | D170: =+一般計算!E261 -> 
A171: 六.20 | B171: 牆面防水劑+防水粉刷貼20*20面磚 | C171: M2 | D171: =+一般計算!E262 -> 
A172: 六.21 | B172: 90CM台度牆面水泥粉刷警示漆 | C172: M2 | D172: =+一般計算!E263 -> 
A173: 六.22 | B173: 地下室外側90CM台度牆面1:2防水泥粉刷刷水泥漆 | C173: M2 | D173: =+一般計算!E264 -> 
A174: 六.23 | B174: 地坪乾式打底貼拋光面石材 F1 | C174: M2 | D174: =+一般計算!E265 -> 
A175: 六.24 | B175: 整體粉光+除泥地墊 | C175: M2 | D175: =+一般計算!E266 -> 
A176: 六.25 | B176: 整體粉光+貼PVC地毯 | C176: M2 | D176: =+一般計算!E267 -> 
A177: 六.26 | B177: 地坪整體粉刷後貼60*60抛光石英磚 F4 | C177: M2 | D177: =+一般計算!E268 -> 
A178: 六.27 | B178: 平面車道停車位整體粉光+3mm EPOXY+石英砂地坪 F5 | C178: M2 | D178: =+一般計算!E269 -> 
A179: 六.28 | B179: 斜車道整體粉光+5mm EPOXY+石英砂地坪 F5A | C179: M2 | D179: =+一般計算!E270 -> 
A180: 六.29 | B180: 地坪拍漿粉光+3mm EPOXY平光面 F6 | C180: M2 | D180: =+一般計算!E271 -> 
A181: 六.30 | B181: 樓梯面貼20*20面磚+止滑磚 F7 | C181: M2 | D181: =+一般計算!E272 -> 
A182: 六.31 | B182: 廁所地坪防水塗佈後貼30*30止滑石英磚 | C182: M2 | D182: =+一般計算!E273 -> 
A183: 六.32 | B183: 陽台地坪防水膠貼10*10窯燒花崗石 | C183: M2 | D183: =+一般計算!E274 -> 
A184: 六.33 | B184: 無毒防水劑+1:2防水粉刷貼20*20地磚 F10 | C184: M2 | D184: =+一般計算!E275 -> 
A185: 六.34 | B185: 地坪高平整整體粉光 F11 | C185: M2 | D185: =+一般計算!E276 -> 
A186: 六.35 | B186: 平頂未施作材料 | C186: M2 | D186: =+一般計算!E277 -> 
A187: 六.36 | B187: 平頂清水模面噴水泥漆 C1 | C187: M2 | D187: =+一般計算!E278 -> 
A188: 六.37 | B188: 平頂樑底樑側清水模面噴水泥漆 C1A | C188: M2 | D188: =+一般計算!E279 -> 
A189: 六.38 | B189: 平頂水泥粉刷水泥漆(含樑底樑側) C2 | C189: M2 | D189: =+一般計算!E280 -> 
A190: 六.39 | B190: 平頂60*60明架矽酸鈣板天花 C3 | C190: M2 | D190: =+一般計算!E281 -> 
A191: 六.40 | B191: 平頂60*60明架礦纖天花 C4 | C191: M2 | D191: =+一般計算!E282 -> 
A192: 六.41 | B192: 平頂暗架矽酸鈣板天花含燈槽,窗簾盒等收邊 C5 | C192: M2 | D192: =+一般計算!E283 -> 
A193: 六.42 | B193: 風除室平頂矽酸鈣板天花含上方吊掛骨料 | C193: M2 | D193: =+一般計算!E284 -> 
A194: 六.43 | B194: 鋼承板面噴漆 | C194: M2 | D194: =+一般計算!E285 -> 
A195: 六.44 | B195: 鋼樓梯背板噴漆(含側板) C14 | C195: M2 | D195: =+一般計算!E286 -> 
A196: 六.45 | B196: 樓板面批土整平 C10 | C196: M2 | D196: =+一般計算!E287 -> 
A197: 六.46 | B197: 樓電梯位置磚 | C197: M2 | D197: =+一般計算!E288 -> 
A198: 六.47 | B198: 筏基內廢水池地坪牆面防水粉刷 | C198: M2 | D198: =+一般計算!E290 ->  | H198: 原單位 處
A199: 六.48 | B199: 筏基空調及製程水池地坪牆面防水粉刷 | C199: M2 | D199: =+一般計算!E293 -> 
A200: 六.49 | B200: 消防水池內阼水粉刷 | C200: M2 | D200: =+一般計算!E296 -> 
A201: 六.50 | B201: 筏基內雨水儲水槽地坪牆面防水粉刷 | C201: M2 | D201: =+一般計算!E298 -> 
A202: 六.51 | B202: 筏基內雨水貯集滯洪池地坪牆面防水粉刷 | C202: M2 | D202: =+一般計算!E301 -> 
A203: 六.52 | B203: 筏基電梯坑地坪牆面防水粉刷 | C203: M2 | D203: =+一般計算!E304 -> 
A204: 六.53 | B204: 屋面及露台防水隔熱層 | C204: M2 | D204: =+一般計算!E308 -> 
... 135 more rows

Sheet 單價分析
A1: 彭 定 吉 建 築 師 事 務 所
A2: 單 價 分 析 表
A3: 業 主: 樂迦再生科技股份有限公司 | F3: 日 期:2022-07-18
A4: 工程名稱:竹北生醫園區廠房新建工程 | F4: 施工地點:竹北生醫園區
A5: 項次 | B5: 名 稱 | C5: 單位 | D5: 數 量 | E5: 單 價 | F5: 複 價 | G5: 備 註
H105: =(2.05*6.7*2.24+1.05*16*0.994)*1.05 -> 49.83888
H120: =(3.2*6.7*2.24+1.05*18*0.994)*1.05 -> 70.15281
H135: =(3.5*6.7*2.24+1.05*20*0.994)*1.05 -> 77.0721
H151: =(3.35*12*2.24+4.6*9*0.994)*1.05 -> 137.75958
H164: =(3.75*12*2.24+4.6*10*0.994)*1.05 -> 153.8502
H199: #5 | J199: =(20.6+1.56*2+0.25)*54*2+(10.6+1.56+0.25)*103*2 -> 5145.22 | K199: =+J199*1.56*1.05 -> 8427.87036
H200: #4 | J200: =(3.6*12)*15+2.1*2*18*22 -> 2311.2 | K200: =+J200*0.994*1.05 -> 2412.19944
H201: #4 | J201: =(20.6+1.05*2+0.4)*54*2+(10.6+1.25*2+0.4)*103*2+3.7*23*2*4+3.7*23*2*8+(20.6+1.25*2+0.4)*12*4+(10.6+1.25+0.4)*12*4 -> 9034.2 | K201: =+J201*0.994*1.04 -> 9339.194592
K202: 0
H203: #8 | J203: =4.1*8*15 -> 492 | K203: =+J203*3.98*1.08 -> 2114.8128
H204: #7 | J204: =(10.6+0.7+1.9)*8*5+(20.6+0.7+1.9*2)*8*3 -> 1130.4 | K204: =+J204*3.05*1.07 -> 3689.0604
K205: =SUM(K199:K204) -> 25983.13759
J221: #4 | K221: =1.05*26*2+1.05*37*2+1.05*5 -> 137.55 | L221: =+K221*0.994*1.04 -> 142.193688
J222: #5 | K222: =(4.8+0.5)*5+(4.7+0.5)*5+(7.15+0.5)*5+1.5*5 -> 98.25 | L222: =+K222*1.56*1.05 -> 160.9335
J223: #8 | K223: =(4.8+0.8)*5 -> 28 | L223: =+K223*3.98*1.08 -> 120.3552
L224: =SUM(L221:L223) -> 423.482388
J233: #4 | K233: =1.05*16*2+4.3*5+1.05*19*2+1.05*5 -> 100.25 | L233: =+K233*0.994*1.05 -> 104.630925
J234: #5 | K234: =(2.8+0.5)*3.4*2+3.1*3.4+1.5*5 -> 40.48 | L234: =+K234*1.56*1.05 -> 66.30624
J235: #6 | K235: =4.6*3.4 -> 15.64 | L235: =+K235*2.25*1.06 -> 37.3014
L236: =SUM(L233:L235) -> 208.238565
J244: =(2.85*134*0.994*1.04+(20+2.52)*24*6.41*1.1)+2.85*5*0.994*1.1 -> 4221.298374
J245: =0.8*0.8*0.7854*20*1.1 -> 11.058432
J246: =0.8*0.8*0.7854*20 -> 10.05312
J254: =(3.48*196+3.48*12)*0.994*1.04+(23.4+2.52*2)*28*6.41*1.1 -> 6363.129158
J255: =1*1*0.7854*23.4*1.08 -> 19.8486288
J256: =1*1*0.7854*23.4 -> 18.37836
J263: =1.2*0.8 -> 0.96
J264: =4*5*0.56*1.05+1.1*10*2.25*1.06 -> 37.995
J270: =1.2*1 -> 1.2
J271: =4.4*5*0.56*1.05+1.1*10*2.25*1.06 -> 39.171
J375: =9*16*3.98*1.08+3*75*0.994*1.04+1.6*8*0.994*1.04 -> 864.797728
J376: =0.8*0.8*0.7854*9*1.08 -> 4.88581632
J377: =0.8*0.8*0.7854*9 -> 4.523904
I384: =4.45*2.45+4.45*2.23*0.5+2.45*0.8+2.45*1.23*0.5 -> 19.331
J389: #4 | K389: =(2.75*4.1*2+1.05*22+4.85*8.2+1.05*22)*0.994*1.04 -> 112.1836352
J403: #4 | K403: =2.2*5+1.05*18+5.5*10+1.05*14*2 -> 114.3 | L403: =+K403*0.994*1.04 -> 118.158768
J404: #5 | K404: =5*5.2*2+1.2*5.5+3*5.5+5.2*5.2 -> 102.14 | L404: =+K404*1.56*1.05 -> 167.30532
L406: =+L403+L404 -> 285.464088
I418: =3.2*4.1*2+1.05*8*2 -> 43.04 | J418: =+I418*0.994*1.04 -> 44.4930304
I622: =80.92*49.9+5.97*20.9 -> 4162.681 | J622: =105.73*2500 -> 264325 | K622: =+I622+J622 -> 268487.681
I623: =6.65*4.07*4+8.6*6.65*2+0.4*4.2*4+0.46*8.6*2 -> 237.274
I624: =7.78*3.75*2 -> 58.35
I625: =7.8*3.75*2*10.89 -> 637.065
I633: =6.65*4.07*2+8.6*2 -> 71.331
I642: =(29.672+1.741)*9.15 -> 287.42895
I643: =31.413*(0.23+2.41+2.06+0.6)+4.68*1.741 -> 174.63678
I645: =(0.9*3+0.97+1.01)*29.67-1.8*0.9 -> 137.2356 | J645: =+I645*10.89 -> 1494.495684
I646: =0.97*29.672+174.6 -> 203.38184
I647: =9.12+9.1+8.6 -> 26.82
I654: =30.1*8.24-4.212*8.6 -> 211.8008
I656: =2.68*30.1+1.15*(10.76+10.74) -> 105.393
I658: =(10.74+10.76)*4.64+1.59*8.6 -> 113.434 | J658: =+I658*10.89 -> 1235.29626
I659: =(10.74+10.76)*0.97+105.39 -> 126.245
I660: =10.74+10.76 -> 21.5
I666: =(37.08+28.03)*9.15 -> 595.7565
I668: =(0.905+0.4+0.29+1.27+0.605)*(37.08+28.03)+(0.905+0.6)*57.1 -> 311.8672
I670: =(0.9*3+0.97+1.01)*(37.078+28.03)*10.89 -> 3318.242242
I671: =(1.27+0.29+0.97+0.905)*(37.078+28.03)+(0.905+0.6)*57.1 -> 309.58148
I672: =37.08+28.03+57.1-5.2 -> 117.01
I679: =(13.05+11.75+3.22)*6.7 -> 187.734
I681: =(13.05+11.75+3.22)*(0.4+0.29+1.27+0.1+0.605) -> 74.6733
I683: =(13.05+11.75+3.22)*4.64-1.91*4.35 -> 121.7043 | J683: =+I683*10.89 -> 1325.359827
I684: =(13.05+11.75+3.22)*(0.4+0.29+1.27+0.1+0.605+0.97) -> 101.8527
I685: =11.775+3.22 -> 14.995
I686: =1.8*1.91 -> 3.438
I694: =24.2*36.05 -> 872.41
I695: =(1.54+0.23+0.073)*24.2 -> 44.6006
I697: =34.45*24.2 -> 833.69 | J697: =+I697*10.89 -> 9078.8841
I698: =(0.7+1.07*3+1.55*5)*24.2 -> 282.172
I699: =24.2*6 -> 145.2
I700: =24.2*5 -> 121
I701: =(4.5*2+6.7*2+5+6.2)*4 -> 134.4
I702: =6.81+8.61+10.41+12.21+14.01+15.81+17.61+19.41+21.21 -> 126.09
I708: =57.18*35.55+0.5*17.69 -> 2041.594
I710: =(1.54+0.23+0.073)*57.18+0.46*39.49 -> 123.54814
I712: =33.55*39.49+34.51*17.69 -> 1935.3714 | J712: =+I712*10.89 -> 21076.19455
I714: =(0.7+1.07*3+1.55*5)*57.18+0.46*39.49 -> 684.8842
I715: =57.18*6 -> 343.08
I716: =57.18*5+39.49 -> 325.39
I717: =(4.5*2+6.7*2+5+6.2)*10 -> 336
I718: =12.49+16.09+19.69+23.29+26.89+30.49+34.09+37.69+41.29 -> 242.01
I725: =8.225*35.55+1.135*1.85 -> 294.4985
I726: =(1.54+0.23+0.073+0.46)*8.225+1.135*1.85 -> 21.041925
I728: =8.225*33.61-1.8*1.89-1.8*2.433-1.8*2.14-1.8*2.1-1.8*2.14-1.8*2.69 -> 252.33485 | J728: =+I728*10.89 -> 2747.926517
I729: =(0.7+1.07*3+1.55*5)*8.225 -> 95.9035
I730: =6.53*6 -> 39.18
I731: =-1.8*1.89-1.8*2.433-1.8*2.14-1.8*2.1-1.8*2.14-1.8*2.69 -> -24.1074
I732: =(4.5*2+6.7*2+5+6.2)*4 -> 134.4
I733: =8.225*5 -> 41.125
I734: =(4.5*2+6.7*2+5+6.2)*2 -> 67.2
I735: =9.225*9 -> 83.025
I742: =11.775*37.4 -> 440.385
I743: =(1.54+0.23+0.073+2.41)*11.775 -> 50.079075
I745: =34.01*11.775 -> 400.46775 | J745: =+I745*10.89 -> 4361.093797
I747: =(0.7+1.07*3+1.55*5)*11.775 -> 137.2965
I748: =11.775*5 -> 58.875
I749: =(4.5*2+6.7*2+5+6.2)*2 -> 67.2
I750: =11.775*9 -> 105.975
I757: =8.075*37.4 -> 302.005
I758: =(1.54+0.23+0.073+1.05)*8.075+1.005*1.09 -> 24.456425
I760: =34.81*8.075-3.915*(1.59+2.13+1.835+1.795+1.835+1.959) -> 237.46199 | J760: =+I760*10.89 -> 2585.961071
I761: =(0.7+1.07*3+1.55*5)*1.09+(0.9+1.093+1.05*5+1.1*2)*6.875 -> 77.630025
I762: =8.075*5 -> 40.375
I763: =(4.5*2+6.7*2+5+6.2)*1 -> 33.6
I764: =8.075*9 -> 72.675
I771: H-350*350*12*19 | J771: =5.15*12 -> 61.8 | K771: 135 | L771: =+J771*K771*1.1 -> 9177.3 | N771: 鋁板 | O771: =4*(19.375+20.884)*2+0.5*(4+19.375+20.84)*2+0.67*5*2+1.6*2*5.15*12+5.05*(48.975+26.609)*2+0.67*(48.975+26.609)+0.3*(48.975+26.609) -> 1407.46188
I772: H-294*200*8*12 | J772: =4.5*12 -> 54 | K772: 55.8 | L772: =+J772*K772*1.1 -> 3314.52 | O772: =+O771*1.1 -> 1548.208068
I773: H-194*150*6*9 | J773: =(48.9+26.6)*2 -> 151 | K773: 29.9 | L773: =+J773*K773*1.1 -> 4966.39
I774: H-150*150*7*10 | J774: =(19.375+20.884)*4+0.5*4*2 -> 165.036 | K774: 31.1 | L774: =+J774*K774*1.1 -> 5645.88156
I775: C75*45*2.3 | J775: =(48.98+26.66)*10+21.75*12+4*16*2+0.67*6*12+(19.375+20.887)*2*5 -> 1596.26 | K775: 3.52 | L775: =+J775*K775*1.1 -> 6180.71872
I776: C-60*30*1.6 | J776: =(0.9+0.5)*2*5*12+4*4*2 -> 200 | K776: 1.63 | L776: =+J776*K776*2.5 -> 815
I777: =4*(19.375+20.884)+5.05*(48.975+26.605) -> 542.715 | L777: =+L775+L776 -> 6995.71872
I782: H-194*150*6*9 | J782: =0.55 -> 0.55 | K782: 29.9 | L782: =+J782*K782*1.1 -> 18.0895
I783: 口-100*100*3.2 | J783: 1.1 | K783: 9.52 | L783: =+J783*K783*1.1 -> 11.5192
I784: C75*45*2.3 | J784: 4.4 | K784: 3.52 | L784: 17.0368
I785: L-50*50*5 | J785: 4.4 | K785: 4.43 | L785: 21.4412
I786: C-60*30*1.6 | J786: 14 | K786: 1.63 | L786: 25.102
L787: =SUM(L783:L786) -> 75.0992
I791: H-194*150*6*9 | J791: 0.36 | K791: 29.9 | L791: =+J791*K791*1.1 -> 11.8404
I792: 口-100*100*3.2 | J792: 1.1 | K792: 9.52 | L792: =+J792*K792*1.1 -> 11.5192
I793: C75*45*2.3 | J793: 4.4 | K793: 3.52 | L793: 17.0368
I794: L-50*50*5 | J794: 4.4 | K794: 4.43 | L794: 21.4412
I795: C-60*30*1.6 | J795: 11 | K795: 1.63 | L795: 19.723
L796: =SUM(L792:L795) -> 69.7202
I810: =(6*3+2.2*71.8+(12+7.6+10.8)*20.9)*1.15 -> 933.018
I811: =(0.94*3+2.45*2)*(7.64+10.8)*3.3*1.05+(0.41*4*4+4.9*4)*4+(0.41*4+2+2*4)*3.3*1.05 -> 638.238912
I812: =6.79*(7.64+10.8)+1.64*(4.9*4+0.9)+1.34*2.86 -> 162.66
I814: =(9.03+7.24)/2*4.9+1*0.9 -> 40.7615

Sheet 一般計算
B2: 工 程 數 量 計 算
B3: 業 主: 樂迦再生科技股份有限公司 | D3: 日 期:2022-0
B4: 工程名稱:竹北生醫園區廠房新建工程 | D4: 施工地點:
B5: 項 目 | C5: 數 量 計 算 | D5: 數量合計 | F5: 單位
B6: 土木建築工程
A7: 一 | B7: 假設工程
A8: 1 | B8: 基地清理及整地(高程整至GL0) | C8: 4456.81 | D8: =一般計算 ->  | E8: =ROUND(SUM(D8),0) ->  | F8: M2
A9: 2 | B9: 甲種施工安全圍籬(含防溢座,相關設施及維護費) | C9: 68.27+58+69.4+72.5-12-8 | D9: =一般計算 ->  | E9: =ROUND(SUM(D9),0) ->  | F9: M
A10: 3 | B10: 施工圍籬綠美化 | C10: 69.4-12-8 | D10: =一般計算 ->  | E10: =ROUND(SUM(D10),0) ->  | F10: M2
A11: 4 | B11: 施工圍籬，折疊式大門，12M，(含地坪混凝土鋪設) | C11: 1 | D11: =一般計算 ->  | E11: =ROUND(SUM(D11),0) ->  | F11: 樘
A12: 5 | B12: 施工圍籬，折疊式大門，8M，(含地坪混凝土鋪設) | C12: 1 | D12: =一般計算 ->  | F12: 樘
A13: 6 | B13: 環境保護，沖洗設備，(臨時洗車台設備及防污設備) | C13: 2 | D13: =一般計算 ->  | F13: 處
A14: 7 | B14: 廠區駐地警衛保全及崗亭 | C14: 2 | D14: =一般計算 ->  | F14: 處
A15: 8 | B15: 工地臨時辦公室(含水電設備及傢俱) | C15: 1 | D15: =一般計算 ->  | F15: 式
A16: 9 | B16: 臨時廁所，含化糞池 | C16: 4 | D16: =一般計算 ->  | F16: 座
A17: 10 | B17: 工地臨時給排水,電，照明，監視設備及臨時水電費 | C17: 1 | D17: =一般計算 ->  | F17: 式
A18: 11 | B18: 施工中安全防護﹑警示措施及設備費(含各種開口),消防設施 | C18: 1 | D18: =一般計算 ->  | F18: 式
A19: 12 | B19: 環境保護，灑水設施，各項汙染物防制及設置費 | C19: 1 | D19: =一般計算 ->  | F19: 式
A20: 13 | B20: 營建工地逕流廢水污染削減計畫書 | C20: 1 | D20: =一般計算 ->  | F20: 式
A21: 14 | B21: 營建廢棄物及生活垃圾運棄及吊運費 | C21: 1 | D21: =一般計算 ->  | F21: 式
A22: 15 | B22: 施工之臨時抽排水費 | C22: 1 | D22: =一般計算 ->  | F22: 式
A23: 16 | B23: 工程告示牌 | C23: 2 | D23: =一般計算 ->  | F23: 面
A24: 17 | B24: 工程攝錄影，紀錄片後製及報表相片等費用 | C24: 1 | D24: =一般計算 ->  | F24: 式
A25: 18 | B25: 完工交屋前清潔費 | C25: 1 | D25: =一般計算 ->  | F25: 式
A26: 19 | B26: 鄰房鑑定費 | C26: 1 | D26: =一般計算 ->  | F26: 式
A27: 20 | B27: 工程介面整合圖說及施工圖繪製 | C27: 1 | D27: =一般計算 ->  | F27: 式
A28: 21 | B28: 開工，放樣勘驗，使照請領費用 | C28: 1 | D28: =一般計算 ->  | F28: 式
A29: 22 | B29: 各項民俗儀式 | C29: 1 | D29: =一般計算 ->  | E29: =ROUND(SUM(D29),0) ->  | F29: 式
A30: 23 | B30: 公共設施復原(施工及申請) | C30: 1 | D30: =一般計算 ->  | F30: 式
A31: 24 | B31: 施工電梯
A32: 25 | B32: 施工固定式吊車
A33: 26 | B33: 外部施工鷹架含安全網 含斜籬 | E33: =ROUND(SUM(D34:D40),0) ->  | F33: M2
B34: 西北向 A梯 | C34: (54.05+1.2)*1.9+(57.05+1.2)*(13.3+5.8) | D34: =一般計算 -> 
B35: 西北向 外牆 | C35: (55.25+1.2)*10.3+(58.55+1.2)*(5+30.6)+(55.05+1.2)*7.65 | D35: =一般計算 -> 
B36: 東北向 | C36: (55.05+1.2)*1.2+(59.75+1.2)*11.93+(57.05+1.2)*(1.9+31+3.63) | D36: =一般計算 -> 
B37: 東南向 | C37: (59.75+1.2)*11.33+(55.05+1.2)*54 | D37: =一般計算 -> 
B38: 西南向 | C38: (58.55+1.2)*13.63+(57.05+1.2)*2.65+(55.05+1.2)*33.9 | D38: =一般計算 -> 
B39: 屋頂內側 | C39: (5.5+1.2)*(43.2+27+6)+(9+1.2)*5.9+6.1+21+5.1*1+(5.7+1.2)*10.8 | D39: =一般計算 -> 
C40: (4.5+1.2)*(13.3+8.6)+(3+1.2)*(9.33+17.4)+(7.5+1.2)*12.6+(9+1.2)*(9.3+9.9) | D40: =一般計算 -> 
A41: 27 | B41: 室內高層及挑空區週邊工作架 >4.5M | E41: =ROUND(SUM(D42:D47),0) ->  | F41: M2
B42: 1,2F | C42: 5.5*((27+38)*2+(36+10.8)*2+(12.4+18)*2+(3.7+10)*2) | D42: =一般計算 -> 
C43: 6.1*((44.07+37.88)*2+(13.11+9.83)+(37.88*2+3.75*2)+(17+6.3)*2) | D43: =一般計算 -> 
B44: 3~4F | C44: 8.5*(43.2+27)*2 | D44: =一般計算 -> 
B45: 5~6F | C45: 8.5*(43.2+27)*2 | D45: =一般計算 -> 
B46: 7~8F | C46: 8.5*(43.2+27)*2 | D46: =一般計算 -> 
B47: 9~10F | C47: 8.5*(43.2+27)*2 | D47: =一般計算 -> 
A48: 28 | B48: 高空工作車及移動工作架≦4.5M | C48: 1 | D48: =一般計算 ->  | E48: =+D48 ->  | F48: 式
B49: 計
A51: 二 | B51: 基礎工程
A52: 二.1 | B52: 地下開挖安全措施
A53: 二.1.1 | B53: 擋土型鋼 H300*300*10*15 @50 L=14M | C53: 111+57+57 | D53: =一般計算 ->  | E53: =ROUND(SUM(D53),0) ->  | F53: 支
A54: 二.1.2 | B54: 擋土型鋼 H300*300*10*15 @50 L=16M | C54: 111+47+47 | D54: =一般計算 ->  | E54: =ROUND(SUM(D54),0) ->  | F54: 支
A55: 二.1.3 | B55: H300 中間樁 L=12(含止水板及截樁3.6M) | C55: 9*4 | D55: =一般計算 ->  | E55: =ROUND(SUM(D55),0) ->  | F55: 支
A56: 二.1.4 | B56: H300 中間樁 L=14(含止水板及截樁3.6M) | C56: 9*4 | D56: =一般計算 ->  | E56: =ROUND(SUM(D56),0) ->  | F56: 支
A57: 二.1.5 | B57: 第一層H型鋼橫擋及支撐 H-350*350*12*19 含H350圍令 | C57: 55.4*52.4 | D57: =一般計算 ->  | F57: M2
A58: 二.1.6 | B58: 第二層H型鋼橫擋及支撐 H-400*400*13*21 含H400圍令 | C58: 55.4*52.4 | D58: =一般計算 ->  | F58: M2
A59: 二.1.7 | B59: 第三層H型鋼橫擋回撐 H-250*250*9*14 含H250圍令 | C59: 16.15*4.3+7.75*4.3+55.4*18.6 | D59: =一般計算 ->  | F59: M2
A60: 二.1.8 | B60: 施工輔助，施工構台 | C60: 20*52.4+10*35.4 | D60: =一般計算 ->  | F60: M2
A61: 二.1.9 | B61: 構台及四週安全欄杆,安全母索,施工便梯 | C61: (56.4+53.4)*2+(55.4*2+52.4*2) | D61: =一般計算 ->  | F61: M
A62: 二.1.10 | B62: 挖土方及運棄處理費(含警衛室) | E62: =ROUND(SUM(D63:D66),0) ->  | F62: M3 | G62: =8.4+10.8*4+1 -> 52.6 | H62: =9*4+7.8+4.9+0.5+0.4 -> 49.6
C63: (54.7*52.3-2.13*11.65*0.5)*9.4+(18.75*44.55-2.13*11.65*0.5+10.75*13.95)*1.75 | D63: =一般計算 -> 
C64: 0.15*3.5*5.8+0.15*0.15*0.5*(3.5+5.8)*2 | D64: =一般計算 -> 
C65: 2.3*2.3*0.5*(44.55+4.8+10.75) | D65: =一般計算 -> 
C66: 0.6*4.5*4+0.6*0.6*(4.5+5.2)*2+0.6*0.6*(4.5+5.2)*2*0.5 | D66: =一般計算 -> 
A67: 二.1.11 | B67: 廢方運棄及土方處理費(含警衛室) | E67: =ROUND(SUM(D68:D70),0) ->  | F67: M3
C68: 9.4*(52.6*49.6-2.13*11.65*0.5)+1.75*(43.2*17.4-2.13*11.65*0.5+9.4*12.6) | D68: =一般計算 -> 
C69: 0.15*(3.5*5.8)+2.3*2.3*0.5*(44.55+4.8+10.75) | D69: =一般計算 -> 
C70: 0.6*4.5*4 | D70: =一般計算 -> 
A71: 二.1.12 | B71: 現地土方回填(含警衛室) | E71: =ROUND(SUM(D72),0) ->  | F71: M2
C72: =E62-E67 ->  | D72: =一般計算 -> 
A73: 二.2 | B73: 安全監測系統
A74: 二.2.1 | B74: 傾斜儀 L=14,16 | C74: 4+4 | D74: =一般計算 ->  | E74: =ROUND(SUM(D74),0) ->  | F74: 處
A75: 二.2.2 | B75: 建物傾斜計 | C75: 6 | D75: =一般計算 ->  | F75: 處
A76: 二.2.3 | B76: 支撐應變計 (振弦式) | C76: 2 | D76: =一般計算 ->  | F76: 組
A77: 二.2.4 | B77: 水位觀測井 12M | C77: 2 | D77: =一般計算 ->  | F77: 處
A78: 二.2.5 | B78: 沉陷觀測釘 | C78: 40 | D78: =一般計算 ->  | F78: 處
A79: 二.2.6 | B79: 中間柱隆起桿 | C79: 72 | D79: =一般計算 ->  | F79: 處
A81: 三 | B81: RC結構工程
A82: 三.1 | B82: 施工測量，放樣 | E82: =ROUND(SUM(D83),0) ->  | F82: M2
C83: 2555.83+2289.98+1997.08+1958.56+1955.11+797.14+2008.03+797.14+2008.03+797.14+2008.03+656.89+255.27+92.65 | D83: =一般計算 -> 
A84: 三.2 | B84: 結構用混凝土 140kgf/cm2 | E84: =ROUND(SUM(D85),0) ->  | F84: M3
C85: 0.1*(52.8*49.8-2.13*11.65*0.5)+0.1*(4.1*4.6) | D85: =一般計算 ->  | E85: =ROUND(SUM(D85),0) -> 
A86: 三.3 | B86: 結構用混凝土 280kgf/cm2 | C86: =+結構計算!D854 ->  | D86: =一般計算 ->  | F86: M3
A87: 三.4 | B87: 筏基內回填低強度混凝土 | E87: =ROUND(SUM(D88:D89),0) ->  | F87: M3
C88: 1.5*(3.8+3.1+3.1+4.2)*(9.8*3+10.2)-1.5*11.6*2.1*0.5+1.5*3.6*(9.8*3+10.2) | D88: =一般計算 ->  | G88: =5.3+2.28+6.8+5.8+3.1+5.8+5.6*6+4.85+5.9+6+3.8+4.3 -> 87.53
C89: 1.5*(2.7+3.5+4.2)*7.8 | D89: =一般計算 -> 
A90: 三.5 | B90: 鋼筋，SD420W | C90: =+結構計算!L873 ->  | D90: =一般計算 ->  | F90: 噸
A91: 三.6 | B91: 鋼絲網10*8/100*100&10*10/100*100 | C91: =+結構計算!L875 ->  | D91: =一般計算 ->  | F91: T
A92: 三.7 | B92: 普通模板 | C92: =+結構計算!G854 ->  | D92: =一般計算 ->  | F92: M2
A93: 三.8 | B93: 平頂清水模板 | C93: =+結構計算!G855 ->  | D93: =一般計算 ->  | F93: M2
A94: 三.9 | B94: DECK鋼承板 BD65*1.2 | C94: =+結構計算!G856 ->  | D94: =一般計算 ->  | F94: M2
A95: 三.10 | B95: #8 鋼筋續接器 | C95: =+結構計算!C877 ->  | D95: =一般計算 ->  | E95: =ROUND(SUM(D95),0) ->  | F95: 組
A96: 三.11 | B96: #10 鋼筋續接器 | C96: =+結構計算!C878 ->  | D96: =一般計算 ->  | F96: 組
A97: 三.12 | B97: #10接鋼柱 鋼筋續接器 | C97: =+結構計算!C879 ->  | D97: =一般計算 ->  | F97: 組
A98: 三.13 | B98: #6 T頭 | C98: =+結構計算!C880 ->  | D98: =一般計算 ->  | E98: =ROUND(SUM(D98),0) ->  | F98: 組
A99: 三.14 | B99: #8 T頭 | C99: =+結構計算!C881 ->  | D99: =一般計算 ->  | F99: 組
A100: 三.15 | B100: #10 T頭 | C100: =+結構計算!C882 ->  | D100: =一般計算 ->  | F100: 組
A101: 三.16 | B101: 接鋼柱剪力釘 19∮*200 | C101: =+結構計算!C883 ->  | D101: =一般計算 ->  | E101: =ROUND(SUM(D101),0) ->  | F101: 支
A102: 三.17 | B102: 複合型橡膠鋼板止水帶 | E102: =ROUND(SUM(D103),0) ->  | F102: M
B103: 筏基 | C103: (52.6+49.6)*4 | D103: =一般計算 ->  | F103: M
A105: 四 | B105: 鋼構工程
A106: 四.1 | B106: 鋼板焊接口型鋼 SN490YC | C106: =+鋼構!F1021 ->  | D106: =一般計算 ->  | E106: =+D106 ->  | F106: T
A107: 四.2 | B107: 鋼板焊接口型鋼 SN490B | C107: =+鋼構!F1022 ->  | D107: =一般計算 ->  | E107: =+D107 ->  | F107: T
A108: 四.3 | B108: BH及RH型鋼 SN490B | C108: =+鋼構!F1023+鋼構!F1024 ->  | D108: =一般計算 ->  | E108: =+D108 ->  | F108: T
A109: 四.4 | B109: H型鋼 A572 | C109: =+鋼構!F1025 ->  | D109: =一般計算 ->  | E109: =+D109 ->  | F109: T
A110: 四.5 | B110: H型鋼 A36 | C110: =+鋼構!F1026 ->  | D110: =一般計算 ->  | E110: =+D110 ->  | F110: T
A111: 四.6 | B111: 鋼板 SN490B,A572 | C111: =+鋼構!F1027 ->  | D111: =一般計算 ->  | E111: =+D111 ->  | F111: T
A112: 四.7 | B112: 鋼板 A36 | C112: =+鋼構!F1028 ->  | D112: =一般計算 ->  | E112: =+D112 ->  | F112: T
A113: 四.8 | B113: 預埋螺栓 L=700 M-36A.B | C113: =+鋼構!F1030 ->  | D113: =一般計算 ->  | E113: =+D113 ->  | F113: 支
A114: 四.9 | B114: 預埋螺栓 L=600 M24 A.B | C114: =+鋼構!F1031 ->  | D114: =一般計算 ->  | E114: =+D114 ->  | F114: 支
A115: 四.10 | B115: S10T 扭矩控制螺栓 | C115: =+鋼構!J1037/1000 ->  | D115: =一般計算 ->  | E115: =+D115 ->  | F115: T
A116: 四.11 | B116: 25∮TIE 拉桿 | C116: =+鋼構!F1038 ->  | D116: =一般計算 ->  | E116: =+D116 ->  | F116: 支'
A117: 四.12 | B117: 剪力釘 19∮*76 | C117: =+鋼構!F1036 ->  | D117: =一般計算 ->  | E117: =+D117 ->  | F117: T
A118: 四.13 | B118: 剪力釘 19∮*100 | C118: =+鋼構!F1037 ->  | D118: =一般計算 ->  | E118: =+D118 ->  | F118: 組
A119: 四.14 | B119: 柱內灌漿混凝土 | C119: =+鋼構!F1039 ->  | D119: =一般計算 ->  | E119: =ROUND(SUM(D119),0) ->  | F119: M3
A120: 四.15 | B120: 不收縮砂漿 | C120: =+鋼構!H1040 ->  | D120: =一般計算 ->  | E120: =+D120 ->  | F120: M3
A121: 四.16 | B121: 結構鋼構吊裝 | C121: =SUM(E106:E112) ->  | D121: =一般計算 ->  | E121: =ROUND(SUM(D121),0) ->  | F121: T
A122: 四.17 | B122: 鋼料半成品運費及小搬運 | C122: =+C121 ->  | D122: =一般計算 ->  | E122: =+D122 ->  | F122: T
A123: 四.18 | B123: 鋼樑工廠開孔補強 | C123: 29*6+13*4 | D123: =一般計算 ->  | F123: 孔
A124: 四.19 | B124: 鋼樑小樑工廠開孔補強 | C124: 50*6+14*4 | D124: =一般計算 ->  | F124: 孔
A125: 四.20 | B125: 鋼構一小時防火時效被覆 | C125: =+鋼構!K1018-D127 ->  | D125: =一般計算 ->  | E125: =ROUND(SUM(D125),0) ->  | F125: M2
A126: 四.21 | B126: 鋼構二小時防火時效被覆 | C126: =+鋼構!K596-D128 ->  | D126: =一般計算 ->  | F126: M2
A127: 四.22 | B127: 鋼柱一小時防火漆 | C127: 2.8*4.5*4*29 | D127: =一般計算 ->  | E127: =ROUND(SUM(D127),0) ->  | F127: M3
A128: 四.23 | B128: 鋼柱二小時防火漆 | C128: 2.8*(5+6.6+4.5*4)*29 | D128: =一般計算 ->  | F128: M4
A129: 四.24 | B129: 室內鋼樓梯 | C129: =+鋼構!F1086+鋼構!F1087 ->  | D129: =一般計算 ->  | E129: =ROUND(SUM(D129),0) ->  | F129: T
A130: 四.25 | B130: 樓梯 鋼筋網 | C130: =+鋼構!F1090 ->  | D130: =一般計算 ->  | E130: =ROUND(SUM(D130),0) ->  | F130: M2
A131: 四.26 | B131: 樓梯 面層混凝土 280kg/cm2 | C131: =+鋼構!F1091 ->  | D131: =一般計算 ->  | F131: M3
A132: 四.27 | B132: 電梯內樑柱 | C132: =+鋼構!H1095/1000 ->  | D132: =一般計算 ->  | E132: =ROUND(SUM(D132),0) ->  | F132: T
A134: 五 | B134: 外牆裝修工程
A135: 五.1 | B135: 外牆造型2.5t佛碳烤漆鋁包板牆 (深灰色) | E135: =ROUND(SUM(D136:D164),0) ->  | F135: M2
B136: 西北向A梯外梯形包板 含+5705頂 | C136: (1.95+0.45+5.8)*56.1+(0.45+0.75+1.1+1.9)*11+6.2*11.45-2.2*5.5+0.75*(2.2+5.5)*2 | D136: =一般計算 -> 
B137: 入口雨遮 | C137: (4+0.45+4)*11.4+1*4*2 | D137: =一般計算 -> 
B138: 一二樓帷幕側框及凸簷含轉西南向 | C138: (3.1+0.45+1.5)*12.6+3.1*0.75+(3.1+0.45+1.45)*7.7+(1.35+0.45+1.45)*26+(2.6+0.45+3)*8.9 | D138: =一般計算 -> 
B139: 四樓到頂帷幕CW15,格柵邊框及下框(三樓陽台上方) | C139: (5.3+0.45+2.2)*41.55+(5.8+0.45+2)*28.2 | D139: =一般計算 -> 
B140: 十樓頂帷幕CW15上框 L型含轉西南向 | C140: (0.45+1.15+0.89+0.23+1.05)*(26+9.7) | D140: =一般計算 -> 
B141: RF上框計至斜邊 | C141: (0.45+1.98)*28.64 | D141: =一般計算 -> 
B142: CW2 C梯側1~2樓 | C142: (0.5+0.45+1.45+1.3)*12.6 | D142: =一般計算 -> 
B143: CW15 C梯側4F~RF | C143: (0.3+0.45+1.98)*40.6 | D143: =一般計算 -> 
B144: D線 C梯外飾板含轉西南斜面 | C144: (6.25+0.45+1.2)*54.3 | D144: =一般計算 -> 
B145: 西北向屋頂格柵內包柱樑-10樓露台 | C145: 4.05*4.5+(0.45*4*2)*13.5*3+(0.65*2+1)*4.5+(0.65+1+5.65+3.85+0.3)*13.5 | D145: =一般計算 -> 
B146: 西北向屋頂格柵內包柱-屋頂層 | C146: (6.15+1.05+9.25)*9+(1.05*4)*9*2+(0.55*4)*9 | D146: =一般計算 -> 
B147: 西北向屋頂格柵內包樑-屋頂層 | C147: (0.35+0.65)*2*(10.1*4+4+2.2*3+5)*2+(0.6+1)*2*(10.1*2+4*4+5*2) | D147: =一般計算 -> 
B148: 西北向屋頂格柵內包樑-屋頂上下及中空 | C148: 7.1*5.5+5.95*28.65+1.05*5.5+1.05*(28.65+5.5)+25.65*4+5.2*5.5-4.8*6.1*2-1.95*(7.7+9.8+3.1)*2 | D148: =一般計算 -> 
C149: 1.05*((4.8+3.1)*2+(1.95+3.1)*2+(9.8+1.95)*2+(7.7+1.95)*2) | D149: =一般計算 -> 
B150: 屋頂包板轉至東北向 | C150: (1.9+0.45)*6.2+(1.1+1.9+0.45+3+0.75)*27.1 | D150: =一般計算 -> 
B151: 東北向R1F 包柱 | C151: 1*4*6.8 | D151: =一般計算 -> 
B152: 吊裝平台前及底部+車道雨遮頂 | C152: (0.55+0.34+1.9+0.75)*18.35+1.9*8.35 | D152: =一般計算 -> 
B153: 吊裝平台側飾板 | C153: (0.25+0.2+1.9+0.45+1.9)*50.1 | D153: =一般計算 -> 
B154: 東北向二F雨遮 | C154: 0.65*1.88*2+1.88*8.5*2 | D154: =一般計算 -> 
B155: 乙梯2線飾板 1F+95~+55.05 | C155: (1+0.45+1.2)*54.2 | D155: =一般計算 -> 
B156: RF+ 55.5包樑柱 | C156: (1.08+1.2+0.45+2.1+1.07)*44.8+(1*4)*4.43*3 | D156: =一般計算 -> 
B157: 西南 RF+ 55.6包樑柱 | C157: (1.08+1.2+0.45+2.1+1.07)*28.6+(1*4)*4.43*3 | D157: =一般計算 -> 
B158: D線5,6柱間屋頂包柱 | C158: (7.35+1.07+2.4)*4.43 | D158: =一般計算 -> 
B159: 西北向CW9 上下鋁飾板 | C159: (0.885*2+0.23)*9.79*7+(0.88+0.44+1.26+0.4)*9.79 | D159: =一般計算 -> 
B160: 西北向CW15 上下鋁飾板 | C160: (0.885*2+0.23)*35.2*5 | D160: =一般計算 -> 
B161: 東北向L6,W2,W1上方 | C161: (0.6*2+0.15)*11.6*9 | D161: =一般計算 -> 
B162: 東南外外下部 | C162: 43.2*0.5*4+43.2*11+1*3*2+1*10.6-1.2*1*4-1.2*2.5 | D162: =一般計算 -> 
B163: 西南外外下部 | C163: 27.1*0.5*4+27.1*11-2.47 | D163: =一般計算 -> 
B164: 警衛室 | C164: 0.4*(1.62+4)+(1*3.15+1*4.5)*2+0.2*(3.15+5.5+1) | D164: =一般計算 -> 
A165: 五.2 | B165: 外牆4t 烤漆鋁複合板包板牆 (淺灰色) | E165: =ROUND(SUM(D166:D176),0) ->  | F165: M2
B166: 西北向 A梯R1F 外牆+2~3線牆+3F包柱 | C166: 8.81*5.7+(0.55*2+1)*2.2+(0.55*2+1.6)*2.2+(0.8+32.7)*9.79-9.79*2*6+(0.6*2+0.855)*3.4*3 | D166: =一般計算 -> 
C167: (2.45+0.6)*3.4 | D167: =一般計算 -> 
B168: 東北向廁所外側牆 D~E線,B~D柱線牆 | C168: (0.2+1.88+9.55+1.9)*49.8-0.8*20+17.6*(49.8-0.75)-6.9*4.9-13.2*2-13.4*1-12.5*8-9.8*7-20.7*1 | D168: =一般計算 -> 
C169: 17.65*5.5-4.05*2.8-0.9 | D169: =一般計算 -> 
B170: 東北向B梯外側+吊裝平台下包板 | C170: 9*58.8-0.9+(0.75+0.25*2)*(5.3+1.88)*8+(1.885*5.3+1.885*0.75*2+0.2*5.3) | D170: =一般計算 -> 
B171: 東南向B梯外牆 | C171: 8.44*58.8+1.28*4.74-85-0.62*8.44 | D171: =一般計算 -> 
B172: 東南向廠房外牆 | C172: 43.2*(38.8-0.5*4) | D172: =一般計算 -> 
B173: 西南向 | C173: 27.1*(38.8-0.5*4) | D173: =一般計算 -> 
B174: 西南向 C梯外 | C174: 5.7*2.42 | D174: =一般計算 -> 
B175: 屋頂電梯機房外 | C175: (10.15+9.55)*10.2-1.53*2-4.3+0.45*(10.15+9.5)*2 | D175: =一般計算 -> 
B176: 屋頂水箱外牆 | C176: (9.55+13.34)*5.7-3.5*12.8-5.5-2.3 | D176: =一般計算 -> 
A177: 五.3 | B177: 外牆貼45*45小口磚 淺灰色 | E177: =ROUND(SUM(D178:D182),0) ->  | F177: M2
B178: 西北A梯外牆下部 | C178: 0.95*8.8 | D178: =一般計算 -> 
B179: 東北向 | C179: 0.95*(10.2+4.6+9.2+4.6+0.4*2)+(0.95+0.2+0.2)*(3.3+1.7)+(0.95*2+0.2)*4.41 | D179: =一般計算 -> 
B180: 轚道入口 | C180: 0.9*(14.3+1.86*2)+(0.95+3.31)/2*19.75*2+8.58*5.1*2 | D180: =一般計算 -> 
B181: 廢氣排放口 | C181: 1.5*(2.9+1.5)*2+1.5*2.9-2.16 | D181: =一般計算 -> 
B182: 警衛室 | C182: 3.6*(4.5+4)*2+2.9*0.1*2+0.35*(4.5+4)*2-12.7-0.83 | D182: =一般計算 -> 
A183: 五.4 | B183: 警衛室窗台板貼花崗石 | E183: =ROUND(SUM(D184),1) ->  | F183: M2
C184: (0.4*2+0.25)*4.5+0.25*2.4+0.4*0.25 | D184: =一般計算 -> 
A185: 五.5 | B185: 氟碳烤漆金屬格柵裝飾牆 | C185: 12.42*(25.5+8.15)+3.31*(8+9.8) | D185: =一般計算 ->  | E185: =ROUND(SUM(D185),0) ->  | F185: M2
A186: 五.6 | B186: 氣體區氟碳烤漆金屬格柵牆 | C186: (4.45+2.8)*3-1.4*2.1 | D186: =一般計算 ->  | E186: =ROUND(SUM(D186),0) ->  | F186: M2
A187: 五.7 | B187: 氣體區氟碳烤漆金屬格柵門 140*210 | C187: 1 | D187: =一般計算 ->  | F187: 樘
A189: 六 | B189: 室內一般裝修工程
A190: 六.1 | B190: 高層水泥纖維板灌漿隔間12cm | E190: =ROUND(SUM(D191:D193),0) ->  | F190: M2
B191: 1F | C191: 5.8*(2.3*2+5.4+6.1+0.52+5.1+1.5+3.55+0.6+1.3+1.3*3) | D191: =一般計算 -> 
C192: 5.8*1.3+2.1*1.46+(5.8+2.1)/2*2.7 | D192: =一般計算 -> 
B193: 2F | C193: 6.4*(3.7+5.5+2+6.1+1.3+5+1.5+1.3+0.6*2+0.5+1.3) | D193: =一般計算 -> 
A194: 六.2 | B194: 一般樓層水泥纖維板灌漿隔間12cm | E194: =ROUND(SUM(D195:D202),0) ->  | F194: M2
B195: 3F | C195: 4.3*(5.55+2.3+2+0.85+1+0.+1.3+6.1+1.5+2.2+5+1.5+3.6+0.6*2+0.5+1.3*2) | D195: =一般計算 -> 
B196: 4F | C196: 4.3*(5.55+2.3+2+0.85+1+0.+1.3+6.1+1.5+2.2+5+1.5+3.6+0.6*2+0.5+1.3*2) | D196: =一般計算 -> 
B197: 5F | C197: 4.3*(5.55+2.3+2+0.85+1+0.+1.3+6.1+1.5+2.2+5+1.5+3.6+0.6*2+0.5+1.3*2) | D197: =一般計算 -> 
B198: 6F | C198: 4.3*(5.55+2.3+2+0.85+1+0.+1.3+6.1+1.5+2.2+5+1.5+3.6+0.6*2+0.5+1.3*2) | D198: =一般計算 -> 
B199: 7F | C199: 4.3*(5.55+2.3+2+0.85+1+0.+1.3+6.1+1.5+2.2+5+1.5+3.6+0.6*2+0.5+1.3*2) | D199: =一般計算 -> 
B200: 8F | C200: 4.3*(5.55+2.3+2+0.85+1+0.+1.3+6.1+1.5+2.2+5+1.5+3.6+0.6*2+0.5+1.3*2) | D200: =一般計算 -> 
B201: 9F | C201: 4.3*(5.55+2.3+2+0.85+1+0.+1.3+6.1+1.5+2.2+5+1.5+3.6+0.6*2+0.5+1.3*2) | D201: =一般計算 -> 
B202: 10F | C202: 4.3*(5.55+2.3+2+0.85+1+0.+1.3+6.1+1.5+2.2+5+1.5+3.6+0.6*2+0.5+1.3*2) | D202: =一般計算 -> 
A203: 六.3 | B203: 水泥纖維板廁所外側單面封板 | E203: =ROUND(SUM(D204:D213),0) ->  | F203: M2
B204: 1F | C204: 5.8*(1.86*2+9.15) | D204: =一般計算 -> 
B205: 2F | C205: 6.4*(1.89*2+9.1) | D205: =一般計算 -> 
B206: 3F | C206: 4.3*(1.8*2+9.5) | D206: =一般計算 -> 
... 305 more rows

Sheet 粉刷表
A3: 粉刷計算表
A4: 業 主: 樂迦再生科技股份有限公司 | E4: 日 期:2022-
A5: 工程名稱:竹北生醫園區廠房新建工程 | E5: 施工地點:
A6: 房 間 編 號 | B6: 地坪,平頂 | C6: 代號 | D6: 數量 | E6: 牆面,踢腳 | F6: 代號 | G6: 數量
A7: B201 地下水箱內 | B7: 5.25*6.1 | C7: F10 | D7: =粉刷表 ->  | E7: 1.6*(5.25+6.1)*2 | F7: W10 | G7: =粉刷表 -> 
B8: 5.25*6.1 | C8: C10 | D8: =粉刷表 -> 
A9: 水箱上方 | B9: 5.85*6.7 | C9: F11 | D9: =粉刷表 ->  | E9: 2.2*(5.85+6.7)*2 | F9: W1 | G9: =粉刷表 -> 
A10: 水箱機房 | B10: 8.77*7.7-5.85*6.7 | C10: F6 | D10: =粉刷表 ->  | E10: 3.3*(8.77+8.7)*2-2.35 | F10: W1 | G10: =粉刷表 -> 
B11: 8.77*7.7-0.6*0.77-0.4*7.1 | C11: C1 | D11: =粉刷表 -> 
B12: 1.8*7.7+1.4*7.1 | C12: C1A | D12: =粉刷表 -> 
A13: B202 斜車道 | B13: 6.1*10.5+4.3+1 | C13: F5A | D13: =粉刷表 ->  | E13: 2.4*(10.5+11.63+0.6*4) | F13: W2 | G13: =粉刷表 -> 
B14: 6.1*10.5+4.3+1 | C14: C1 | D14: =粉刷表 ->  | E14: 0.9*(10.5+11.63+0.6*4) | F14: B2 | G14: =粉刷表 -> 
A15: B203 平面車道停車位 | B15: 5.6*7+2.4*17+1.6*4.3+43.8*12.9 | C15: F5 | D15: =粉刷表 ->  | E15: 2.4*(7+17.9+6.8+41.7+0.8*3+1.2*1) | F15: W2A | G15: =粉刷表 -> 
B16: 30.8*5.66+0.93*6 | C16: F5 | D16: =粉刷表 ->  | E16: 0.9*(7+17.9+6.8+41.7+0.8*3+1.2*2) | F16: B2A | G16: =粉刷表 -> 
B17: 2.45*4.67+36.4*5.82-4.3+42.9*11.2-1.2*3.9 | C17: F5 | D17: =粉刷表 ->  | E17: 2.4*(5.6+9.9+2.4+4.4+43.8+4.3+1.6) | F17: W2 | G17: =粉刷表 -> 
B18: 42.9*11.2-1.2*3.9-11.65*2.13*0.5 | C18: F5 | D18: =粉刷表 ->  | E18: 2.4*(8.24+1.1+6.65+30.8+0.9*3+4.76) | F18: W2 | G18: =粉刷表 -> 
B19: 5.6*7.2+2.4*16+4.65*40.2+7*8.1+4*(31.3*2) | C19: C1 | D19: =粉刷表 ->  | E19: 2.4*(7.45+36.4+4.6+4*9) | F19: W2 | G19: =粉刷表 -> 
B20: 4*(28*2)+1.85*4.67+3.4*(40.2*2)+4.5*30 | C20: C1 | D20: =粉刷表 ->  | E20: 2.4*(5.6+2.45+4.75+0.4+2.8+7.77+3.2*3) | F20: W2 | G20: =粉刷表 -> 
B21: 3.7*8.7 | C21: C1 | D21: =粉刷表 ->  | E21: 2.4*(1.2+3.5)-1.37*5-2.87*2-2.02*2 | F21: W2 | G21: =粉刷表 -> 
B22: 1.8*(4.9*4+8*4+3.9*3+3.8*3+6.9*3+4.6+4.1*3) | C22: C1A | D22: =粉刷表 ->  | E22: -3.72-9.5 | F22: W2 | G22: =粉刷表 -> 
B23: 0.2*(4.9+8+6.9)+1.8*(9.8*12+10*4+2.4) | C23: C1A | D23: =粉刷表 ->  | E23: 0.9*(5.6+9.9+2.4+4.4+43.8+4.3+1.6) | F23: B2 | G23: =粉刷表 -> 
B24: 0.2*(10.8*4)+1.4*(2.4+4.65*4+8.4*7+7.2*4) | C24: C1A | D24: =粉刷表 ->  | E24: 0.9*(8.24+1.1+6.65+30.8+0.9*3+4.76) | F24: B2 | G24: =粉刷表 -> 
B25: 1.4*(4.4*4+10.2*9+4*2+6) | C25: C1A | D25: =粉刷表 ->  | E25: 0.9*(7.45+36.4+4.6+4*9) | F25: B2 | G25: =粉刷表 -> 
E26: 0.9*(5.6+2.45+4.75+0.4+2.8+7.77+3.2*3) | F26: B2 | G26: =粉刷表 -> 
E27: 0.9*(1.2+3.5)-0.99*5-2.07*2-1.05*2 | F27: B2 | G27: =粉刷表 -> 
E28: -2.16-4.5 | F28: B2 | G28: =粉刷表 -> 
A29: B204 消防機房 | B29: 5.4*9.9 | C29: F6 | D29: =粉刷表 ->  | E29: 3.3*9.9 | F29: W2A | G29: =粉刷表 -> 
B30: 5.4*9.9-0.4*5.4 | C30: C1 | D30: =粉刷表 ->  | E30: 3.3*(5.4*2+9.9)-3.07*2-4.94 | F30: W2 | G30: =粉刷表 -> 
B31: 1.4*5.4 | C31: C1A | D31: =粉刷表 -> 
A32: B205 A電梯廳 | B32: 5*3.5+2.05*0.7 | C32: F4 | D32: =粉刷表 ->  | E32: 2.6*4.6-1.1*2.1*2 | F32: W3 | G32: =粉刷表 -> 
B33: 5*3.5+2.05*0.7 | C33: C4 | D33: =粉刷表 ->  | E33: 2.6*(0.4+3.5+5.65+0.67+1.5)-2.36 | F33: W2 | G33: =粉刷表 -> 
A34: B206 B電梯廳 | B34: 5.55*3.7 | C34: F6 | D34: =粉刷表 ->  | E34: 3.3*(5.5+3.7)*2-2.36-4.94-3 | F34: W2 | G34: =粉刷表 -> 
B35: 5.15*3.7 | C35: C1 | D35: =粉刷表 -> 
B36: 1.4*3.7 | C36: C1A | D36: =粉刷表 -> 
A37: B207 A樓梯 | B37: 1.5*6.01+3*6.45+0.55*4.55 | C37: F7 | D37: =粉刷表 ->  | E37: 3.5*(5*2+1.5+6+5.2+6.4)-2.3 | F37: W2 | G37: =粉刷表 -> 
B38: 1.55*3+1.5*2.62+2*3.4+1.55*1.75+2*1.75 | C38: F7 | D38: =粉刷表 ->  | E38: 3.5*5.2 | F38: W2A | G38: =粉刷表 -> 
B39: 1.55*3.+1.55*2.97+2*3.3+1.8*3.3+0.8*1.5 | C39: C2 | D39: =粉刷表 -> 
A40: B208 B樓梯 | B40: 2.9*6.85+1.5*2.34*2+1.5*3.5 | C40: F7 | D40: =粉刷表 ->  | E40: 3.5*(6.8+3) | F40: W2A | G40: =粉刷表 -> 
B41: 1.5*(2.92+2.82)+3.3*1.8+3.3*2.65 | C41: C2 | D41: =粉刷表 ->  | E41: 3.5*(6.8+3)-2.36 | F41: W2 | G41: =粉刷表 -> 
A42: B209梯廳階梯 | B42: 2.05*2.6+1.8*1.3+2.05*1.75 | C42: F7 | D42: =粉刷表 ->  | E42: 3.5*(4.48*2+2.05)-2.36 | F42: W2 | G42: =粉刷表 -> 
B43: 2.05*2.6+1.8*1.3+1.8*1.3 | C43: C2 | D43: =粉刷表 -> 
A44: B210 儲藏室 | B44: 6.6*3.66+0.65*1.25+5.25*2.82 | C44: F6 | D44: =粉刷表 ->  | E44: 3.3*(6.5+4.3+1.25+0.65+2.5+5.25+2.82)-1.93 | F44: W2 | G44: =粉刷表 -> 
B45: 6.6*3.66+0.65*1.25+5.25*2.82-0.4*(4.1+2.8) | C45: C1 | D45: =粉刷表 ->  | E45: 3.3*(1.5*2+0.7)-0.85 | F45: W4 | G45: =粉刷表 -> 
B46: 1.4*(4.1+2.8) | C46: C2 | D46: =粉刷表 ->  | E46: 3.3*8.85 | F46: W2A | G46: =粉刷表 -> 
A47: B211 空調機房 | B47: 19.5*12.95 | C47: F6 | D47: =粉刷表 ->  | E47: 6.8*(19.5+1.2) | F47: W2A | G47: =粉刷表 -> 
B48: 19.5*12.95-0.6*(18.5+11.8)-0.4*(8.8+18.1) | C48: C1 | D48: =粉刷表 ->  | E48: 6.8*(19.5+12.95*2+4)-13.45-2.36 | F48: W2 | G48: =粉刷表 -> 
B49: 1.8*(18.5+11.8)*2+1.4*(8.8+18.1) | C49: C1A | D49: =粉刷表 -> 
A50: B212 高壓變電機房一 | B50: 12.95*10.65 | C50: F6 | D50: =粉刷表 ->  | E50: 6.8*10.65 | F50: W2A | G50: =粉刷表 -> 
B51: 12.95*10.65-0.6*10.1-0.4*(8.6+9.8) | C51: C1 | D51: =粉刷表 ->  | E51: 6.8*(12.95*2+10.65+1.7)-5.88 | F51: W2 | G51: =粉刷表 -> 
B52: 1.8*10.1+1.4*(8.6+9.8) | C52: C1A | D52: =粉刷表 -> 
A53: B213 高壓變電機房二 | B53: 12.95*11.5 | C53: F6 | D53: =粉刷表 ->  | E53: 6.8*11.5 | F53: W2A | G53: =粉刷表 -> 
B54: 12.95*11.5-0.6*10.1-0.4*(8.6+9.8) | C54: C1 | D54: =粉刷表 ->  | E54: 6.8*(12.95*2+11.5+1.7*2)-5.88 | F54: W2 | G54: =粉刷表 -> 
B55: 1.8*10.1+1.4*(8.6+9.8) | C55: C1A | D55: =粉刷表 -> 
A56: B101 斜車道1 | B56: 7*21.05 | C56: F5A | D56: =粉刷表 ->  | E56: 2.4*(7.55+0.7+0.4+7)-16 | F56: W2 | G56: =粉刷表 -> 
B57: 7*(11.5-0.4*2-0.6) | C57: C1 | D57: =粉刷表 ->  | E57: 0.9*(7.55+0.7+0.4+7)-6 | F57: B2 | G57: =粉刷表 -> 
B58: 1.4*7*2+1.8*7 | C58: C1A | D58: =粉刷表 -> 
A59: B101 斜車道2 | B59: 6.15*10.7+4.3+1 | C59: F5A | D59: =粉刷表 ->  | E59: (2.4+4.1)/2*(10.5+1.2) | F59: W2A | G59: =粉刷表 -> 
B60: 6.15*10.5-0.4*6.15 | C60: C1 | D60: =粉刷表 ->  | E60: 0.9*10.7 | F60: B2A | G60: =粉刷表 -> 
B61: 1.4*6.15 | C61: C1A | D61: =粉刷表 ->  | E61: 0.9*11.8 | F61: B2 | G61: =粉刷表 -> 
E62: (2.4+4.1)/2*11.8 | F62: W2 | G62: =粉刷表 -> 
A63: B101 斜車道3 | B63: 5.5*10.7+1.5+2.5 | C63: F5A | D63: =粉刷表 ->  | E63: 0.9*(10.7+11.5) | F63: B2 | G63: =粉刷表 -> 
B64: 5.5+10.2-0.4*(10.2+5.5)-0.6*5.7 | C64: C1 | D64: =粉刷表 ->  | E64: (2.4+4.1)*(10.7+11.5) | F64: W2 | G64: =粉刷表 -> 
B65: 1.4*(10.2+5.5)+1.8*5.7 | C65: C1A | D65: =粉刷表 -> 
A66: B102平面車道停車位 | B66: 30.45*9.6+21.35*5.5+1.6*4.3+35.1*8.75 | C66: F5 | D66: =粉刷表 ->  | E66: 2.4*(9.6+18.55+5.8+10+26.5+0.8*3+1.2) | F66: W2A | G66: =粉刷表 -> 
B67: 30.7*4.3-3*5.8+7.77*5.7+37.95*11.25-1.26*3.45 | C67: F5 | D67: =粉刷表 ->  | E67: 0.9*(9.6+18.55+5.8+10+26.5+0.8*3+1.2) | F67: B2A | G67: =粉刷表 -> 
B68: -11.65*2.13*0.5 | C68: F5 | D68: =粉刷表 ->  | E68: 2.4*(34.05+19.2+4.2+21.35+4.3+4*8) | F68: W2 | G68: =粉刷表 -> 
B69: 8*8.8+(3.75+4.75)*19.8+4.65*19.9 | C69: C1 | D69: =粉刷表 ->  | E69: 2.4*(20.24+4.8+28.2+6)-2.38*4 | F69: W2 | G69: =粉刷表 -> 
B70: 8*31.9+8*(9.8+4)+2.5*4.35+1.3*5.8+4*4.85 | C70: C1 | D70: =粉刷表 ->  | E70: 4.15*(28.2+6.8+4*3+2)+2.4*(1.26+3.5) | F70: W2 | G70: =粉刷表 -> 
B71: 5.8*(10.4+4.4)+(3.25+4.4+3.55)*34.95 | C71: C1 | D71: =粉刷表 ->  | E71: 2.4*(7.77+2.2+5.5+5.3+3.2*3) | F71: W2 | G71: =粉刷表 -> 
B72: 10.6*1.75+7.77*5.7-1.4*5.7 | C72: C1 | D72: =粉刷表 ->  | E72: -16-1.12-1.38*2 | F72: W2 | G72: =粉刷表 -> 
B73: 2*(8*2+10.2+8*6+6.9*4+4.1*3) | C73: C1A | D73: =粉刷表 ->  | E73: 0.9*(34.05+19.2+4.2+21.35+4.3+4*8) | F73: B2 | G73: =粉刷表 -> 
B74: 2*(10.2*9+5.2)+1.4*(8.4*2+4.65*2) | C74: C1A | D74: =粉刷表 ->  | E74: 0.9*(20.24+4.8+28.2+6)-1.71*4 | F74: B2 | G74: =粉刷表 -> 
B75: 1.4*(8*4+9.8*3+3.2+8*2+9.8*2+5.8+30.7) | C75: C1A | D75: =粉刷表 ->  | E75: 0.9*(28.2+6.8+4*3+2)+2.4*(1.26+3.5) | F75: B2 | G75: =粉刷表 -> 
B76: 1.4*(34.55+11.3*3) | C76: C1A | D76: =粉刷表 ->  | E76: 0.9*(7.77+2.2+5.5+5.3+3.2*3) | F76: B2 | G76: =粉刷表 -> 
E77: -16-0.8-.99*2 | F77: B2 | G77: =粉刷表 -> 
A78: B103 A電梯廳 | B78: 3.55*5.6 | C78: F4 | D78: =粉刷表 ->  | E78: 2.6*(3.55+5.6)*2-1.89*2-2.1*2 | F78: W3 | G78: =粉刷表 -> 
B79: 3.55*5.6 | C79: C4 | D79: =粉刷表 -> 
A80: B104 B電梯廳 | B80: 3.6*5.6 | C80: F6 | D80: =粉刷表 ->  | E80: 3.3*(3.6+5.6)*2-3-4.08-2.3 | F80: W2 | G80: =粉刷表 -> 
B81: 3.6*5.6-0.4*3.6 | C81: C1 | D81: =粉刷表 -> 
B82: 1.4*3.6 | C82: C1A | D82: =粉刷表 -> 
A83: B205 A樓梯 | B83: 1.5*6+1.8*3.15+1.5*3+1.6*3+1.5*3.12*2 | C83: F7 | D83: =粉刷表 ->  | E83: 3.3*(6+1.5+4.35)+5.25*((6.45*2+3.55)-1.6) | F83: W2 | G83: =粉刷表 -> 
B84: 1.6*3.12+1.5*5.25+0.1*1.75 | C84: F7 | D84: =粉刷表 ->  | E84: -2.3 | F84: W2 | G84: =粉刷表 -> 
B85: 1.5*3*2+1.8*3.2+1.5*(3.38*2+0.2*2) | C85: C2 | D85: =粉刷表 ->  | E85: 3.3*1.5+5.25*3.55 | F85: W2A | G85: =粉刷表 -> 
B86: 1.6*(3.36+0.6) | C86: C2 | D86: =粉刷表 -> 
A87: B206 B樓梯 | B87: 2.9*2.65+2.9*1.6+1.3*2.62*2+0.2*2.62 | C87: F7 | D87: =粉刷表 ->  | E87: 3.3*(2.9+6.9) | F87: W2 | G87: =粉刷表 -> 
B88: 1.3*3.5+0.2*1.75 | C88: F7 | D88: =粉刷表 ->  | E88: 3.3*(2.9+6.9)-2.4 | F88: W2A | G88: =粉刷表 -> 
B89: 1.6*2.9+2.9*2.65+1.3*3.2+1.5*2.8 | C89: C2 | D89: =粉刷表 -> 
A90: B207 電信機房 | B90: 2.45*5.95 | C90: F6 | D90: =粉刷表 ->  | E90: 3.74*2.45 | F90: W2A | G90: =粉刷表 -> 
B91: 2.45*5.95 | C91: C1 | D91: =粉刷表 ->  | E91: 3.75*(5.95*2+2.45)-1.8 | F91: W2 | G91: =粉刷表 -> 
A92: B208 台電配電場所 | B92: 5.95*5.4 | C92: F6 | D92: =粉刷表 ->  | E92: 3.75*5.4 | F92: W2A | G92: =粉刷表 -> 
B93: 5.95*5.4 | C93: C1 | D93: =粉刷表 ->  | E93: 3.75*(5.95*2+5.4)-3.9 | F93: W2 | G93: =粉刷表 -> 
A94: B209 電錶室 | B94: 5.15*7.6 | C94: F6 | D94: =粉刷表 ->  | E94: 3.74*(7.6+0.4*2) | F94: W2A | G94: =粉刷表 -> 
B95: 5.15*7.6-0.6*4.1 | C95: C1 | D95: =粉刷表 ->  | E95: 3.74*(7.6+5.15*2)-0.35*2 | F95: W2 | G95: =粉刷表 -> 
B96: 1.8*4.1 | C96: C1A | D96: =粉刷表 -> 
A97: B210 生活廢棄物室 | B97: 4*8.6 | C97: F6 | D97: =粉刷表 ->  | E97: 3.3*4 | F97: W2A | G97: =粉刷表 -> 
B98: 4*8.6-0.4*4 | C98: C1 | D98: =粉刷表 ->  | E98: 3.3*(4+8.6*2)-4.09 | F98: W2 | G98: =粉刷表 -> 
B99: 1.4*4 | C99: C1A | D99: =粉刷表 -> 
A100: B211 製程廢棄物 | B100: 10.5*8.6 | C100: F6 | D100: =粉刷表 ->  | E100: 3.3*(10.51+1.2) | F100: W2A | G100: =粉刷表 -> 
A101: B211 製程污水暫存 | B101: 10.5*8.6-0.6*8-0.4*9.9 | C101: C1 | D101: =粉刷表 ->  | E101: 3.3*(10.5+8.6*2)-4.09 | F101: W2 | G101: =粉刷表 -> 
B102: 1.8*8+1.44*9.9 | C102: C1A | D102: =粉刷表 -> 
A103: B212 緊急發電機室 | B103: 8.6*7.5 | C103: F6 | D103: =粉刷表 ->  | E103: 3.3*7.5 | F103: W2A | G103: =粉刷表 -> 
B104: 8.6*7.5-0.4*(7.5+8.2) | C104: C1 | D104: =+A104*D105 ->  | E104: 3.3*(7.5+8.6*2)-4.09 | F104: W2 | G104: =粉刷表 -> 
B105: 1.4*(7.5+8.2) | C105: C1A | D105: =粉刷表 -> 
A106: 101 大廳 | B106: 3.02*9.05+9.65*17.58+1.25*10.2+1.25*17.2 | C106: F1 | D106: =粉刷表 ->  | E106: 4*(8.05+19.6+2.7+5.3+1.4*2)-4.9-2.86-1.8*2 | F106: W5A | G106: =粉刷表 -> 
B107: 1.45*1.15+15.2*6.15 | C107: F1 | D107: =粉刷表 ->  | E107: 4*(1+3+1+9.9)-2.3-1.8 | F107: W5 | G107: =粉刷表 -> 
B108: 3.02*9.05+9.65*17.58+1.25*10.2+1.25*17.2 | C108: C5 | D108: =粉刷表 ->  | E108: 4*4*3 | F108: W5 | G108: =粉刷表 -> 
B109: 1.45*1.15+15.2*6.15 | C109: C5 | D109: =粉刷表 ->  | E109: 4*(0.6+0.6+1.9) | F109: W6 | G109: =粉刷表 -> 
A110: 102風除室 | B110: 4.9*2.55 | C110: F2 | D110: =粉刷表 -> 
B111: 4.9*2.55 | C111: C5A | D111: =粉刷表 -> 
A112: 103 A梯廳 | B112: 3.2*2.85+6.7*3.55 | C112: F1 | D112: =粉刷表 ->  | E112: 3.3*(3.55+5.25+2.88+1.8+0.5)-1.89-1.8*2 | F112: W3 | G112: =粉刷表 -> 
B113: 3.2*2.85+6.7*3.56 | C113: C5 | D113: =粉刷表 ->  | E113: 3.3*(1.5+0.7+3.2)-1.89 | F113: W3A | G113: =粉刷表 -> 
A114: 104 B梯廳 | B114: 3.6*3.5 | C114: F7 | D114: =粉刷表 ->  | E114: 5.85*3.82-3 | F114: W2 | G114: =粉刷表 -> 
B115: 3.6*3.5 | C115: C6 | D115: =粉刷表 ->  | E115: 5.85*(3.6*2+3.82)-4.37-5.85 | F115: W4 | G115: =粉刷表 -> 
A116: 105 A樓梯 | B116: (2.2*3.4+1.73*3.95)+2*3.25 | C116: F7 | D116: =粉刷表 ->  | E116: 6*(9.2+0.9*2)-2.34 | F116: W2 | G116: =粉刷表 -> 
B117: (3.37*3.95+1.07*3.25)+3.25*1.74 | C117: F7 | D117: =粉刷表 ->  | E117: 6*(3.15+0.55) | F117: W6 | G117: =粉刷表 -> 
B118: 1.6*3.11+1.75*3.11+1.6*2.7+1.75*2.96 | C118: F7 | D118: =粉刷表 -> 
B119: 3*1.6+3*1.75 | C119: F7 | D119: =粉刷表 -> 
B120: (2.2*3.4+1.73*3.95)+2*3.25+3.25*1.74 | C120: C2 | D120: =粉刷表 -> 
B121: (3.37*3.95+1.07*3.25) | C121: C7 | D121: =粉刷表 -> 
B122: 1.6*3.11+1.75*3.11+1.6*2.7+1.75*2.96 | C122: C7 | D122: =粉刷表 -> 
B123: 3*1.6+3*1.75 | C123: C7 | D123: =粉刷表 -> 
B124: 0.6*(3.3*2*2+2.3*2+3*2+3.4*2+3.4*2) | C124: C7 | D124: =粉刷表 -> 
A125: 106 B樓梯 | B125: (3.15*2.65)+1.8*1.55*2+(2.26*3.15+2.7*0.9) | C125: F7 | D125: =粉刷表 ->  | E125: 6*4.65 | F125: W2 | G125: =粉刷表 -> 
B126: 1.4*2.63+1.3*2.63+1.4*2.11+1.3*2.11 | C126: F7 | D126: =粉刷表 ->  | E126: 6*(3.15+2.45)-4.37 | F126: W4 | G126: =粉刷表 -> 
B127: 1.4*3+1.3*3 | C127: F7 | D127: =粉刷表 ->  | E127: 6*(7.55+2.45) | F127: W6 | G127: =粉刷表 -> 
B128: (3.12*2.65)+1.8*1.55*2 | C128: C7 | D128: =粉刷表 -> 
B129: 1.4*2.63+1.3*2.63+1.4*2.11+1.3*2.11 | C129: C7 | D129: =粉刷表 -> 
B130: 1.4*3+1.3*3 | C130: C7 | D130: =粉刷表 -> 
B131: 0.6*(1.95*4+2.2*2+2.25*4+3.16*2) | C131: C7 | D131: =粉刷表 -> 
B132: (2.26*3.15+2.7*0.9) | C132: C2 | D132: =粉刷表 -> 
A133: 107 C樓梯 | B133: 2.5*2.12+2.5*1.52+2.11*2.5+2.05*2.5 | C133: F7 | D133: =粉刷表 ->  | E133: 6*(2.5+2.12*2)+2.07*2.9*0.5*2 | F133: W2 | G133: =粉刷表 -> 
B134: 1.25*(2.9+2.87*2+2.34)+1.25*6 | C134: F7 | D134: =粉刷表 ->  | E134: 3.78*(6.48*2+2.5)-2.36*2 | F134: W2 | G134: =粉刷表 -> 
B135: 2.5*2.12+2.5*1.52+2.11*2.5+2.05*2.5 | C135: C7 | D135: =粉刷表 -> 
B136: 1.25*(2.87*2+2.34)+1.25*6 | C136: C7 | D136: =粉刷表 -> 
B137: 2.9*2*4+2.15*2+1.52*4 | C137: C7 | D137: =粉刷表 -> 
A138: 108 機房 | B138: 3.85*6.87 | C138: F6 | D138: =粉刷表 ->  | E138: 6*0.9*2 | F138: W2 | G138: =粉刷表 -> 
B139: 3.85*6.87 | C139: C6 | D139: =粉刷表 ->  | E139: 6*(6.87+3.84+5.97)-1.89 | F139: W4 | G139: =粉刷表 -> 
A140: 109 裝卸區 | B140: 4.6*9.3+7.6*11.7+1.95*8.16 | C140: F3 | D140: =粉刷表 ->  | E140: 5.8*(11.7+4*2+3.7+8.16)-13.2*2-2.36 | F140: W2 | G140: =粉刷表 -> 
B141: 4.6*9.3+7.6*11.7+1.95*8.16 | C141: C6 | D141: =粉刷表 ->  | E141: 5.8*(7.6+11.67+1.5+8.16+1.5)-8.5-2.36 | F141: W4 | G141: =粉刷表 -> 
A142: 110 廠房(物料,成品) | B142: 26.77*39.88+1.5*8.1+0.85*17.2-2*9 | C142: F11 | D142: =粉刷表 ->  | E142: 5.8*(4*6+3*5) | F142: W2 | G142: =粉刷表 ->  | H142: 廠房外牆內側不另封板
B143: 26.77*39.88+1.5*8.1+0.85*17.2-2*10 | C143: C6 | D143: =粉刷表 ->  | E143: 5.8*(9.8+3.4+2.05+12.2)-2.1*2-2.36 | F143: W2 | G143: =粉刷表 -> 
E144: -4-1.8*4 | F144: W2 | G144: =粉刷表 -> 
A145: 111 備品室 | B145: 2.8*3.34 | C145: F3 | D145: =粉刷表 ->  | E145: 3.3*(0.9*2) | F145: W2 | G145: =粉刷表 -> 
B146: 2.8*3.34 | C146: C3 | D146: =粉刷表 ->  | E146: 3.3*((2.8+3.34)*2-0.9*2)-1.89 | F146: W4 | G146: =粉刷表 -> 
A147: 112 大廳茶水間 | B147: 2.17*3.34 | C147: F3 | D147: =粉刷表 ->  | E147: 3.3*2.77 | F147: W2 | G147: =粉刷表 -> 
B148: 2.17*3.34 | C148: C3 | D148: =粉刷表 ->  | E148: 3.3*((2.17+3.34)*2-2.77)-1.89 | F148: W4 | G148: =粉刷表 -> 
A149: 113 廁所茶水間 | B149: 3.08*2 | C149: F3 | D149: =粉刷表 ->  | E149: 3.3*((3.08+2)*2-1) | F149: W4 | G149: =粉刷表 -> 
B150: 3.08*2 | C150: C3 | D150: =粉刷表 -> 
A151: 114 廁所區走道 | B151: 1.5*2.35+1.38*4.83 | C151: F3 | D151: =粉刷表 ->  | E151: 3.3*3.36 | F151: W2 | G151: =粉刷表 -> 
B152: 1.5*2.35+1.38*4.83 | C152: C3 | D152: =粉刷表 ->  | E152: 3.3*((4.83+3.72)*2-3.36)-2.05-1.72*2-1.93 | F152: W4 | G152: =粉刷表 -> 
A153: 115 男廁 | B153: 1.5*1.7+3.3*3.45-1.2*0.6+0.5*1.7 | C153: F8 | D153: =粉刷表 ->  | E153: 3.3*(1.73+3.2+0.5) | F153: W7 | G153: =粉刷表 -> 
B154: 1.5*1.7+3.3*3.45-1.2*0.6+0.5*1.7 | C154: C3 | D154: =粉刷表 ->  | E154: 3.3*(1.34*2+1.75+3.85+4.95+1.6)-1.93-0.81 | F154: W7A | G154: =粉刷表 -> 
A155: 116 女廁 | B155: 2.03*1.82+3.45*3.21 | C155: F8 | D155: =粉刷表 ->  | E155: 3.3*0.8 | F155: W7 | G155: =粉刷表 -> 
B156: 2.03*1.82+3.45*3.22 | C156: C3 | D156: =粉刷表 ->  | E156: 3.3*((5.04+3.45)*2-0.8)-1.93-0.81 | F156: W7A | G156: =粉刷表 -> 
A157: 117 行動不便廁所 | B157: 2*2.56 | C157: F8 | D157: =粉刷表 ->  | E157: 3.3*1.4 | F157: W7 | G157: =粉刷表 -> 
B158: 2*2.56 | C158: C3 | D158: =粉刷表 ->  | E158: 3.3*((2+2.56)*2)-1.4-2.1 | F158: W7A | G158: =粉刷表 -> 
A159: 118 警衛室 | B159: 1.25*1.55+1.95*3.8 | C159: F8 | D159: =粉刷表 ->  | E159: 2.9*(3.2+3.8)*2-13.36-1.9 | F159: W2 | G159: =粉刷表 -> 
B160: 1.25*1.55+1.95*3.8 | C160: C2 | D160: =粉刷表 -> 
A161: 119 警衛室廁所 | B161: 2.35*1.4 | C161: F8 | D161: =粉刷表 ->  | E161: 2.9*(2.35+1.4)*2-1.9-0.83 | F161: W7 | G161: =粉刷表 -> 
B162: 2.35*1.4 | C162: C2 | D162: =粉刷表 -> 
A163: 120 氣槽區 | B163: 5*3 | C163: F3 | D163: =粉刷表 -> 
A164: 201 廠房 | B164: 43.9*27.4-2*6.7+7.13*9.85+25.85*9.9 | C164: F11 | D164: =粉刷表 ->  | E164: 6.4*(13+2.78+12.2)-2.36 | F164: W1 | G164: =粉刷表 -> 
B165: 43.9*27.4-2*6.7+7.13*9.85+25.85*9.10 | C165: C0 | D165: =粉刷表 ->  | E165: 6.4*(27.7+9.9)-4.94*2 | F165: W1A | G165: =粉刷表 -> 
A166: 202 梯廳 A | B166: 3.55*6.7 | C166: F1 | D166: =粉刷表 ->  | E166: 3.3*5.2-2*2 | F166: W3 | G166: =粉刷表 -> 
B167: 3.55*6.7 | C167: C5 | D167: =粉刷表 ->  | E167: 3.3*1.5-1.83 | F167: W3A | G167: =粉刷表 -> 
E168: 3.3*(1.5+1.3+6.7)-1.9-4.94 | F168: W4 | G168: =粉刷表 -> 
E169: 3.3*3.55-2.36 | F169: W2 | G169: =粉刷表 -> 
A170: 203 梯廳B及走道 | B170: 1.3*2.85+2*19+3.6*5.55 | C170: F11 | D170: =粉刷表 ->  | E170: 6.4*(0.85+25.85+3.6+1.85+1.6+20.3) | F170: W4 | G170: =粉刷表 -> 
B171: 1.3*2.85+2*19+3.6*5.55 | C171: C0 | D171: =粉刷表 ->  | E171: -4.94-4.08-2.36 | F171: W4 | G171: =粉刷表 -> 
E172: 6.4*3.7-3 | F172: W2 | G172: =粉刷表 -> 
A173: 204 機房 | B173: 6.1*16.85 | C173: F6 | D173: =粉刷表 ->  | E173: 6.4*(6.1+16.85)*2-4.08-3.07*4-13.4-9.8 | F173: W4 | G173: =粉刷表 -> 
B174: 6.1*16.85 | C174: C0 | D174: =粉刷表 -> 
A175: 205 A樓梯 | B175: 3.95*3.42+0.77*2.8+3.95*3.52+0.67*2.8 | C175: F7 | D175: =粉刷表 ->  | E175: 6.4*7.7 | F175: W2 | G175: =粉刷表 -> 
B176: 1.75*3.25*2+1.5*3.12*2+1.5*2.86*2 | C176: F7 | D176: =粉刷表 ->  | E176: 6.4*(3.2+0.6) | F176: W6 | G176: =粉刷表 -> 
B177: 1.5*6.4 | C177: F7 | D177: =粉刷表 -> 
B178: 3.95*3.52+0.67*2.8 | C178: C2 | D178: =粉刷表 -> 
B179: 3.95*3.42+0.77*2.8 | C179: C7 | D179: =粉刷表 -> 
B180: 1.75*3.25*2+1.5*3.12*2+1.5*2.86*2 | C180: C7 | D180: =粉刷表 -> 
B181: 1.5*6.4+0.3*2*((3.3+3.4)*2+1.5*2*2+4.19*2) | C181: C7 | D181: =粉刷表 -> 
A182: 206 B樓梯 | B182: 2.3*3.15+2.6*0.65+1.55*2.6+3.15*2.08+2.6*1.18 | C182: F7 | D182: =粉刷表 ->  | E182: 6.6*4.65 | F182: W2 | G182: =粉刷表 -> 
B183: 1.4*2.34+1.4*2.04+1.3*(2.08+2.85)+1.3*3.3 | C183: F7 | D183: =粉刷表 ->  | E183: 6.6*(3.15+2.45)-4.37 | F183: W4 | G183: =粉刷表 -> 
B184: 1.4*3.3 | C184: F7 | D184: =粉刷表 ->  | E184: 6.6*(7.55+2.45) | F184: W6 | G184: =粉刷表 -> 
B185: 2.3*3.15+2.6*0.65+1.55*2.6 | C185: C7 | D185: =粉刷表 -> 
B186: 1.4*2.34+1.4*2.04+1.3*(2.08+2.85)+1.3*3.3 | C186: C7 | D186: =粉刷表 -> 
B187: 1.4*3.3+0.3*2*((2.7*2*2+2.6*2*2)+1.5*2+3.15*2) | C187: C7 | D187: =粉刷表 -> 
B188: 3.15*2.08+2.6*1.18 | C188: C2 | D188: =粉刷表 -> 
A189: 207 C樓梯 | B189: 2.5*2.12+2.5*2.89+2.5*1.51+2.5*1.25 | C189: F7 | D189: =粉刷表 ->  | E189: 6.6*(6.5*2+2.5)-2.36 | F189: W2 | G189: =粉刷表 -> 
B190: 1.25*(2.34*2+2.08*2)+1.25*6.6 | C190: F7 | D190: =粉刷表 -> 
B191: 2.89*2.5 | C191: C2 | D191: =粉刷表 -> 
B192: 2.5*2.12+2.5*1.51+2.5*1.25 | C192: C7 | D192: =粉刷表 -> 
B193: 1.25*(2.34*2+2.08*2)+1.25*6.6 | C193: C7 | D193: =粉刷表 -> 
B194: 0.3*2*(2.4*2*2+2.3*2*2+2.7*2*2*2) | C194: C7 | D194: =粉刷表 -> 
B195: 0.3*2*(1.25*2+2.9*2) | C195: C7 | D195: =粉刷表 -> 
A196: 208 廁所茶水間 | B196: 3.6*2 | C196: F3 | D196: =粉刷表 ->  | E196: 3.3*((3.6+2)*2-1)-1.8 | F196: W4 | G196: =粉刷表 -> 
B197: 3.6*2 | C197: C3 | D197: =粉刷表 -> 
A198: 209 儲藏室 | B198: 2*2.05 | C198: F3 | D198: =粉刷表 ->  | E198: 3.3*(2.05+2)*2-1.8 | F198: W4 | G198: =粉刷表 -> 
B199: 2*2.05 | C199: C3 | D199: =粉刷表 -> 
A200: 210 廁所區走道 | B200: 1.5*2.35+1.38*4.83 | C200: F3 | D200: =粉刷表 ->  | E200: 3.3*3.36 | F200: W2 | G200: =粉刷表 -> 
B201: 1.5*2.35+1.38*4.83 | C201: C3 | D201: =粉刷表 ->  | E201: 3.3*((4.83+3.72)*2-3.36)-2.05-1.72*2-1.93 | F201: W4 | G201: =粉刷表 -> 
A202: 211 男廁 | B202: 1.5*1.7+3.3*3.45-1.2*0.6+0.5*1.7 | C202: F8 | D202: =粉刷表 ->  | E202: 3.3*(1.73+3.2+0.5) | F202: W7 | G202: =粉刷表 -> 
... 353 more rows

Sheet 結構計算
A3: 鋼筋混凝土計算表
A4: 業 主: 樂迦再生科技股份有限公司 | I4: 日 期:
A5: 工程名稱:竹北生醫園區廠房新建工程 | I5: 施工地點:
A6: 編 號 | B6: 型式 | C6: 混 凝 土 | D6: RC | E6: 型式 | F6: 模 板 | G6: FW | H6: 鋼筋 | I6: 數 量 計 算 | J6: ST1 | K6: 鋼筋 | L6: 數 量 計 算 | M6: ST2
A7: 標準圖 S0-2結構體混凝土 fc'=280kg/cm2 ,乙級搭接 SD420W鋼筋 | G7: 0.89 | I7: 柱續接同 | J7: 0.89
A8: 附件一 | C8: 鋼筋彎鉤 #3=15 | F8: 上層續接 #3=70 | G8: =0.7*0.89 -> 0.623 | I8: 一般續接 #3=54 | J8: =54*0.89 -> 48.06
C9: 鋼筋彎鉤 #4=20 | F9: 上層續接 #4=93 | G9: =0.93*0.89 -> 0.8277 | I9: 一般續接 #4=71 | J9: =71*0.89 -> 63.19
C10: 鋼筋彎鉤 #5=25 | F10: 上層續接 #5=116 | G10: =116*0.89 -> 103.24 | I10: 一般續接 #5=89 | J10: =89*0.89 -> 79.21
C11: 鋼筋彎鉤 #6=31 | F11: 上層續接 #6=140 | G11: =140*0.89 -> 124.6 | I11: 一般續接 #6=108 | J11: =108*0.89 -> 96.12
C12: 鋼筋彎鉤 #7=36 | F12: 上層續接 #7=198 | G12: =198*0.89 -> 176.22 | I12: 一般續接 #7=152 | J12: =152*0.89 -> 135.28
C13: 鋼筋彎鉤 #8=41 | F13: 上層續接 #8=226 | G13: =226*0.89 -> 201.14 | I13: 一般續接 #8=174 | J13: =174*0.89 -> 154.86
C14: 鋼筋彎鉤 #10=55 | F14: 上層續接 #10=287 | G14: =287*0.89 -> 255.43 | I14: 一般續接 #10=221 | J14: =221*0.89 -> 196.69
C15: 鋼筋彎鉤 #11=61 | F15: 上層續接 #11=319 | G15: =319*0.89 -> 283.91 | I15: 一般續接 #11=295 | J15: =298*0.89 -> 265.22
A16: FS1 | B16: 280 | C16: 0.6*1886.42 | D16: =結構計算 ->  | E16: F | F16: \= | H16: #6 | I16: 25.42*1886.42 | J16: =結構計算 ->  | N16: =(9.8*3+10.2)*(4.1+3.7+3.35+4.05+3.7*2+3.6+3.8+3.1+3.1+4.2)-11.65*3.13*0.5+7.8*2.25+3.55*4.05+3.55*3.55+7.8*(1.4+3.35+4.05+3.7*2+2.7+3.5+4.2)+8*(2.15+2.2+2.25) -> 1886.41775 | O16: =(44.5+1.08*4)*(21+19+17+21)+(44.5+1.4*4)+(21+19+17+21)+(18.5+0.3+1.08*2)*(66*3+69)+(18.5+0.3+1.4*2)*(66*3+69) -> 15299.58 | P16: =+O16/601.92 -> 25.41796252
F17: 施工鋼筋 | H17: #6 | I17: 3*472
A18: A FWB1~FWB1 | B18: 280 | C18: 0.6*2.3*46.6 | D18: =結構計算 ->  | E18: F | F18: (2.3+1.5)*46.6 | G18: =結構計算 ->  | H18: #5 | I18: 6*(50+66*4) | K18: #10 | L18: (52.5+0.55*2+2.87*5)*4 | M18: =結構計算 -> 
A19: =7.4+9.8*4 -> 46.6 | H19: #5 | I19: (52.5+0.89*5)*10 | K19: #10 | L19: (52.5+0.55*2+2.21*5)*4
A20: =46.6+1*6 -> 52.6 | I20: 施工筋 | K20: #10 | L20: 6.4*5
A21: G FWB1~FWB1 | B21: 280 | C21: 0.6*2.3*48.2 | D21: =結構計算 ->  | E21: F | F21: (2.3+1.5)*48.2 | H21: #5 | I21: 6*(52+67*3+71) | K21: #10 | L21: (52.7+0.55*2+2.87*5)*4
A22: =7.7+10*3+10.5 -> 48.2 | H22: #5 | I22: (52.7+0.89*5)*10 | K22: #10 | L22: (52.7+0.55*2+2.21*5)*4
A23: =48.2+0.8*5+0.6 -> 52.8 | I23: 施工筋 | K23: #10 | L23: 6.4*5
A24: 1 FWB1~FWB1 | B24: 280 | C24: 0.6*2.3*43 | D24: =結構計算 ->  | E24: F | F24: (2.3+1.5)*43+0.2*3.5 | H24: #5 | I24: 6*(54*4+47+28) | K24: #10 | L24: (49.5+0.55*2+2.87*5)*4+8.4 | N24: =(0.55+1.55)*4 -> 8.4
A25: =8*4+6.9+4.1 -> 43 | H25: #5 | I25: (49.5+0.89*5)*10 | K25: #10 | L25: (49.5+0.55*2+2.21*5)*4+8.4 | N25: 高低差斷筋錨定
A26: =43+1*5+0.8*2 -> 49.6 | I26: 施工筋 | K26: #10 | L26: 6.4*5
A27: 6 FWB1~FWB1 | B27: 280 | C27: 0.6*2.3*41.05 | D27: =結構計算 ->  | E27: F | F27: (2.3+1.5)*41.05 | H27: #5 | I27: 6*(54*4+47+15) | K27: #10 | L27: (47.3+0.55*2+2.87*5)*4+8.4
A28: =8*4+6.9+2.15 -> 41.05 | H28: #5 | I28: (47.35+0.89*5)*10 | K28: #10 | L28: (47.35+0.55*2+2.21*5)*4+8.4
A29: =41.05+1*5+0.8+0.6 -> 47.45 | I29: 地樑施工支拌撐筋 | K29: #10 | L29: 6.4*5
A30: F FG1a~FG1e | B30: 280 | C30: 1*2.3*47.8 | D30: =結構計算 ->  | E30: F | F30: 1.5*2*47.8 | H30: #5 | I30: 6.8*(46+59+59*2+60) | K30: #10 | L30: (52.5+0.55*2+2.87*5)*6 | N30: =5.7+7.1*2+7.2*2*2+7.3*2 -> 63.3
A31: =7.8+9.9+10+10+10.1 -> 47.8 | H31: #5 | I31: (52.5+0.89*5)*10 | K31: #10 | L31: (52.5+0.55*2+2.21*5)*6 | N31: =3.6*1+6.1*2+6.8*2*3+4.3*2 -> 65.2
A32: =47.8+0.8*6 -> 52.6 | I32: 地樑施工支拌撐筋6.8m | K32: #10 | L32: 63.3+65.2+6.8*5
A33: E FG2a~FG2e | B33: 280 | C33: 1*2.3*46.6+0.15*1*3.4 | D33: =結構計算 ->  | E33: F | F33: 1.5*2*46.6+0.2*2.25 | H33: #5 | I33: 6.8*(44+58*4) | K33: #10 | L33: (52.5+0.55*2+2.87*5)*6 | N33: =5.3*1+7.1*2*4 -> 62.1
A34: =7.4+9.8*4 -> 46.6 | E34: F | F34: 0.15*2*3.4 | H34: #5 | I34: (52.5+0.89*5)*10 | K34: #10 | L34: (52.5+0.55*2+2.21*5)*6 | N34: =3.75+6.2*2+6.9*2*3+4.45*2 -> 66.45
A35: =46.6+1*6 -> 52.6 | I35: 地樑施工支拌撐筋6.8m | K35: #10 | L35: 62.1+66.45+6.8*5
A36: D FG3a~FG3e | B36: 280 | C36: 1*4.05*27 | D36: =結構計算 ->  | E36: F | F36: 3.25*2*27 | H36: #5 | I36: 10.3*(62+58+58) | K36: #10 | L36: (52.5+0.55*2+2.21*5)*6 | N36: =5.3*1+7.1+7.1*2+7.1*2+7.1*1 -> 47.9
A37: =7.4+9.8*4 -> 46.6 | B37: 280 | C37: 1*2.3*19.6 | D37: =結構計算 ->  | E37: F | F37: 1.5*2*19.6 | H37: #5 | I37: 6.8*(58+58) | K37: #10 | L37: (20.2+0.55+4.7+2.87*2)*6 | N37: =3.75*1+6.2*1+8.65*1 -> 18.6
A38: =46.6+1*6 -> 52.6 | B38: 280 | C38: 1*1.75*1.75*0.5*2 | D38: =結構計算 ->  | E38: F | F38: 1.75*1.75*2*2 | H38: #5 | I38: (52.5+0.89*5)*10 | K38: #10 | L38: (22.5+0.55*2+2.87*2)*6 | N38: =4.5*2+6.9*2+4.5*2 -> 31.8
H39: #5 | I39: (20.1+0.89*2)*14 | K39: #10 | L39: (16+0.55+2.87)*6 | N39: =8.65*1+4.5*1 -> 13.15
H40: #5 | I40: (10.7+0.89)*14 | K40: #10 | L40: 47.9+18.6+31.8+13.15
I41: 地樑施工支拌撐筋6.8m,10.2m | K41: #10 | L41: 10.2*3+6.8*2
A42: C FG4a~FG4e | B42: 280 | C42: 1*2.3*46.6 | D42: =結構計算 ->  | E42: F | F42: 1.5*2*46.6 | G42: =結構計算 ->  | H42: #5 | I42: 6.8*(44+58*4) | K42: #10 | L42: (52.5+0.55*2+2.87*5)*6 | N42: =5.3*1+7.1*2*4 -> 62.1
A43: =7.4+9.8*4 -> 46.6 | H43: #5 | I43: (52.5+0.89*5)*10 | K43: #10 | L43: (52.5+0.55*2+2.21*5)*6 | N43: =3.75+6.2*2+6.9*2*3+4.45*2 -> 66.45
A44: =46.6+1*6 -> 52.6 | I44: 地樑施工支拌撐筋6.8m | K44: #10 | L44: 62.1+66.45+6.8*5
A45: B FG5a~FG5e | B45: 280 | C45: 1*2.3*46.6 | D45: =結構計算 ->  | E45: F | F45: 1.5*2*46.6 | H45: #5 | I45: 6.8*(44+58*4) | K45: #10 | L45: (52.5+0.55*2+2.87*5)*6 | N45: =5.3*1+7.1*2*4 -> 62.1
A46: =7.4+9.8*4 -> 46.6 | H46: #5 | I46: (52.5+0.89*5)*10 | K46: #10 | L46: (52.5+0.55*2+2.21*5)*6 | N46: =3.75+6.2*2+6.9*2*3+4.45*2 -> 66.45
A47: =46.6+1*6 -> 52.6 | I47: 地樑施工支拌撐筋6.8m | K47: #10 | L47: 62.1+66.45+6.8*5
A48: 2 FB1a~FB1c | B48: 280 | C48: 1*2.3*19 | D48: =結構計算 ->  | E48: F | F48: 1.5*2*19 | G48: =結構計算 ->  | H48: #5 | I48: 6.8*(2*29+2*58+2*67) | K48: #10 | L48: (22.5+0.55*2+2.21*2)*6 | N48: =(18.95+2.21)*2+5.8*3 -> 59.72
A49: =4.1+6.9+8 -> 19 | H49: #5 | I49: (22.5+0.89*2)*10 | K49: #10 | L49: (22.5+0.55*2+2.87*2)*6 | N49: =(16.5+2.87)*2+5.5*3+3.9*5 -> 74.74
A50: =19+0.8+0.8+1+1 -> 22.6 | I50: 地樑施工支拌撐筋6.8m | K50: #10 | L50: 59.72+74.74+6.8*2
A51: 2 FB1d~FB1f | B51: 280 | C51: 1*2.3*24 | D51: =結構計算 ->  | E51: F | F51: 1.5*2*24 | H51: #5 | I51: 6.8*(47*3) | K51: #10 | L51: (27.9+0.55*2+2.21*3)*6 | N51: =5.8*1+5.8*2+5.8*2 -> 29
A52: =8*3 -> 24 | H52: #5 | I52: (27.9+0.89*2)*10 | K52: #10 | L52: (27.9+0.55*2+2.87*3)*6 | N52: =3.9*1+5.8*2*2+3.9*1 -> 31
A53: =24+4 -> 28 | I53: 地樑施工支拌撐筋6.8m | K53: #10 | L53: 29+31+6.8*3
A54: 3 FB2a~FB2c | B54: 280 | C54: 1*2.3*17.4 | D54: =結構計算 ->  | E54: F | F54: 1.5*2*17.4 | G54: =結構計算 ->  | H54: #5 | I54: 6.8*(2*29+2*58+2*33) | K54: #10 | L54: (17.3+0.55*2+2.21)*6 | N54: =(17.65+2.21)*2+3.8*4 -> 54.92
A55: =4.1+6.9+3.8 -> 14.8 | H55: #5 | I55: (17.3+0.89)*10 | K55: #10 | L55: (17.3+0.55*2+2.87)*6 | N55: =(14.65+2.87)*2+4.65*3+3.05*2 -> 55.09
A56: =14.8+0.8+0.8+1 -> 17.4 | I56: 地樑施工支拌撐筋6.8m | K56: #10 | L56: 54.92+55.09+6.8*1
A57: 3 FB2c~FB2f | B57: 280 | C57: 1*2.3*28.2 | D57: =結構計算 ->  | E57: F | F57: 1.5*2*28.2 | H57: #5 | I57: 6.8*(2*35+47*3) | K57: #10 | L57: (32.1+0.55*2+2.21*3)*6 | N57: =(12.65+2.21)*1+5.8+5.8*2*2 -> 43.86
A58: =4.2+8*3 -> 28.2 | H58: #5 | I58: (32.1+0.89*3)*10 | K58: #10 | L58: (32.1+0.55*2+2.87*3)*6 | N58: =4.95*4+5.8*2+5.8*2+3.9*2 -> 50.8
A59: =28.2+4 -> 32.2 | I59: 地樑施工支拌撐筋6.8m | K59: #10 | L59: 43.86+50.8+6.8*3
A60: 4 FB3a~FB3c | B60: 280 | C60: 1*2.3*17.4 | D60: =結構計算 ->  | E60: F | F60: 1.5*2*17.4 | G60: =結構計算 ->  | H60: #5 | I60: 6.8*(2*29+2*58+2*33) | K60: #10 | L60: (17.3+0.55*2+2.21)*6 | N60: =(17.65+2.21)*4 -> 79.44
A61: =4.1+6.9+3.8 -> 14.8 | H61: #5 | I61: (17.3+0.89)*10 | K61: #10 | L61: (17.3+0.55*2+2.87)*8 | N61: =4.65*3 -> 13.95
A62: =14.8+0.8+0.8+1 -> 17.4 | I62: 地樑施工支拌撐筋6.8m | K62: #10 | L62: 79.44+13.95+6.8*1
A63: 4 FB3c~FB3f | B63: 280 | C63: 1*2.3*28.2 | D63: =結構計算 ->  | E63: F | F63: 1.5*2*28.2 | G63: =結構計算 ->  | H63: #5 | I63: 6.8*(2*35+80+47+47) | K63: #10 | L63: (32.1+0.55*2+2.21*3)*6 | N63: =5.8*2*3 -> 34.8
A64: =4.2+8*3 -> 28.2 | H64: #5 | I64: (32.1+0.89*3)*10 | K64: #10 | L64: (32.1+0.55*2+2.87*3)*6 | N64: =4.95*4+5.8*2+5.8*2+3.9*2 -> 50.8
A65: =28.2+4 -> 32.2 | I65: 地樑施工支拌撐筋6.8m | K65: #10 | L65: 34.8+50.8+6.8*3
A66: 5 FB4a~FB4c | B66: 280 | C66: 1*2.3*17.4 | D66: =結構計算 ->  | E66: F | F66: 1.5*2*17.4 | G66: =結構計算 ->  | H66: #5 | I66: 6.8*(2*29+2*58+2*33) | K66: #10 | L66: (17.3+0.55*2+2.21)*6 | N66: =(16.55+2.21)*4+4.75*2 -> 84.54
A67: =4.1+6.9+3.8 -> 14.8 | H67: #5 | I67: (17.3+0.89)*10 | K67: #10 | L67: (17.3+0.55*2+2.87)*6 | N67: =(15.65+2.87)*2+4.65*3+3*2 -> 56.99
A68: =14.8+0.8+0.8+1 -> 17.4 | I68: 地樑施工支拌撐筋6.8m | K68: #10 | L68: 84.54+56.99+6.8*1 | M68: =結構計算 -> 
A69: 5 FB4c~FB4f | B69: 280 | C69: 1*2.3*28.2 | D69: =結構計算 ->  | E69: F | F69: 1.5*2*28.2 | G69: =結構計算 ->  | H69: #5 | I69: 6.8*(2*35+47*3) | K69: #10 | L69: (32.1+0.55*2+2.21*3)*6 | N69: =5.8*2*3 -> 34.8
A70: =4.2+8*3 -> 28.2 | H70: #5 | I70: (32.1+0.89*3)*10 | K70: #10 | L70: (32.1+0.55*2+2.87*3)*6 | N70: =8.1*2+4.95*2+5.8*2+5.8*2+3.9*2 -> 57.1
A71: =28.2+4 -> 32.2 | I71: 地樑施工支拌撐筋6.8m | K71: #10 | L71: 34.8+57.1+6.8*3
A72: EF FJ1a~FJ1e | B72: 280 | C72: 0.6*2.3*47.4 | D72: =結構計算 ->  | E72: F | F72: 1.5*2*47.4 | H72: #5 | I72: 6*(47+58+58+58+61) | K72: #10 | L72: (52.5+0.55*2+2.21*5)*4 | N72: =(41.8+0.5*2+2.21*4)*2+5.5*2+6.9*2*3+7.3*2 -> 170.28
A73: =7.8+9.8+9.8+9.8+10.2 -> 47.4 | H73: #5 | I73: (52.5+0.89*5)*10 | K73: #10 | L73: (52.5+0.55*2+2.87*5)*4 | N73: =3.95*2+(45.35+2.87*4)*2+6.55*2+7.2*2*2+7.25*2+4.65*2 -> 187.26
A74: =47.4+0.6+1*4+0.6 -> 52.6 | I74: 地樑施工支拌撐筋6.4m | K74: #10 | L74: 170.28+187.26+6.4*5
A75: DE FJ2b~FJ2e | B75: 280 | C75: 0.6*2.3*(9.8+10.2) | D75: =結構計算 ->  | E75: F | F75: 1.5*2*20 | G75: =結構計算 ->  | H75: #5 | I75: 6*(60+61) | K75: #10 | L75: (44.1+0.55*2+2.21*4)*4 | N75: =6.9*2*3+7.3*2 -> 56
B76: 280 | C76: 0.6*4.05*19.6 | D76: =結構計算 ->  | E76: F | F76: 3.25*2*19.6 | H76: #5 | I76: 9.5*(60*2) | K76: #10 | L76: (11.7+0.55*2+2.87)*4 | N76: =4.65*2*2 -> 18.6
B77: 280 | C77: 0.6*1.75*1.75*0.5*2 | D77: =結構計算 ->  | E77: F | F77: 1.75*1.75*2*2 | H77: #5 | I77: (44.1+0.89*4)*10 | K77: #10 | L77: (22.5+0.5*2+2.87*2)*4 | N77: =8.8*2*2+7.2*2 -> 49.6
H78: #5 | I78: (22.5+0.89*2)*12 | K78: #10 | L78: (11.7+0.55*2+2.87)*4 | N78: =4.65*2*2 -> 18.6
I79: 地樑施工支拌撐筋6.4m,9.9 | K79: #10 | L79: 56+18.5+40.5+18.5+6.4*2+9.9*2
A80: EF FJ3a~FJ3e | B80: 280 | C80: 0.6*2.3*47.4 | D80: =結構計算 ->  | E80: F | F80: 1.5*2*47.4 | G80: =結構計算 ->  | H80: #5 | I80: 6*(47+58*3+61) | K80: #10 | L80: (52.5+0.55*2+2.21*5)*4 | N80: =5.5*2+6.9*2*3+7.3*2 -> 67
A81: =7.8+9.8+9.8+9.8+10.2 -> 47.4 | H81: #5 | I81: (52.5+0.89*5)*10 | J81: =結構計算 ->  | K81: #10 | L81: (52.5+0.55*2+2.87*5)*4 | N81: =3.5*2+6.55*2+7.2*2*3+4.25*2 -> 71.8
A82: =47.4+0.6+1*4+0.6 -> 52.6 | I82: 地樑施工支拌撐筋6.4m | K82: #10 | L82: 67+71.8+6.4*5
A83: EF FJ4a~FJ4e | B83: 280 | C83: 0.6*2.3*47.4 | D83: =結構計算 ->  | E83: F | F83: 1.5*2*47.4 | H83: #5 | I83: 6*(47+58*3+61) | J83: =結構計算 ->  | K83: #10 | L83: (52.5+0.55*2+2.21*5)*4 | N83: =5.5*2+6.9*2*3+7.3*2 -> 67
A84: =7.8+9.8+9.8+9.8+10.2 -> 47.4 | H84: #5 | I84: (52.5+0.89*5)*10 | K84: #10 | L84: (52.5+0.55*2+2.87*5)*4 | N84: =3.5*2+6.55*2+7.2*2*3+4.25*2 -> 71.8
A85: =47.4+0.6+1*4+0.6 -> 52.6 | I85: 地樑施工支拌撐筋6.4m | K85: #10 | L85: 67+71.8+6.4*5
A86: EF FJ5b~FJ5e | B86: 280 | C86: 0.6*2.3*39.6 | D86: =結構計算 ->  | E86: F | F86: 1.5*2*39.6 | G86: =結構計算 ->  | H86: #5 | I86: 6*(59+58*2+61) | J86: =結構計算 ->  | K86: #10 | L86: (44.1+0.55*2+2.21*4)*4 | N86: =6.9*2*3+7.3*2 -> 56
A87: =9.8+9.8+9.8+10.2 -> 39.6 | H87: #5 | I87: (44.1+0.89*4)*10 | K87: #10 | L87: (44.1+0.55*2+2.87*4)*4 | N87: =4.65*2+7.25*2+7.2*2+7.25*2+4.25*2 -> 61.2
A88: =39.6+1*4+0.6 -> 44.2 | I88: 地樑施工支拌撐筋6.4m | K88: #10 | L88: 56+61.2+6.4*4
A89: A,B FJ6a | B89: 280 | C89: 0.6*2.3*7.8 | D89: =結構計算 ->  | E89: F | F89: 1.5*2*7.8+0.2*4.05 | H89: #5 | I89: 6*47 | K89: #10 | L89: (9.3+0.55*2+2.21)*4 | N89: =5.5*2 -> 11
H90: #5 | I90: 9.3*10 | K90: #10 | L90: (9.3+0.55*2+2.87)*4
I91: 地樑施工支拌撐筋6.4m | K91: #10 | L91: 11+6.4*1
A92: A,B FJ6b | B92: 280 | C92: 0.6*2.3*7.8 | D92: =結構計算 ->  | E92: F | F92: 1.5*2*7.8+0.2*4.05 | G92: =結構計算 ->  | H92: #5 | I92: 6*47 | K92: #10 | L92: (9.3+0.55*2+2.21)*4 | N92: =5.5*2 -> 11
H93: #5 | I93: 9.3*10 | K93: #10 | L93: (9.3+0.55*2+2.87)*4
I94: 地樑施工支拌撐筋6.4m | K94: #10 | L94: 11+6.4*1
A95: D,E FJ7 | B95: 280 | C95: 0.6*2.3*8*2+0.15*0.6*4.4*2 | D95: =結構計算 ->  | E95: F | F95: (1.5*2*8+0.2*4.4)*2 | H95: #5 | I95: 6*48*2 | K95: #10 | L95: (9.9+0.55*2+2.21)*4 | N95: =5.5*2 -> 11
E96: F | F96: 0.15*4.4*4 | H96: #5 | I96: 9.9*10 | K96: #10 | L96: (9.9+0.55*2+2.87)*4 | N96: =4.2*2*2 -> 16.8
I97: 地樑施工支拌撐筋6.4m | K97: #10 | L97: 11+16.8+6.4*1
A98: FJ 0 | B98: 280 | C98: 0.4*2.3*3.55 | D98: =結構計算 ->  | E98: F | F98: (1.5+1.7)*3.55 | G98: =結構計算 ->  | H98: #5 | I98: 5.6*24 | K98: #10 | L98: (4.65+0.55*2)*4 | N98: =5.5*2 -> 11
H99: #5 | I99: 4.65*10 | K99: #10 | L99: (4.65+0.55*2)*4 | N99: =4.2*2*2 -> 16.8
A100: FJ 0 | B100: 280 | C100: 0.4*2.45*2.2 | D100: =結構計算 ->  | E100: F | F100: (1.65+1.85)*2.2 | H100: #5 | I100: 5.9*15 | K100: #10 | L100: (3.3+0.55*2)*4 | N100: =5.5*2 -> 11
H101: #5 | I101: 3.3*10 | K101: #10 | L101: (3.3+0.55*2)*4 | N101: =4.2*2*2 -> 16.8
A102: B2 S1 | B102: 280 | C102: 0.2*1360.2 | D102: =結構計算 ->  | E102: A | F102: 1360.2 | H102: #4 | I102: 31.41*1360.2 | N102: =(9.8*3+10.2)*(4.05+3.7*2+3.6+3.8+3.1+3.1+4.2)-11.65*3.13*0.5+7.8*2.25+3.55*4.05+3.55*3.55+7.8*(1.4+3.35+4.05+3.7*2+2.7+3.5+4.2)+8*(2.15+2.2+2.25)-4*3.5-2.2*4.4-61 -> 1360.19775 | O102: =(9.8*3+10.2)*(3.7*2+4.05) -> 453.42 | P102: =(44.2+0.71*4+0.35+0.4)*(19*2+21)*2+(14.65+0.4+0.71+0.35)*(66*3+69)*2 -> 14241.96 | Q102: =+P102/O102 -> 31.41008337
A103: B2 S1* | B103: 280 | C103: 0.2*441.54 | D103: =結構計算 ->  | E103: A | F103: 441.54*1 | H103: #4 | I103: 50.53*441.54 | N103: =(9.8*3+10.2)*(4.1+3.7+3.35) -> 441.54 | O103: 441.54 | P103: =(44.2+0.71*4+0.35+0.4)*(23+25+28)*2+(17.35+0.4+0.71+0.35)*(99*3+103)*2 -> 22312.08 | Q103: =+P103/O103 -> 50.53240929
A104: B2 rS1 | B104: 280 | C104: 0.3*61 | D104: =結構計算 ->  | E104: A | F104: 61*1 | H104: #4 | I104: 21.31*61 | K104: #5 | L104: 17.56*61 | N104: =6.1*10 -> 61
A105: B2 C1-1010~-430 | B105: 280 | C105: 0.8*0.8*(2.3+3.5)*1 | D105: =結構計算 ->  | E105: F | F105: 3.2*(2.3+3.5)*1 | H105: #4 | I105: 6.6*(15+31)*1 | K105: #8 | L105: (2.2+0.4+3.5+2)*20
K106: #8C | L106: 20*1
A107: B2 C2 -1010~-430 | B107: 280 | C107: 0.8*0.8*(2.3+3.5)*5 | D107: =結構計算 ->  | E107: F | F107: 3.2*(2.3+3.5)*5 | H107: #4 | I107: 6.6*(15+31)*5 | K107: #8 | L107: (2.2+0.4+3.5+2)*20*5
K108: #8C | L108: 20*5
A109: B2 C3 -1010~-430 | B109: 280 | C109: 0.8*0.8*(2.3+3.5)*4 | D109: =結構計算 ->  | E109: F | F109: 3.2*(2.3+3.5)*4 | H109: #4 | I109: 6.6*(15+31)*4 | K109: #8 | L109: (2.2+0.4+3.5+2)*20*4
K110: #8C | L110: 20*4
A111: B2 C4 -1010~-430 | B111: 280 | C111: 1*1*(2.3+3.5)*2 | D111: =結構計算 ->  | E111: F | F111: 4*(2.3+3.5)*2 | H111: #4 | I111: 10.3*(15+31)*2 | K111: #10 | L111: (2.2+0.55+3.5+2)*24*2
K112: #10C | L112: 24*2
A113: B2 C4 -1010~-255 | B113: 280 | C113: 1*1*(4.05+3.5)*2 | D113: =結構計算 ->  | E113: F | F113: 4*(4.05+3.5)*2 | H113: #4 | I113: 10.3*(26+31)*2 | K113: #10 | L113: (3.95+0.55+3.5+2)*24*2
K114: #10C | L114: 24*2
A115: B2 C4 -835~255 | B115: 280 | C115: 1*1*(2.3+3.5)*8 | D115: =結構計算 ->  | E115: F | F115: 4*(2.3+3.5)*8 | H115: #4 | I115: 10.3*(15+31)*8 | K115: #10 | L115: (2.2+0.55+3.5+2)*24*8
K116: #10C | L116: 24*8
A117: B2 C5 -1010~-430 | B117: 280 | C117: 1*1*(2.3+3.5)*3 | D117: =結構計算 ->  | E117: F | F117: 4*(2.3+3.5)*3 | H117: #4 | I117: 12.4*(15+31)*3 | K117: #10 | L117: (2.2+0.55+3.5+2)*48*3
K118: #10C | L118: 48*3
A119: B2 C5 -1010~-255 | B119: 280 | C119: 1*1*(4.05+3.5)*1 | D119: =結構計算 ->  | E119: F | F119: 4*(4.05+3.5)*1 | H119: #4 | I119: 12.4*(26+31)*1 | K119: #10 | L119: (3.95+0.55+3.5+2)*48*1
K120: #10C | L120: 48*1
A121: B2 C5 -835~255 | B121: 280 | C121: 1*1*(2.3+3.5)*8 | D121: =結構計算 ->  | E121: F | F121: 4*(2.3+3.5)*8 | H121: #4 | I121: 12.4*(15+31)*8 | K121: #10 | L121: (2.2+0.55+3.5+2)*48*8
K122: #10C | L122: 48*8
A123: B2 C6 -1010~-430 | B123: 280 | C123: 1*1*(2.3+3.5)*1 | D123: =結構計算 ->  | E123: F | F123: 4*(2.3+3.5)*1 | H123: #4 | I123: 12.4*(15+31)*1 | K123: #10 | L123: (2.2+0.55+3.5+2)*32*1
K124: #10C | L124: 32*1
A125: B2 C6 -835~255 | B125: 280 | C125: 1*1*(2.3+3.5)*3 | D125: =結構計算 ->  | E125: F | F125: 4*(2.3+3.5)*3 | H125: #4 | I125: 12.4*(15+31)*3 | K125: #10 | L125: (2.2+0.55+3.5+2)*32*3
K126: #10C | L126: 32*3
A127: B2 C7 -835~255 | B127: 280 | C127: 1*1*(2.3+3.5)*2 | D127: =結構計算 ->  | E127: F | F127: 4*(2.3+3.5)*2 | H127: #4 | I127: 10.3*(15+31)*2 | K127: #10 | L127: (2.2+0.55+3.5+2)*24*2
K128: #10C | L128: 24*2
A129: B2 C8-1010~-430 | B129: 280 | C129: 0.6*0.6*(2.3+3.5)*2 | D129: =結構計算 ->  | E129: F | F129: 2.4*(2.3+3.5)*2 | H129: #4 | I129: 5*(15+31)*2 | K129: #8 | L129: (2.2+0.4+3.5+2)*16*2
K130: #8C | L130: 16*2
A131: B2 C8-1010~-255 | B131: 280 | C131: 0.6*0.6*(4.05+3.5)*6 | D131: =結構計算 ->  | E131: F | F131: 2.4*(4.05+3.5)*6 | H131: #4 | I131: 5*(26+31)*6 | K131: #8 | L131: (3.95+0.4+3.5+2)*16*6
K132: #8C | L132: 16*6
A133: B2 C8-835~-255 | B133: 280 | C133: 0.6*0.6*(2.3+3.5)*1 | D133: =結構計算 ->  | E133: F | F133: 2.4*(2.3+3.5)*1 | H133: #4 | I133: 5*(15+31)*1 | K133: #8 | L133: (2.2+0.4+3.5+2)*16*1
K134: #8C | L134: 16*1
A135: 筏基內25CMRC 牆 | B135: 280 | C135: 0.25*26.7 | D135: =結構計算 ->  | E135: F | F135: 26.7*2 | H135: #4 | I135: 13.03*26.7 | K135: #5 | L135: 30.62*26.7 | N135: =1.5*(1.28+3.22+3.98+3.22+3.98+2.12) -> 26.7
A136: 筏基內20CMRC 牆 | B136: 280 | C136: 0.2*40.23 | E136: F | F136: 40.23*2 | H136: #4 | I136: 40.06*40.23 | N136: =1.5*(2.2+2.25+1.4+4.1+3.7+3.35+1.4+3.4+1.5+3.52) -> 40.23
A137: 筏基內30CMRC 牆 | B137: 280 | C137: 0.3*34.8 | E137: F | F137: 34.8*2 | H137: #5 | I137: 58.2*34.8 | N137: =1.5*(5.9*2+3.9*2+1.8*2) -> 34.8
A138: B2 地下室外牆 40 | B138: 280 | C138: 0.4*408.38 | E138: F | F138: 408.38*2 | H138: #5 | I138: 12.59*408.38 | K138: #6 | L138: 40.39*408.38 | N138: =2.7*(9.8*2+7.4+8*4+6.9+4.1+7.7+10*3+10.5+2.15+6.9+8*3) -> 408.375
A139: B2 地下室外牆 50 | B139: 280 | C139: 0.5*74.52 | E139: F | F139: 74.52*2 | H139: #6 | I139: 17.48*74.52 | K139: #7 | L139: 52.52*74.52 | N139: =2.7*(8*1+9.8*2) -> 74.52 | O139: 採搭接
A140: B2F 15CMＲＣ牆 | B140: 280 | C140: 0.15*743.86 | E140: F | F140: 743.86*2 | H140: #4 | I140: 30.73*743.86 | J140: =結構計算 ->  | N140: =2.8*13+3.1*1.5+2.7*1+2.8*42.2+2.7*(8*3+3.35*3)+3.1*3.05+2.8*(8.05+5.6+4.3+1)+2.7*7.4+3.3*(9.9+8.25+2.5)+2.7*(5+5.5)+3.3*(2.45+3.75+5.25+5.87)+3.3*(3.95+7.4+5+4.7+8.9)+2.7*(2.4+4.1)+3.1*3.5+3.3*1.2+4.35*(3.9*2+10.2*2) -> 743.856
A141: B2F 20CM隔牆 | B141: 280 | C141: 0.2*7.88 | E141: F | F141: 7.88*2 | H141: #4 | I141: 34.3*7.88 | N141: =3.5*2.25 -> 7.875
A142: B2F 25CM車道牆 | B142: 280 | C142: 0.25*84.64 | E142: F | F142: 84.64*2 | H142: #4 | I142: 11.72*84.64 | K142: #5 | L142: 26.48*84.64 | N142: =2.8*(4.17+7.46+10.6+8) -> 84.644
A143: B2F 30CM 水箱牆 | B143: 280 | C143: 0.3*57.32 | E143: F | F143: 57.32*2 | H143: #5 | I143: 36.64*57.32 | N143: =2.2*(5.8+6.7)*2+0.2*5.8*2 -> 57.32
A144: B2F 30CM 水箱底 | B144: 280 | C144: 0.3*38.86 | E144: A | F144: 38.86*1 | H144: #5 | I144: 43.91*38.86 | N144: =5.8*6.7 -> 38.86
A145: B2F 20CM 水箱頂 | B145: 280 | C145: 0.2*38.86 | E145: A | F145: 38.86*1 | H145: #4 | I145: 28.61*38.86 | N145: =7.1*39*2+6.2*45*2 -> 1111.8 | O145: =+N145/38.86 -> 28.61039629
A146: B2F 階梯 | B146: 280 | C146: 0.28*27.87 | E146: F | F146: 27.87+3.3*3.5*2+1.75*2.05 | H146: #4 | I146: 46.6*27.87 | N146: =2.05*3.3+1.5*3+2.05*3.3+1.5*2.95+1.9*2.85 -> 27.87
A147: B2F 樓梯平台 | B147: 280 | C147: 0.2*11.5 | E147: F | F147: 7.4*1 | H147: #4 | I147: 48*7.4 | K147: #5 | L147: 1.6*7.4 | N147: =3*1.75+3.3*1.88 -> 11.454
A148: 車道側樑 | B148: 280 | C148: 0.5*0.8*8*4 | E148: F | F148: 1.8*8*4 | H148: #4 | I148: 2.7*81*4 | K148: #10 | L148: (9.9+0.55*2+2.87)*7*4
H149: #6 | I149: 9.9*4*4 | K149: #10 | L149: (9.9+0.55*2+2.21)*7*4
A150: 1 B1 WB1~WB1 | B150: 280 | C150: 0.6*0.8*43 | D150: =結構計算 ->  | E150: F | F150: 1.8*43+0.2*3.35 | H150: #4 | I150: 2.8*(28+47+54*4) | K150: #10 | L150: (49.5+0.55*2+2.87*5)*4 | N150: =(0.55+1.55)*4 -> 8.4
A151: =8*4+6.9+4.1 -> 43 | H151: #4 | I151: (49.5+0.71*5)*4 | K151: #10 | L151: (49.5+0.55*2+2.21*5)*4 | N151: 高低差斷筋錨定
A152: 6 B1 WB1~WB1 | B152: 280 | C152: 0.6*0.8*33.05 | D152: =結構計算 ->  | E152: F | F152: 1.8*33.05 | G152: =結構計算 ->  | H152: #4 | I152: 2.8*(54*3+47+15)+3*81 | K152: #10 | L152: (47.3+0.55*2+2.87*5)*4
A153: =8*3+6.9+2.15 -> 33.05 | B153: 280 | C153: 0.7*0.8*8 | D153: =結構計算 ->  | E153: F | F153: 1.8*8 | H153: #4 | I153: (47.35+0.71*5)*4+9.9*4 | K153: #10 | L153: (47.35+0.55*2+2.21*5)*4
A154: A B1 WB1~WB1 | B154: 280 | C154: 0.6*0.8*27 | D154: =結構計算 ->  | E154: F | F154: 1.8*27 | H154: #4 | I154: 2.8*(50+66*2)+3*(99*2) | K154: #10 | L154: (52.5+0.55*2+2.87*5)*4
A155: =7.4+9.8*2 -> 27 | B155: 280 | C155: 0.7*0.8*19.6 | D155: =結構計算 ->  | E155: F | F155: 1.8*19.6 | H155: #4 | I155: (52.5+0.71*5)*4 | K155: #10 | L155: (52.5+0.55*2+2.21*5)*4
A156: =46.6+1*6 -> 52.6 | H156: #4 | I156: (22.5+0.71*2)*4
A157: G B1 WB1~WB1 | B157: 280 | C157: 0.6*0.8*48.2 | D157: =結構計算 ->  | E157: F | F157: 1.8*48.2 | H157: #4 | I157: 2.8*(52+67*3+71) | K157: #10 | L157: (52.7+0.55*2+2.87*5)*4
A158: =7.7+10*3+10.5 -> 48.2 | H158: #4 | I158: (52.7+0.71*5)*4 | K158: #10 | L158: (52.7+0.55*2+2.21*5)*4
A159: F B1 G1a~G1e | B159: 280 | C159: 0.6*0.8*47.8 | D159: =結構計算 ->  | E159: F | F159: 1.8*47.8 | G159: =結構計算 ->  | H159: #4 | I159: 2.8*(46+84+82+83+83) | K159: #10 | L159: (52.5+0.55*2+2.87*5)*3 | N159: =3.6*2+6*3+6.8*3*3+4.3*3 -> 99.3
A160: =7.7+10+10+10+10.1 -> 47.8 | H160: #4 | I160: (52.5+0.71*5)*4 | K160: #10 | L160: (52.5+0.55*2+2.21*5)*3 | N160: =5.6*2+7.2*3*3+7.3*3 -> 97.9
A161: =47.8+0.8*6 -> 52.6 | K161: #10 | L161: 99.3+97.9
A162: E B1 G2a | B162: 280 | C162: 0.6*0.8*7.4 | D162: =結構計算 ->  | E162: F | F162: 1.8*7.4+0.2*2.2 | H162: #4 | I162: 2.8*50 | K162: #10 | L162: (9.3+0.55*2+2.87)*3 | N162: =3.75*3*2 -> 22.5
A163: =8.4-1 -> 7.4 | H163: #4 | I163: 9.3*4 | K163: #10 | L163: (9.3+0.55*2+2.21)*3 | N163: =5.3*2 -> 10.6
A164: =8.4+1 -> 9.4 | K164: #10 | L164: 22.5+10.6
A165: E B1 G2b~G2e | B165: 280 | C165: 0.6*0.8*39.2 | D165: =結構計算 ->  | E165: F | F165: 1.8*39.4 | H165: #4 | I165: 2.8*(74*4) | K165: #10 | L165: (44.1+0.55*2+2.87*4)*3 | N165: =4.45*3*2+6.9*3*4 -> 109.5
A166: =9.8*4 -> 39.2 | H166: #4 | I166: (44.1+0.89*4)*4 | K166: #10 | L166: (44.1+0.55*2+2.21*4)*3 | N166: =7.1*3*4 -> 85.2
A167: =39.2+1*5 -> 44.2 | K167: #10 | L167: 109.5+85.2
A168: D B1 G3a GL-4.35 | B168: 280 | C168: 0.6*0.8*7.4 | D168: =結構計算 ->  | E168: F | F168: 1.8*7.4 | H168: #4 | I168: 2.8*44 | K168: #10 | L168: (9.3+0.55*2+2.87)*3 | N168: =3.75*3*2 -> 22.5
A169: =8.4-1 -> 7.4 | H169: #4 | I169: 9.3*4 | K169: #10 | L169: (9.3+0.55*2+2.21)*3 | N169: =5.3*2 -> 10.6
A170: =8.4+1 -> 9.4 | K170: #10 | L170: 22.5+10.6
A171: D B1 G3a~G3c | B171: 280 | C171: 0.6*0.8*27 | D171: =結構計算 ->  | E171: F | F171: 1.8*27 | G171: =結構計算 ->  | H171: #4 | I171: 2.8*(46+84+82) | K171: #10 | L171: (30.9+0.55*2+2.87*3)*3 | N171: =3.75*3+6.2*3+6.9*3+4.45*3 -> 63.9
A172: =7.4+9.8*2 -> 27 | H172: #4 | I172: (30.9+0.71*3)*4 | K172: #10 | L172: (30.9+0.55*2+2.21*3)*3 | N172: =5.3*2+7.1*3*2 -> 53.2
A173: =27+1*4 -> 31 | K173: #10 | L173: 63.9+53.2
A174: D B1 G3d | B174: 280 | C174: 0.6*0.8*9.8 | D174: =結構計算 ->  | E174: F | F174: 1.8*9.8+0.2*5.6 | G174: =結構計算 ->  | H174: #4 | I174: 2.8*82 | K174: #10 | L174: (11.7+0.55*2+2.87)*3 | N174: =4.45*3*2 -> 26.7
A175: 9.8 | H175: #4 | I175: (11.7+0.71)*4 | K175: #10 | L175: (11.7+0.55*2+2.21)*3 | N175: =7.1*3 -> 21.3
A176: =9.8+2 -> 11.8 | K176: #10 | L176: 26.7+21.3
A177: D B1 G3e | B177: 280 | C177: 0.6*0.8*9.8 | D177: =結構計算 ->  | E177: F | F177: 1.8*9.8 | H177: #4 | I177: 2.8*82 | K177: #10 | L177: (11.7+0.55*2+2.87)*3 | N177: =4.45*3*2 -> 26.7
A178: 9.8 | H178: #4 | I178: (11.7+0.71)*4 | K178: #10 | L178: (11.7+0.55*2+2.21)*3 | N178: =7.1*3 -> 21.3
A179: =9.8+2 -> 11.8 | K179: #10 | L179: 26.7+21.3
A180: C B1 G4a~G4e | B180: 280 | C180: 0.6*0.8*46.6 | D180: =結構計算 ->  | E180: F | F180: 1.8*46.6 | G180: =結構計算 ->  | H180: #4 | I180: 2.8*(44+58+66*2+82) | J180: =結構計算 ->  | K180: #10 | L180: (52.5+0.55*2+2.87*5)*3 | N180: =3.75*3+6.2*3+6.9*3*3+4.45*3 -> 105.3
A181: =7.4+9.8*4 -> 46.6 | H181: #4 | I181: (52.5+0.71*5)*4 | K181: #10 | L181: (52.5+0.55*2+2.21*5)*3 | N181: =5.3*2+7.1*3*4 -> 95.8
A182: =46.6+1*6 -> 52.6 | K182: #10 | L182: 105.3+95.8
A183: B B1 G5a~G5e | B183: 280 | C183: 0.6*0.8*46.6 | D183: =結構計算 ->  | E183: F | F183: 1.8*46.6+0.4*9.8*2+0.2*4 | H183: #4 | I183: 2.8*(44+74+66+58+82) | K183: #10 | L183: (52.5+0.55*2+2.87*5)*3 | N183: =3.75*3+6.2*3+6.9*3*3+4.45*3 -> 105.3
A184: =7.4+9.8*4 -> 46.6 | H184: #4 | I184: (52.5+0.71*5)*4 | K184: #10 | L184: (52.5+0.55*2+2.21*5)*3 | N184: =5.3*2+7.1*3*4 -> 95.8
A185: =46.6+1*6 -> 52.6 | K185: #10 | L185: 105.3+95.8
A186: 2 B1 B1a~B1c | B186: 280 | C186: 0.6*0.8*22.6 | D186: =結構計算 ->  | E186: F | F186: 1.8*22.6 | G186: =結構計算 ->  | H186: #4 | I186: 2.8*(29+53+61) | K186: #10 | L186: (22.5+0.55*2+2.87*2)*3 | N186: =8.3*1+4.7*2+5.5*3+3.9*3 -> 45.9
A187: =4.1+6.9+8 -> 19 | H187: #4 | I187: (22.5+0.71*2)*4 | K187: #10 | L187: (22.5+0.55*2+2.21*2)*3 | N187: =(12.15+2.21)+5*1+5.8*3 -> 36.76
A188: =19+0.8*2+1*2 -> 22.6 | K188: #10 | L188: 45.9+36.76
A189: 2 B1 B2a~B2c | B189: 280 | C189: 0.6*0.8*24 | D189: =結構計算 ->  | E189: F | F189: 1.8*24 | H189: #4 | I189: 2.8*(47+61+61) | K189: #10 | L189: (27.9+0.55*2+2.87*3)*3 | N189: =3.9*3*2+5.8*3*2 -> 58.2
A190: =8*3 -> 24 | H190: #4 | I190: (27.9+0.71*2)*4 | K190: #10 | L190: (27.9+0.55*2+2.21*3)*3 | N190: =5.8*2*2+5.8*3 -> 40.6
A191: =24+1*4 -> 28 | K191: #10 | L191: 58.2+40.6
A192: 3 B1 B3a~B3c | B192: 280 | C192: 0.6*0.8*14.8 | D192: =結構計算 ->  | E192: F | F192: 1.8*14.8 | G192: =結構計算 ->  | H192: #4 | I192: 2.8*(29+53+27) | K192: #10 | L192: (17.3+0.55*2+2.87)*3 | N192: =8.3*2+4.7+4.9*1+7.4*2 -> 41
A193: =4.1+6.9+3.8 -> 14.8 | H193: #4 | I193: (17.3+0.71)*4 | K193: #10 | L193: (17.3+0.55*2+2.21)*4 | N193: =(12.15+2.21) -> 14.36
A194: =14.8+0.8*2+1 -> 17.4 | K194: #10 | L194: 41+14.36
A195: 3 B1 B4a~B4d | B195: 280 | C195: 0.6*0.8*28.2 | D195: =結構計算 ->  | E195: F | F195: 1.8*28.2 | G195: =結構計算 ->  | H195: #4 | I195: 2.8*(35+61*3) | J195: =結構計算 ->  | K195: #10 | L195: (32.1+0.55*2+2.21*3)*3 | N195: =8.1*1+5.2*1+(17.1+2.87)*1+5.8*2+5.8*3+3.9*3 -> 73.97
A196: =4.2+8*3 -> 28.2 | H196: #4 | I196: (32.1+0.71*3)*4 | K196: #10 | L196: (32.1+0.55*2+2.87*3)*3 | N196: =(12.6+2.21)*2+5.8*1+5.8*3+5.8*3 -> 70.22
A197: =28.2+4 -> 32.2 | K197: #10 | L197: 73.97+70.22
A198: 4 B1 B5a~B5c | B198: 280 | C198: 0.6*0.8*14.8 | D198: =結構計算 ->  | E198: F | F198: 1.8*14.8 | G198: =結構計算 ->  | H198: #4 | I198: 2.8*(29+53+33) | J198: =結構計算 ->  | K198: #10 | L198: (17.3+0.55*2+2.87)*3 | N198: =8.3*2+4.7+4.9*1+7.4*2 -> 41
A199: =4.1+6.9+3.8 -> 14.8 | H199: #4 | I199: (17.3+0.71)*4 | K199: #10 | L199: (17.3+0.55*2+2.21)*5 | N199: 5*1
A200: =14.8+0.8*2+1 -> 17.4 | K200: #10 | L200: 41+5
A201: 4 B1 B6a~B6d | B201: 280 | C201: 0.6*0.8*28.2 | D201: =結構計算 ->  | E201: F | F201: 1.8*28.2+0.2*(3.35+8) | G201: =結構計算 ->  | H201: #4 | I201: 2.8*(35+61*3) | J201: =結構計算 ->  | K201: #10 | L201: (32.1+0.55*2+2.21*3)*3 | N201: =8.1*2+5.2*1+5.8*3+5.8*3+3.9*3 -> 67.9
A202: =4.2+8*3 -> 28.2 | H202: #4 | I202: (32.1+0.71*3)*4 | K202: #10 | L202: (32.1+0.55*2+2.87*3)*3 | N202: =(12.6+2.21)*2+5.8*1+5.8*3+5.8*3 -> 70.22
... 678 more rows

Sheet 鋼構
A2: 鋼 結 構 數 量 計 算 表
A3: 業 主: 樂迦再生科技股份有限公司 | F3: 日 期:2022-
A4: 工程名稱:竹北生醫園區廠房新建工程 | F4: 施工地點:
A5: 項目編號 | B5: 鋼料型類 | C5: 類別 | D5: 數 量 計 算 | E5: 數 量 | F5: 重量 | G5: 損耗 | H5: 總重 | I5: 防火漆 | J5: 位置 | K5: 面積 | M5: 被襯板12*35
A6: B1~2F+120 SC1 -255~+815 | B6: 口-700*700*42 | C6: 口-SN490YC | D6: 10.7*29 | E6: =鋼構 ->  | F6: 877 | G6: 1.06 | H6: =E6*F6*G6 ->  | I6: 2.8 | J6: 2.1 | K6: =2.8*29*2.1 -> 170.52 | L6: =(0.7*2+0.616*2)*42*7.85*1+9.42 -> 877.1904 | M6: =0.012*0.025*7850*4 -> 9.42
B7: 底板 PL-40 | C7: PL-A36 | D7: 0.7*0.7*29 | E7: =鋼構 ->  | F7: =40*7.85 -> 314 | G7: 1.06
B8: 變斷面加勁PL-25 | C8: PL-SN490B | D8: 0.616*0.616*29 | E8: =鋼構 ->  | F8: =25*7.85 -> 196.25 | G8: 1.06
B9: 背襯板 PL-25*47 | C9: PL-SN490B | D9: 0.047*0.616*6*29 | E9: =鋼構 ->  | F9: =25*7.85 -> 196.25 | G9: 1.06
B10: M-36 預埋螺栓 L=700 | C10: M-36A.B | D10: 4*29 | E10: =鋼構 ->  | F10: 1 | G10: 1
B11: 不收縮砂漿 | C11: N.C | D11: 0.05*0.75*0.75*29 | E11: =鋼構 ->  | F11: 1 | G11: 1.1
B12: 1F接樑加勁板 PL-35 | C12: PL-SN490B | D12: 0.616*0.616*(2*29+1*5) | E12: =鋼構 ->  | F12: =35*7.85 -> 274.75 | G12: 1.06 | H12: =E12*F12*G12 -> 
B13: 2F接樑加勁板 PL-35 | C13: PL-SN490B | D13: 0.616*0.616*2*3 | E13: =鋼構 ->  | F13: =35*7.85 -> 274.75 | G13: 1.06 | H13: =E13*F13*G13 -> 
B14: 2F接樑加勁板 PL-32 | C14: PL-SN490B | D14: 0.616*0.616*2*26 | E14: =鋼構 ->  | F14: =32*7.85 -> 251.2 | G14: 1.06 | H14: =E14*F14*G14 -> 
B15: 1,2F背襯板 PL-25*47 | C15: PL-SN490B | D15: 0.047*0.616*6*29*4 | E15: =鋼構 ->  | F15: =25*7.85 -> 196.25 | G15: 1.06
B16: B1 剪力釘 | C16: 19∮*76 | D16: (7*4+12*3*4)*19 | E16: =鋼構 ->  | F16: 1 | G16: 1 | H16: =E16*F16*G16 -> 
B17: 1F 剪力釘 | C17: 19∮*76 | D17: (34*3*4)*19 | E17: =鋼構 ->  | F17: 1 | G17: 1 | H17: =E17*F17*G17 -> 
B18: 25∮TIE BOLT | C18: 25∮TIE | D18: 2*21*29 | E18: =鋼構 ->  | F18: 1 | G18: 1 | H18: =E18*F18*G18 -> 
B19: 灌漿孔補強板 PL-21 | C19: PL-SN490B | D19: 0.4*0.4*29 | E19: =鋼構 ->  | F19: =21*7.85 -> 164.85 | G19: 1.06 | H19: =E19*F19*G19 -> 
B20: 柱內灌漿 | C20: SSC | D20: 0.616*0.616*10.7*29 | E20: =鋼構 ->  | F20: 1 | G20: 1.05
A21: 1F WB2 | B21: BH-550*300*16*35 | C21: BH-SN490B | D21: 7.7+10.1*4+8.3*7 | E21: =鋼構 ->  | F21: 226.2 | G21: 1.06 | L21: =(0.3*2*35*7.85+0.48*16*7.85)*1.005 -> 226.26369
B22: 接合板 PL-25*170*430 | C22: PL-SN490B | D22: 0.17*0.43*2*12 | E22: =鋼構 ->  | F22: =25*7.85 -> 196.25 | G22: 1.06
B23: FB PL-9*25*36 | C23: PL-SN490B | D23: 0.025*0.36*2*2*12 | E23: =鋼構 ->  | F23: =9*7.85 -> 70.65 | G23: 1.06
B24: S-10T | C24: M-24 | D24: 12*2*12 | E24: =鋼構 ->  | F24: 1 | G24: 1
B25: B1 剪力釘 | C25: 19∮*100 | D25: 2*(42+55*4+45*7) | E25: =鋼構 ->  | F25: 1 | G25: 1 | H25: =E25*F25*G25 -> 
A26: 1F G2a,G3a-,G4,G5,B1~B4 | B26: BH-550*300*16*35 | C26: BH-SN490B | D26: 7.7*4+10.1*12+8.3*15 | E26: =鋼構 ->  | F26: 226.2 | G26: 1.06 | H26: =E26*F26*G26 -> 
B27: 接合板 PL-25*170*430 | C27: PL-SN490B | D27: 0.17*0.43*2*31 | E27: =鋼構 ->  | F27: =25*7.85 -> 196.25 | G27: 1.06
B28: FB PL-9*25*36 | C28: PL-SN490B | D28: 0.025*0.36*2*2*31 | E28: =鋼構 ->  | F28: =9*7.85 -> 70.65 | G28: 1.06
B29: S-10T | C29: M-24 | D29: 12*2*31 | E29: =鋼構 ->  | F29: 1 | G29: 1
B30: B1 剪力釘 | C30: 19∮*100 | D30: 2*(42*4+55*12+45*15) | E30: =鋼構 ->  | F30: 1 | G30: 1
A31: 1F G2, G3 WB2 | B31: BH-550*300*16*35 | C31: BH-SN490B | D31: 2*2+2.35 | E31: =鋼構 ->  | F31: 226.2 | G31: 1.06 | H31: =E31*F31*G31 -> 
B32: 接合板 PL-25*170*430 | C32: PL-SN490B | D32: 0.17*0.43*3 | E32: =鋼構 ->  | F32: =25*7.85 -> 196.25 | G32: 1.06
B33: FB PL-9*25*36 | C33: PL-SN490B | D33: 0.025*0.36*3 | E33: =鋼構 ->  | F33: =9*7.85 -> 70.65 | G33: 1.06
B34: S-10T | C34: M-24 | D34: 12*3 | E34: =鋼構 ->  | F34: 1 | G34: 1
B35: B1 剪力釘 | C35: 19∮*100 | D35: 2*(11*2+13) | E35: =鋼構 ->  | F35: 1 | G35: 1
A36: 1F G2b~d B4c | B36: BH-1600*300*16*35 | C36: BH-SN490B | D36: 10.1*3+8.3*1 | E36: =鋼構 ->  | F36: 358.8 | G36: 1.06 | H36: =E36*F36*G36 ->  | L36: =(0.3*2*35*7.85+1.53*16*7.85)*1.005 -> 358.80309
B37: 接合板 PL-25*170*1480 | C37: PL-SN490B | D37: 0.17*1.48*2*4 | E37: =鋼構 ->  | F37: =25*7.85 -> 196.25 | G37: 1.06
B38: FB PL-9*25*36 | C38: PL-SN490B | D38: 0.025*0.36*2*2*4 | E38: =鋼構 ->  | F38: =9*7.85 -> 70.65 | G38: 1.06
B39: S-10T | C39: M-24 | D39: 21*2*4 | E39: =鋼構 ->  | F39: 1 | G39: 1
B40: B1 剪力釘 | C40: 19∮*100 | D40: 2*(55*3+45*1) | E40: =鋼構 ->  | F40: 1 | G40: 1
A41: 1F G2e | B41: BH-550*550*20*35 | C41: BH-SN490B | D41: 0.35*1 | E41: =鋼構 ->  | F41: 379.4 | G41: 1 | H41: =E41*F41*G41 ->  | L41: =(0.55*2*35*7.85+0.48*20*7.85)*1.005 -> 379.472925
A42: 1F B1b,B2b,B3b,B4b | B42: BH-550*400*20*35 | C42: BH-SN490B | D42: 0.35*4 | E42: =鋼構 ->  | F42: 296.6 | G42: 1 | L42: =(0.4*2*35*7.85+0.48*20*7.85)*1.005 -> 296.6358
A43: 1F WB1a | B43: BH-550*300*20*35 | C43: BH-SN490B | D43: 0.35*2 | E43: =鋼構 ->  | F43: 241.4 | G43: 1 | L43: =(0.3*2*35*7.85+0.48*20*7.85)*1.005 -> 241.41105
B44: B1 剪力釘 | C44: 19∮*76 | D44: 6*7 | E44: =鋼構 ->  | F44: 1 | G44: 1
C45: 19∮*100 | D45: 6*7 | E45: =鋼構 ->  | F45: 1 | G45: 1
A46: 1MF SJ4 A梯 | B46: RH-450*200*9*14 | C46: RH-A572 | D46: 3.5+3.1+2.8 | E46: =鋼構 ->  | F46: 74.9 | G46: 1.06 | H46: =E46*F46*G46 ->  | I46: =0.45*2+0.2*3 -> 1.5 | K46: =+I46*E46 -> 
A47: 接樑,柱 | B47: 接合板 PL-14 | C47: PL-SN490B | D47: 0.285*0.1*6 | E47: =鋼構 ->  | F47: =14*7.85 -> 109.9 | G47: 1.06
B48: S-10T | C48: M-20 | D48: 4*2*3 | E48: =鋼構 ->  | F48: 1 | G48: 1
B49: B1 剪力釘 | C49: 19∮*100 | D49: 2*(19+17+16) | E49: =鋼構 ->  | F49: 1 | G49: 1
B50: 柱內鋼板 PL-25 | C50: PL-SN490B | D50: 0.616*0.616*2 | E50: =鋼構 ->  | F50: =25*7.85 -> 196.25 | G50: 1.06
B51: SC7 補強 PL-20 | C51: PL-SN490B | D51: 0.4*0.4*2 | E51: =鋼構 ->  | F51: =20*7.85 -> 157 | G51: 1.06
B52: SC8 補強 PL-20 | C52: PL-SN490B | D52: 0.3*0.3*2 | E52: =鋼構 ->  | F52: =20*7.85 -> 157 | G52: 1.06
A53: 1MF SJ1 B梯 | B53: RH-600*200*11*17 | C53: RH-A572 | D53: 3.5*2 | E53: =鋼構 ->  | F53: 103 | G53: 1 | I53: =0.6*2+0.2*3 -> 1.8 | K53: =+I53*E53 -> 
B54: 接合板 PL-16 | C54: PL-SN490B | D54: 0.1*0.465*4 | E54: =鋼構 ->  | F54: =16*7.85 -> 125.6 | G54: 1.06
B55: 柱內鋼板 PL-25 | C55: PL-SN490B | D55: 0.616*0.616*2 | E55: =鋼構 ->  | F55: =25*7.85 -> 196.25 | G55: 1.06
B56: SC8 補強 PL-20 | C56: PL-SN490B | D56: 0.3*0.3*2*3 | E56: =鋼構 ->  | F56: =20*7.85 -> 157 | G56: 1.06 | H56: =E56*F56*G56 -> 
B57: S-10T | C57: M-24 | D57: 6*2*2 | E57: =鋼構 ->  | F57: 1 | G57: 1
B58: B1 剪力釘 | C58: 19∮*100 | D58: 2*20*2 | E58: =鋼構 ->  | F58: 1 | G58: 1
A59: 1MF SJ4 | B59: RH-450*200*9*14 | C59: RH-A572 | D59: 3*1 | E59: =鋼構 ->  | F59: 74.9 | G59: 1.06 | I59: =0.45*2+0.2*3 -> 1.5 | K59: =+I59*E59 -> 
A60: 接樑,柱 | B60: 接合板 PL-14 | C60: PL-SN490B | D60: 0.285*0.1*2 | E60: =鋼構 ->  | F60: =14*7.85 -> 109.9 | G60: 1.06
B61: S-10T | C61: M-20 | D61: 4*2*2 | E61: =鋼構 ->  | F61: 1 | G61: 1
B62: B1 剪力釘 | C62: 19∮*100 | D62: 2*16 | E62: =鋼構 ->  | F62: 1 | G62: 1
A63: 1MF SJ5 | B63: RH-350*175*7*11 | C63: RH-A36 | D63: 3.3*1 | E63: =鋼構 ->  | F63: 47.4 | G63: 1.06 | I63: =0.35*2+0.175*3 -> 1.225 | K63: =+I63*E63 -> 
A64: 接樑,柱 | B64: 接合板 PL-12 | C64: PL-A36 | D64: 0.566*0.295*2 | E64: =鋼構 ->  | F64: =12*7.85 -> 94.2 | G64: 1.06
B65: S-10T | C65: M-20 | D65: 4*2 | E65: =鋼構 ->  | F65: 1 | G65: 1
B66: B1 剪力釘 | C66: 19∮*100 | D66: 18*1 | E66: =鋼構 ->  | F66: 1 | G66: 1
A67: 1MF SJ4 C梯 | B67: RH-450*200*9*14 | C67: RH-A572 | D67: 2.65*2.8 | E67: =鋼構 ->  | F67: 74.9 | G67: 1.06 | I67: =0.45*2+0.2*3 -> 1.5 | K67: =+I67*E67 -> 
A68: 接樑,柱 | B68: 接合板 PL-14 | C68: PL-SN490B | D68: 0.285*0.1*2 | E68: =鋼構 ->  | F68: =14*7.85 -> 109.9 | G68: 1.06
B69: S-10T | C69: M-20 | D69: 4*2*2 | E69: =鋼構 ->  | F69: 1 | G69: 1
B70: B1 剪力釘 | C70: 19∮*100 | D70: 2*(15+16) | E70: =鋼構 ->  | F70: 1 | G70: 1
B71: 柱內鋼板 PL-25 | C71: PL-SN490B | D71: 0.616*0.616*2 | E71: =鋼構 ->  | F71: =25*7.85 -> 196.25 | G71: 1.06
B72: SC7 補強 PL-20 | C72: PL-SN490B | D72: 0.4*0.4*2 | E72: =鋼構 ->  | F72: =20*7.85 -> 157 | G72: 1.06
B73: SC8 補強 PL-20 | C73: PL-SN490B | D73: 0.3*0.3*2 | E73: =鋼構 ->  | F73: =20*7.85 -> 157 | G73: 1.06
A74: 1F SC7 | B74: RH-400*400*13*21 | C74: RH-SN490B | D74: 5.2*1 | E74: =鋼構 ->  | F74: 172 | G74: 1.06 | I74: =0.4*6*5.2 -> 12.48 | K74: =+I74*E74 -> 
B75: 底板 PL-25 | C75: PL-SN490B | D75: 0.4*0.4*1 | E75: =鋼構 ->  | F75: =25*7.85 -> 196.25 | G75: 1.06
B76: M-24 預埋螺栓 L=600 | C76: M24 A.B | D76: 6*1 | E76: =鋼構 ->  | F76: 1 | G76: 1
B77: PL-15 | C77: PL-SN490B | D77: 0.1*0.29*2 | E77: =鋼構 ->  | F77: =15*7.85 -> 117.75 | G77: 1.06 | H77: =E77*F77*G77 -> 
B78: S-10T | C78: M-22 | D78: 4*2 | E78: =鋼構 ->  | F78: 1 | G78: 1
A79: 1F SC8 | B79: RH-300*300*10*15 | C79: RH-SN490B | D79: 5.2*12 | E79: =鋼構 ->  | F79: 172 | G79: 1.06 | I79: =0.3*6 -> 1.8 | K79: =+I79*E79 -> 
B80: 底板 PL-20 | C80: PL-SN490B | D80: 0.3*0.3*1 | E80: =鋼構 ->  | F80: =20*7.85 -> 157 | G80: 1.06
B81: M-24 預埋螺栓 L=600 | C81: M24 A.B | D81: 6*1 | E81: =鋼構 ->  | F81: 1 | G81: 1
B82: PL-15 | C82: PL-SN490B | D82: 0.1*0.29*2*12 | E82: =鋼構 ->  | F82: =15*7.85 -> 117.75 | G82: 1.06 | H82: =E82*F82*G82 -> 
B83: S-10T | C83: M-22 | D83: 4*2*12 | E83: =鋼構 ->  | F83: 1 | G83: 1
A84: 2F SG1a | B84: BH-800*350*15*35 | C84: BH-SN490B | D84: 7.7+3.65 | E84: =鋼構 ->  | F84: 279.7 | G84: 1 | I84: =0.8*2+0.3*3 -> 2.5 | K84: =+I84*E84 ->  | L84: =(0.35*2*35*7.85+0.73*15*7.85)*1.005 -> 279.6739125
B85: 接合板 PL-28*185*615 | C85: PL-SN490B | D85: 0.185*0.615*3 | E85: =鋼構 ->  | F85: =28*7.85 -> 219.8 | G85: 1.06
B86: FB PL-9*25*36 | C86: PL-SN490B | D86: 0.025*0.41*6 | E86: =鋼構 ->  | F86: =9*7.85 -> 70.65 | G86: 1.06
B87: S-10T | C87: M-24 | D87: 16*2*3 | E87: =鋼構 ->  | F87: 1 | G87: 1
B88: B1 剪力釘 | C88: 19∮*100 | D88: 2*(42+20) | E88: =鋼構 ->  | F88: 1 | G88: 1
A89: 2F SG1 | B89: BH-800*300*15*32 | C89: BH-SN490B | D89: 7.7*4+10.1*19+1.9*2 | E89: =鋼構 ->  | F89: 238.6 | G89: 1 | H89: =E89*F89*G89 ->  | I89: =0.8*2+0.3*3 -> 2.5 | K89: =+I89*E89 ->  | L89: =(0.3*2*32*7.85+0.736*15*7.85)*1.005 -> 238.57092
B90: 接合板 PL-26*185*615 | C90: PL-SN490B | D90: 0.185*0.615*(4*2+19*2+2*1) | E90: =鋼構 ->  | F90: =26*7.85 -> 204.1 | G90: 1.06
B91: FB PL-9*25*36 | C91: PL-SN490B | D91: 0.025*0.36*2*(4*2+19*2+2*1) | E91: =鋼構 ->  | F91: =9*7.85 -> 70.65 | G91: 1.06
B92: S-10T | C92: M-24 | D92: 16*2*(4*2+19*2+2*1) | E92: =鋼構 ->  | F92: 1 | G92: 1
B93: B1 剪力釘 | C93: 19∮*100 | D93: 2*(42*4+55*19+11*2) | E93: =鋼構 ->  | F93: 1 | G93: 1
A94: 2F SG3 | B94: BH-800*300*14*28 | C94: BH-SN490B | D94: 8.3*23+3.5*2+1.5 | E94: =鋼構 ->  | F94: 214.7 | G94: 1 | H94: =E94*F94*G94 ->  | I94: =0.8*2+0.3*3 -> 2.5 | K94: =+I94*E94 ->  | L94: =(0.3*2*28*7.85+0.744*14*7.85)*1.005 -> 214.713828
B95: 接合板 PL-25*185*615 | C95: PL-SN490B | D95: 0.185*0.615*(23*2+3*1) | E95: =鋼構 ->  | F95: =25*7.85 -> 196.25 | G95: 1.06
B96: FB PL-9*25*36 | C96: PL-SN490B | D96: 0.025*0.36*2*(23*2+3*1) | E96: =鋼構 ->  | F96: =9*7.85 -> 70.65 | G96: 1.06
B97: S-10T | C97: M-24 | D97: 16*2*(23*2+3*1) | E97: =鋼構 ->  | F97: 1 | G97: 1
B98: B1 剪力釘 | C98: 19∮*100 | D98: 2*(45*23+19*2+8) | E98: =鋼構 ->  | F98: 1 | G98: 1
A99: 2F SG8 | B99: BH-800-300*200*10*20 | C99: BH-SN490B | D99: 5.15*2 | E99: =鋼構 ->  | F99: 123 | G99: 1 | H99: =E99*F99*G99 ->  | I99: =0.8*2+0.3*3 -> 2.5 | K99: =+I99*E99 ->  | L99: =(0.2*2*20*7.85+0.76*10*7.85)*1.005 -> 123.0723
B100: 接合板 PL-18*185*615 | C100: PL-SN490B | D100: 0.185*0.615*2 | E100: =鋼構 ->  | F100: =18*7.85 -> 141.3 | G100: 1.06
B101: FB PL-9*25*36 | C101: PL-SN490B | D101: 0.025*0.36*2*2 | E101: =鋼構 ->  | F101: =9*7.85 -> 70.65 | G101: 1.06
B102: S-10T | C102: M-24 | D102: 16*2*2 | E102: =鋼構 ->  | F102: 1 | G102: 1
B103: B1 剪力釘 | C103: 19∮*100 | D103: 2*28*2 | E103: =鋼構 ->  | F103: 1 | G103: 1
A104: 2F SJ1 | B104: RH-600*200*11*17 | C104: RH-A572 | D104: 8.7*48+8.1*2+10.5*2+5.85 | E104: =鋼構 ->  | F104: 103 | G104: 1 | H104: =E104*F104*G104 ->  | I104: =0.6*2+0.2*3 -> 1.8 | K104: =+I104*E104 -> 
A105: 接SG1 | B105: 接合板 PL-16 243*736 | C105: PL-SN490B | D105: 0.243*0.736*2*(48+2+2+1) | E105: =鋼構 ->  | F105: =16*7.85 -> 125.6 | G105: 1.06
A106: 外側補強 | B106: PL-16 143*736 | C106: PL-SN490B | D106: 0.143*0.736*36 | E106: =鋼構 ->  | F106: =16*7.85 -> 125.6 | G106: 1.06 | H106: =E106*F106*G106 -> 
B107: S-10T | C107: M-24 | D107: 6*2*(48+2+2+1) | E107: =鋼構 ->  | F107: 1 | G107: 1
B108: B1 剪力釘 | C108: 19∮*100 | D108: 2*(49*48+45*2+55*2+32) | E108: =鋼構 ->  | F108: 1 | G108: 1
A109: 2F SJ1* | B109: RH-600*200*11*17 | C109: RH-A572 | D109: 8.1*1 | E109: =鋼構 ->  | F109: 103 | G109: 1 | H109: =E109*F109*G109 ->  | I109: =0.6*2+0.2*3 -> 1.8 | K109: =+I109*E109 -> 
B110: 側封板 PL-12 | C110: PL-SN490B | D110: 0.566*8.1*2 | E110: =鋼構 ->  | F110: =12*7.85 -> 94.2 | G110: 1.06 | H110: =E110*F110*G110 -> 
A111: 接SG1 | B111: 接合板 PL-16 243*736 | C111: PL-SN490B | D111: 0.243*0.736*2 | E111: =鋼構 ->  | F111: =16*7.85 -> 125.6 | G111: 1.06
A112: 外側補強 | B112: PL-16 143*736 | C112: PL-SN490B | D112: 0.143*0.736 | E112: =鋼構 ->  | F112: =16*7.85 -> 125.6 | G112: 1.06
B113: S-10T | C113: M-24 | D113: 6*2 | E113: =鋼構 ->  | F113: 1 | G113: 1
B114: B1 剪力釘 | C114: 19∮*100 | D114: 46*1 | E114: =鋼構 ->  | F114: 1 | G114: 1
A115: 2F SJ2 | B115: RH-500*200*10*16 | C115: RH-A572 | D115: 1.9*2+2+6 | E115: =鋼構 ->  | F115: 88.2 | G115: 1 | H115: =E115*F115*G115 ->  | I115: =0.5*2+0.2*3 -> 1.6 | K115: =+I115*E115 -> 
A116: 接柱 | B116: 接合板 PL-16*170*360 | C116: PL-SN490B | D116: 0.17*0.36*3 | E116: =鋼構 ->  | F116: =16*7.85 -> 125.6 | G116: 1.06
A117: 接樑 | B117: 接合板 PL-14 | C117: PL-SN490B | D117: 0.4*0.4*2+0.5*0.1+0.744*0.243 | E117: =鋼構 ->  | F117: =14*7.85 -> 109.9 | G117: 1.06 | H117: =E117*F117*G117 -> 
B118: FB PL-9*25*26 | C118: PL-SN490B | D118: 0.025*0.26*2*3 | E118: =鋼構 ->  | F118: =9*7.85 -> 70.65 | G118: 1.06
B119: S-10T | C119: M-24 | D119: 10*3+5*2 | E119: =鋼構 ->  | F119: 1 | G119: 1
B120: B1 剪力釘 | C120: 19∮*100 | D120: 10*2+11+33 | E120: =鋼構 ->  | F120: 1 | G120: 1
A121: 2F SJ3 | B121: RH-496*199*9*14 | C121: RH-A572 | D121: 8.7*3+2.8+1.4*5+7.8+10.5*2+4+5.65+10.1 | E121: =鋼構 ->  | F121: 77.9 | G121: 1.06 | H121: =E121*F121*G121 ->  | I121: =0.5*2+0.2*3 -> 1.6 | K121: =+I121*E121 -> 
A122: 接樑,柱 | B122: 接合板 PL-14 | C122: PL-SN490B | D122: 0.736*0.243*15+0.468*0.195*7+0.43*0.17*2 | E122: =鋼構 ->  | F122: =14*7.85 -> 109.9 | G122: 1.06 | H122: =E122*F122*G122 -> 
B123: FB PL-9*25*26 | C123: PL-SN490B | D123: 0.025*0.26*4 | E123: =鋼構 ->  | F123: =9*7.85 -> 70.65 | G123: 1.06
B124: S-10T | C124: M-24 | D124: 4*2*13+12*2 | E124: =鋼構 ->  | F124: 1 | G124: 1
B125: B1 剪力釘 | C125: 19∮*100 | D125: 1*(49*3+15+8*5+42+59*2+22+31) | E125: =鋼構 ->  | F125: 1 | G125: 1
A126: 2F SJ4 | B126: RH-450*200*9*14 | C126: RH-A572 | D126: 2.1*2+3.3+3.2+2.8+3.15+3.35+4.55+6.4+2.7+8.7 | E126: =鋼構 ->  | F126: 74.9 | G126: 1.06 | I126: =0.45*2+0.2*3 -> 1.5 | K126: =+I126*E126 -> 
A127: 接樑,柱 | B127: 接合板 PL-14 | C127: PL-SN490B | D127: 0.736*0.243*10+0.566*0.195*2+0.495*0.195*5 | E127: =鋼構 ->  | F127: =14*7.85 -> 109.9 | G127: 1.06 | H127: =E127*F127*G127 -> 
B128: 接合板 PL-14 | C128: PL-SN490B | D128: 0.736*0.143*4+0.566*0.095*6 | E128: =鋼構 ->  | F128: =14*7.85 -> 109.9 | G128: 1.06 | H128: =E128*F128*G128 -> 
B129: FB PL-9*25*26 | C129: PL-SN490B | D129: 0.025*0.26*4 | E129: =鋼構 ->  | F129: =9*7.85 -> 70.65 | G129: 1.06
B130: S-10T | C130: M-20 | D130: 4*2*11 | E130: =鋼構 ->  | F130: 1 | G130: 1
B131: B1 剪力釘 | C131: 19∮*100 | D131: 2*(12*2+18+18+16+18+18+24+35+15+47) | E131: =鋼構 ->  | F131: 1 | G131: 1
A132: 2F SJ5 | B132: RH-350*175*7*11 | C132: RH-A36 | D132: 1.2+2.15+2.32+7.75+3.3+3.45*2+2.35+2.9*2 | E132: =鋼構 ->  | F132: 47.4 | G132: 1.06 | I132: =0.35*2+0.175*3 -> 1.225 | K132: =+I132*E132 -> 
A133: 接樑,柱 | B133: 接合板 PL-12 | C133: PL-A36 | D133: 0.17*0.29+0.736*0.243*4+0.566*0.195*9 | E133: =鋼構 ->  | F133: =12*7.85 -> 94.2 | G133: 1.06
B134: 接合板 PL-12 | C134: PL-A36 | D134: 0.566*0.095*8+0.736*0.143*2 | E134: =鋼構 ->  | F134: =12*7.85 -> 94.2 | G134: 1.06 | H134: =E134*F134*G134 -> 
B135: S-10T | C135: M-24 | D135: 8*1 | E135: =鋼構 ->  | F135: 1 | G135: 1
B136: S-10T | C136: M-20 | D136: 4*2*9 | E136: =鋼構 ->  | F136: 1 | G136: 1 | H136: =E136*F136*G136 -> 
B137: B1 剪力釘 | C137: 19∮*100 | D137: 1*(7+12+13+42+18+19*2+13+16*2) | E137: =鋼構 ->  | F137: 1 | G137: 1
A138: 2F SJ6 | B138: RH-250*125*6*9 | C138: RH-A36 | D138: 2.15+2.4+2.35 | E138: =鋼構 ->  | F138: 29 | G138: 1.06 | H138: =E138*F138*G138 ->  | I138: =0.25*2+0.125*3 -> 0.875 | K138: =+I138*E138 -> 
A139: 接樑 | B139: 接合板 PL-12 | C139: PL-A36 | D139: 0.736*0.243*2+0.736*0.143*1+0.566*0.195*3 | E139: =鋼構 ->  | F139: =12*7.85 -> 94.2 | G139: 1.06
B140: 接合板 PL-12 | C140: PL-A36 | D140: 0.339*0.184+0.339*0.084 | E140: =鋼構 ->  | F140: =12*7.85 -> 94.2 | G140: 1.06
B141: S-10T | C141: M-20 | D141: 2*2*3 | E141: =鋼構 ->  | F141: 1 | G141: 1
B142: B1 剪力釘 | C142: 19∮*100 | D142: 1*(12+13*2) | E142: =鋼構 ->  | F142: 1 | G142: 1
A143: 2F SJ7* | B143: RH-500~294*200*8*12 | C143: RH-A572 | D143: 4*3 | E143: =鋼構 ->  | F143: 67.6 | G143: 1.06 | H143: =E143*F143*G143 ->  | I143: =0.5*2+0.2*1 -> 1.2 | K143: =+I143*E143 ->  | L143: =0.2*2*12*7.85+0.476*8*7.85 -> 67.5728
A144: 接樑 | B144: 腹板 PL-12 | C144: PL-SN490B | D144: 0.476*4*2*3 | E144: =鋼構 ->  | F144: =12*7.85 -> 94.2 | G144: 1.06
B145: 接合板 PL-12 | C145: PL-SN490B | D145: 0.468*0.195*3+0.469*0.095*3+0.27*0.296*3 | E145: =鋼構 ->  | F145: =12*7.85 -> 94.2 | G145: 1.06
B146: S-10T | C146: M-20 | D146: 3*2*3 | E146: =鋼構 ->  | F146: 1 | G146: 1
A147: 2F SJ7 | B147: RH-294*200*8*12 | C147: RH-A572 | D147: 10.8*1 | E147: =鋼構 ->  | F147: 55.8 | G147: 1.06 | H147: =E147*F147*G147 ->  | I147: =0.294*2+0.2*3 -> 1.188 | K147: =+I147*E147 ->  | L147: =0.2*2*12*7.85+0.476*8*7.85 -> 67.5728
A148: 接樑 | B148: 腹板 PL-12 | C148: PL-SN490B | D148: 0.26*0.195*2+0.26*0.095*2 | E148: =鋼構 ->  | F148: =12*7.85 -> 94.2 | G148: 1.06
B149: S-10T | C149: M-20 | D149: 3*2 | E149: =鋼構 ->  | F149: 1 | G149: 1
A150: 2F 大樑側撐 | B150: L-75*75*9 | C150: L-A36 | D150: 1.3*54 | E150: =鋼構 ->  | F150: 9.96 | G150: 1.06 | H150: =E150*F150*G150 ->  | I150: =0.075*3 -> 0.225 | K150: =+I150*E150 -> 
B151: L-100-100*10 | C151: L-A36 | D151: 0.25*54 | E151: =鋼構 ->  | F151: 14.9 | G151: 1.06 | H151: =E151*F151*G151 ->  | I151: =0.1*3 -> 0.3 | K151: =+I151*E151 -> 
B152: PL-12 | C152: PL-A36 | D152: 0.143*0.143*54 | E152: =鋼構 ->  | F152: =12*7.85 -> 94.2 | G152: 1.06 | H152: =E152*F152*G152 -> 
B153: S-10T | C153: M-16 | D153: (2+4)*54 | E153: =鋼構 ->  | F153: 1 | G153: 1
A154: 2MF SJ4 A梯 | B154: RH-450*200*9*14 | C154: RH-A572 | D154: 3.5+3.1*2+2.8 | E154: =鋼構 ->  | F154: 74.9 | G154: 1.06 | I154: =0.45*2+0.2*3 -> 1.5 | K154: =+I154*E154 -> 
A155: 接樑,柱 | B155: 接合板 PL-14 | C155: PL-SN490B | D155: 0.285*0.1*6 | E155: =鋼構 ->  | F155: =14*7.85 -> 109.9 | G155: 1.06
B156: S-10T | C156: M-20 | D156: 4*2*3 | E156: =鋼構 ->  | F156: 1 | G156: 1
B157: B1 剪力釘 | C157: 19∮*100 | D157: 2*(19+17+16) | E157: =鋼構 ->  | F157: 1 | G157: 1
B158: 柱內鋼板 PL-25 | C158: PL-SN490B | D158: 0.616*0.616*2 | E158: =鋼構 ->  | F158: =25*7.85 -> 196.25 | G158: 1.06
B159: SC7 補強 PL-20 | C159: PL-SN490B | D159: 0.4*0.4*2 | E159: =鋼構 ->  | F159: =20*7.85 -> 157 | G159: 1.06
B160: SC8 補強 PL-20 | C160: PL-SN490B | D160: 0.3*0.3*2 | E160: =鋼構 ->  | F160: =20*7.85 -> 157 | G160: 1.06
A161: 2F SJ2 | B161: RH-500*200*10*16 | C161: RH-A572 | D161: 1.9*1 | E161: =鋼構 ->  | F161: 88.2 | G161: 1 | H161: =E161*F161*G161 ->  | I161: =0.5*2+0.2*3 -> 1.6 | K161: =+I161*E161 -> 
A162: 接柱 | B162: 接合板 PL-16*170*360 | C162: PL-SN490B | D162: 0.17*0.36*1 | E162: =鋼構 ->  | F162: =16*7.85 -> 125.6 | G162: 1.06 | H162: =E162*F162*G162 -> 
A163: 2MF SJ1 B梯 | B163: RH-600*200*11*17 | C163: RH-A572 | D163: 3.5*2 | E163: =鋼構 ->  | F163: 103 | G163: 1 | I163: =0.6*2+0.2*3 -> 1.8 | K163: =+I163*E163 -> 
B164: 接合板 PL-16 | C164: PL-SN490B | D164: 0.1*0.465*4 | E164: =鋼構 ->  | F164: =16*7.85 -> 125.6 | G164: 1.06
B165: 柱內鋼板 PL-25 | C165: PL-SN490B | D165: 0.616*0.616*2 | E165: =鋼構 ->  | F165: =25*7.85 -> 196.25 | G165: 1.06
B166: SC8 補強 PL-20 | C166: PL-SN490B | D166: 0.3*0.3*2*3 | E166: =鋼構 ->  | F166: =20*7.85 -> 157 | G166: 1.06
B167: S-10T | C167: M-24 | D167: 6*2*2 | E167: =鋼構 ->  | F167: 1 | G167: 1
B168: B1 剪力釘 | C168: 19∮*100 | D168: 2*20*2 | E168: =鋼構 ->  | F168: 1 | G168: 1
A169: 2MF SJ4 | B169: RH-450*200*9*14 | C169: RH-A572 | D169: 3+2.6 | E169: =鋼構 ->  | F169: 74.9 | G169: 1.06 | I169: =0.45*2+0.2*3 -> 1.5 | K169: =+I169*E169 -> 
A170: 接樑,柱 | B170: 接合板 PL-14 | C170: PL-SN490B | D170: 0.285*0.1*2*2 | E170: =鋼構 ->  | F170: =14*7.85 -> 109.9 | G170: 1.06
B171: 柱內鋼板 PL-25 | C171: PL-SN490B | D171: 0.616*0.616*2 | E171: =鋼構 ->  | F171: =25*7.85 -> 196.25 | G171: 1.06 | H171: =E171*F171*G171 -> 
B172: S-10T | C172: M-20 | D172: 4*2*2 | E172: =鋼構 ->  | F172: 1 | G172: 1
B173: B1 剪力釘 | C173: 19∮*100 | D173: 2*(16+15) | E173: =鋼構 ->  | F173: 1 | G173: 1
A174: 2MF SJ5 | B174: RH-350*175*7*11 | C174: RH-A36 | D174: 3.3*1 | E174: =鋼構 ->  | F174: 47.4 | G174: 1.06 | I174: =0.35*2+0.175*3 -> 1.225 | K174: =+I174*E174 -> 
A175: 接樑,柱 | B175: 接合板 PL-12 | C175: PL-A36 | D175: 0.566*0.295*2 | E175: =鋼構 ->  | F175: =12*7.85 -> 94.2 | G175: 1.06
B176: S-10T | C176: M-20 | D176: 4*2 | E176: =鋼構 ->  | F176: 1 | G176: 1
B177: B1 剪力釘 | C177: 19∮*100 | D177: 18*1 | E177: =鋼構 ->  | F177: 1 | G177: 1
A178: 2MF SJ4 C梯 | B178: RH-450*200*9*14 | C178: RH-A572 | D178: 2.65*2.8 | E178: =鋼構 ->  | F178: 74.9 | G178: 1.06 | I178: =0.45*2+0.2*3 -> 1.5 | K178: =+I178*E178 -> 
A179: 接樑,柱 | B179: 接合板 PL-14 | C179: PL-SN490B | D179: 0.285*0.1*2 | E179: =鋼構 ->  | F179: =14*7.85 -> 109.9 | G179: 1.06
B180: S-10T | C180: M-20 | D180: 4*2*2 | E180: =鋼構 ->  | F180: 1 | G180: 1
B181: B1 剪力釘 | C181: 19∮*100 | D181: 2*(15+16) | E181: =鋼構 ->  | F181: 1 | G181: 1
B182: 柱內鋼板 PL-25 | C182: PL-SN490B | D182: 0.616*0.616*2 | E182: =鋼構 ->  | F182: =25*7.85 -> 196.25 | G182: 1.06
B183: SC7 補強 PL-20 | C183: PL-SN490B | D183: 0.4*0.4*2 | E183: =鋼構 ->  | F183: =20*7.85 -> 157 | G183: 1.06
B184: SC8 補強 PL-20 | C184: PL-SN490B | D184: 0.3*0.3*2 | E184: =鋼構 ->  | F184: =20*7.85 -> 157 | G184: 1.06
A185: 2F SC7 | B185: RH-400*400*13*21 | C185: RH-SN490B | D185: 5.8+6.1 | E185: =鋼構 ->  | F185: 172 | G185: 1.06 | I185: =0.4*6 -> 2.4 | K185: =+I185*E185 -> 
B186: PL-15 | C186: PL-SN490B | D186: 0.1*0.29*2*2 | E186: =鋼構 ->  | F186: =15*7.85 -> 117.75 | G186: 1.06
B187: S-10T | C187: M-22 | D187: 4*2*2 | E187: =鋼構 ->  | F187: 1 | G187: 1
A188: 2F SC8 | B188: RH-300*300*10*15 | C188: RH-SN490B | D188: 5.8*15+6*1 | E188: =鋼構 ->  | F188: 172 | G188: 1.06 | I188: =0.3*6 -> 1.8 | K188: =+I188*E188 -> 
B189: 底板 PL-20 | C189: PL-SN490B | D189: 0.3*0.3*1 | E189: =鋼構 ->  | F189: =20*7.85 -> 157 | G189: 1.06
B190: M-24 預埋螺栓 L=600 | C190: M24 A.B | D190: 6*1 | E190: =鋼構 ->  | F190: 1 | G190: 1
B191: PL-15 | C191: PL-SN490B | D191: 0.1*0.29*2*16 | E191: =鋼構 ->  | F191: =15*7.85 -> 117.75 | G191: 1.06
B192: S-10T | C192: M-22 | D192: 4*2*16 | E192: =鋼構 ->  | F192: 1 | G192: 1
A194: 2F+120 SC1+SC2 +815~+1925 | B194: 口-700*700*42 | C194: 口-SN490YC | D194: 6.6*16 | E194: =鋼構 ->  | F194: 877 | G194: 1.06 | H194: =E194*F194*G194 ->  | I194: 2.8 | K194: =+I194*E194 ->  | L194: =(0.7*2+0.616*2)*42*7.85*1+9.42 -> 877.1904 | M194: =0.012*0.025*7850*4 -> 9.42
B195: 口-700*700*38 | C195: 口-SN490B | D195: 4.5*16 | E195: =鋼構 ->  | F195: 799.3 | G195: 1.06 | H195: =E195*F195*G195 ->  | I195: 2.8 | K195: =+I195*E195 ->  | L195: =(0.7*2+0.624*2)*38*7.85*1+9.42 -> 799.3184 | M195: =0.012*0.025*7850*4 -> 9.42
B196: 變斷面加勁PL-16 | C196: PL-SN490B | D196: 0.616*0.616*16 | E196: =鋼構 ->  | F196: =16*7.85 -> 125.6 | G196: 1.06
B197: 背襯板 PL-12*35 | C197: PL-SN490B | D197: 0.035*0.624*4*16 | E197: =鋼構 ->  | F197: =12*7.85 -> 94.2 | G197: 1.06
A198: 2F+120 SC1 +815~+1925 | B198: 口-700*700*42 | C198: 口-SN490YC | D198: 11.1*13 | E198: =鋼構 ->  | F198: 877 | G198: 1.06 | I198: 2.8 | K198: =+I198*E198 ->  | L198: =(0.7*2+0.616*2)*42*7.85*1+9.42 -> 877.1904 | M198: =0.012*0.025*7850*4 -> 9.42
B199: 柱續接FB 16*25 | C199: PL-SN490B | D199: 0.616*4*0.025*29 | E199: =鋼構 ->  | F199: =16*7.85 -> 125.6 | G199: 1.06 | H199: =E199*F199*G199 -> 
B200: 柱續接FB 9*25 | C200: PL-SN490B | D200: 0.616*4*0.025*29 | E200: =鋼構 ->  | F200: =9*7.85 -> 70.65 | G200: 1.06
A201: 鋼柱現場對接 | B201: PL-18 | C201: PL-SN490B | D201: 0.125*0.24*429 | E201: =鋼構 ->  | F201: =18*7.85 -> 141.3 | G201: 1.06
B202: PL-12 | C202: PL-SN490B | D202: 0.08*0.63*4*29 | E202: =鋼構 ->  | F202: =12*7.85 -> 94.2 | G202: 1.06
... 886 more rows

Sheet 門窗
B2: 業 主: 樂迦再生科技股份有限公司
B3: 工程名稱:竹北生醫園區廠房新建工程
B4: 門窗工程 | C4: B2F | D4: B1F | E4: 1F | F4: 2F | G4: 3F | H4: 4F | I4: 5F | J4: 6F | K4: 7F | L4: 8F | M4: 9F | N4: 10F | O4: R1 | P4: R2 | Q4: 合計 | S4: 寬 | T4: 高 | U4: 扣牆 | V4: 扣粉刷 | W4: 框填縫 | X4: 玻璃 | Y4: 扣粉刷 | Z4: 填縫
A5: 1 | B5: D1 200*235 不銹鋼烤漆安全門 F60A (遮煙) | E5: 1 | Q5: =SUM(C5:P5) -> 1 | S5: 200 | T5: 235 | U5: =+(S5/100)*(T5/100) -> 4.7 | V5: =+(S5/100-0.1)*(T5/100-0.05) -> 4.37 | W5: =+(S5/100)+(T5/100)*2 -> 6.7 | Y5: =+AA5*AB5/10000 -> 2.1 | Z5: =(+AA5+AB5*2)/100 -> 5.2 | AA5: 100 | AB5: 210
A6: =1+A5 -> 2 | B6: D2 120*220 不銹鋼烤漆安全門 F60A (遮煙) | C6: 2 | D6: 2 | E6: 3 | F6: 3 | G6: 3 | H6: 3 | I6: 3 | J6: 3 | K6: 3 | L6: 3 | M6: 3 | N6: 2 | O6: 2 | P6: 1 | Q6: 36 | S6: 120 | T6: 220 | U6: =+(S6/100)*(T6/100) -> 2.64 | V6: =+(S6/100-0.1)*(T6/100-0.05) -> 2.365 | W6: =+(S6/100)+(T6/100)*2 -> 5.6 | Y6: =+AA6*AB6/10000 -> 3.99 | Z6: =(+AA6+AB6*2)/100 -> 6.1 | AA6: 190 | AB6: 210
A7: =1+A6 -> 3 | B7: D3 120*220 不銹鋼烤漆安全門 F60A (遮煙) | N7: 1 | Q7: 1 | S7: 120 | T7: 220 | U7: 2.64 | V7: 2.365 | W7: 5.6
A8: 4 | B8: D4 250*250 不銹鋼烤漆防火門 F60A (遮煙) | E8: 1 | Q8: 1 | S8: 250 | T8: 250 | U8: 6.25 | V8: 5.88 | W8: 7.5 | Y8: 2.73 | Z8: 5.5 | AA8: 130 | AB8: 210
A9: 5 | B9: D5 240*220 不銹鋼烤漆防火門 F60A (遮煙) | F9: 2 | G9: 2 | H9: 1 | I9: 2 | J9: 1 | K9: 2 | L9: 1 | M9: 2 | N9: 1 | Q9: 14 | S9: 240 | T9: 220 | U9: 5.28 | V9: 4.945 | W9: 6.8 | Y9: 2.73 | Z9: 5.5 | AA9: 130 | AB9: 210
A10: 6 | B10: D6 240*220 不銹鋼烤漆防火門 F60A (遮煙) | C10: 1 | E10: 1 | Q10: 2 | S10: 240 | T10: 220 | U10: 5.28 | V10: 4.945 | W10: 6.8 | Y10: 2.73 | Z10: 5.5 | AA10: 130 | AB10: 210
A11: 7 | B11: D7 200*235 不銹鋼烤漆防火門 F60A (遮煙) | E11: 1 | Q11: 1 | S11: 200 | T11: 235 | U11: 4.7 | V11: 4.37 | W11: 6.7 | Y11: 2.1 | Z11: 5.2 | AA11: 100 | AB11: 210
A12: 8 | B12: D8 200*220 不銹鋼烤漆防火門 F60A (遮煙) | D12: 1 | F12: 1 | G12: 1 | H12: 1 | I12: 1 | J12: 1 | K12: 1 | L12: 1 | M12: 1 | N12: 2 | Q12: 11 | S12: 200 | T12: 220 | U12: 4.4 | V12: 4.085 | W12: 6.4 | Y12: 3.99 | Z12: 6.1 | AA12: 190 | AB12: 210
A13: 9 | B13: D9 120*220 不銹鋼烤漆防火門 F60A (遮煙) | C13: 2 | D13: 1 | Q13: 3 | S13: 120 | T13: 220 | U13: 2.64 | V13: 2.365 | W13: 5.6
A14: 10 | B14: D10 100*220 不銹鋼烤漆防火門 F60A (遮煙) | C14: 1 | D14: 1 | E14: 1 | F14: 1 | G14: 1 | H14: 1 | I14: 1 | J14: 1 | K14: 1 | L14: 1 | M14: 1 | N14: 1 | Q14: 12 | S14: 100 | T14: 220 | U14: 2.2 | V14: 1.935 | W14: 5.4 | Y14: 2.36 | Z14: 5.72 | AA14: 100 | AB14: 236
A15: 11 | B15: D11 160*210 不銹鋼烤漆防火門 F60A (遮煙) | C15: 4 | D15: 2 | E15: 2 | F15: 4 | G15: 4 | H15: 4 | I15: 4 | J15: 4 | K15: 4 | L15: 4 | M15: 4 | N15: 4 | O15: 1 | Q15: 45 | S15: 160 | T15: 210 | U15: 3.36 | V15: 3.075 | W15: 5.8 | Y15: 2.1 | Z15: 5.2 | AA15: 100 | AB15: 210
A16: 12 | B16: D12 160*200 不銹鋼烤漆防火門 F60A (遮煙) | D16: 2 | Q16: 2 | S16: 160 | T16: 200 | U16: 3.2 | V16: 2.925 | W16: 5.6 | Y16: 2.1 | Z16: 5.2 | AA16: 100 | AB16: 210
A17: 13 | B17: D13 90*210 不銹鋼烤漆防火門 F60A (遮煙) | C17: 2 | E17: 2 | F17: 2 | G17: 2 | I17: 2 | K17: 2 | M17: 2 | N17: 2 | Q17: 16 | S17: 90 | T17: 210 | U17: 1.89 | V17: 1.64 | W17: 5.1 | Y17: 2.1 | Z17: 5.2 | AA17: 100 | AB17: 210
A18: 14 | B18: D14 300*300 不銹鋼烤漆防火門 F60A | E18: 1 | Q18: 1 | S18: 300 | T18: 300 | U18: 9 | V18: 8.555 | W18: 9
A19: 15 | B19: D15 250*250 不銹鋼烤漆防火門 F60A | C19: 2 | Q19: 2 | S19: 250 | T19: 250 | U19: 6.25 | V19: 5.88 | W19: 7.5 | Y19: 16.12 | Z19: 11.4 | AA19: 620 | AB19: 260
A20: 16 | B20: D16 240*220 不銹鋼烤漆防火門 F60A | C20: 1 | Q20: 1 | S20: 240 | T20: 220 | U20: 5.28 | V20: 4.945 | W20: 6.8 | Y20: 12.896 | Z20: 10.16 | AA20: 496 | AB20: 260
A21: 17 | B21: D17 200*220 不銹鋼烤漆防火門 F60A | D21: 3 | O21: 1 | Q21: 4 | S21: 200 | T21: 220 | U21: 4.4 | V21: 4.085 | W21: 6.4 | Y21: 14.638 | Z21: 10.83 | AA21: 563 | AB21: 260
A22: 18 | B22: D18 120*220 不銹鋼烤漆防火門 F60A | C22: 2 | E22: 1 | N22: 2 | O22: 1 | Q22: 6 | S22: 120 | T22: 220 | U22: 2.64 | V22: 2.365 | W22: 5.6 | Y22: 20.54 | Z22: 13.1 | AA22: 790 | AB22: 260
A23: 19 | B23: D19 100*220 不銹鋼烤漆防火門 F60A | D23: 1 | E23: 1 | Q23: 2 | S23: 100 | T23: 220 | U23: 2.2 | V23: 1.935 | W23: 5.4
A24: 20 | B24: D20 200*220 不銹鋼烤漆門 | O24: 1 | Q24: 1 | S24: 200 | T24: 220 | U24: 4.4 | V24: 4.085 | W24: 6.4
A25: 21 | B25: D21 120*220 不銹鋼烤漆門 | E25: 1 | Q25: 1 | S25: 120 | T25: 220 | U25: 2.64 | V25: 2.365 | W25: 5.6
A26: 22 | B26: D22 120*220 不銹鋼烤漆門 | O26: 2 | Q26: 2 | S26: 120 | T26: 220 | U26: 2.64 | V26: 2.365 | W26: 5.6
A27: 23 | B27: D23 100*220 鋼製烤漆門 含視窗 | E27: 2 | Q27: 2 | S27: 100 | T27: 220 | U27: 2.2 | V27: 1.935 | W27: 5.4
A28: 24 | B28: D24 90*220 鋼製烤漆門 含視窗 | E28: 3 | F28: 3 | G28: 3 | H28: 2 | I28: 3 | J28: 3 | K28: 2 | L28: 3 | M28: 3 | N28: 2 | Q28: 27 | S28: 90 | T28: 220 | U28: 1.98 | V28: 1.72 | W28: 5.3
A29: 25 | B29: D25 80*210 鋼製烤漆門 含百葉 | E29: 1 | Q29: 1 | S29: 80 | T29: 210 | U29: 1.68 | V29: 1.435 | W29: 5
A30: 26 | B30: D26 200*205 不銹鋼烤漆門 台電規格橫拉門 | D30: 1 | Q30: 1 | S30: 200 | T30: 205 | U30: 4.1 | V30: 3.8 | W30: 6.1
A31: 27 | B31: D27 110*210 SMC 無障礙拉門 | E31: 1 | H31: 1 | K31: 1 | N31: 1 | Q31: 4 | S31: 110 | T31: 210 | U31: 2.31 | V31: 2.05 | W31: 5.3
A32: 28 | B32: D28 120*120 不銹鋼防火維修門 F60B | C32: 1 | D32: 1 | E32: 1 | F32: 1 | G32: 1 | H32: 1 | I32: 1 | J32: 1 | K32: 1 | L32: 1 | M32: 1 | N32: 1 | O32: 1 | Q32: 13 | S32: 120 | T32: 120 | U32: 1.44 | V32: 1.265 | W32: 3.6
A33: 29 | B33: D29 80*120 不銹鋼防火維修門 F60B | C33: 1 | D33: 1 | E33: 1 | F33: 1 | G33: 1 | H33: 1 | I33: 1 | J33: 1 | K33: 1 | L33: 1 | M33: 1 | N33: 1 | O33: 1 | Q33: 13 | S33: 80 | T33: 120 | U33: 0.96 | V33: 0.805 | W33: 3.2
A34: 30 | B34: SD1 700*322 不銹鋼電動捲門 | D34: 1 | Q34: 1 | S34: 700 | T34: 322 | U34: 22.54 | V34: 21.873 | W34: 13.44
A35: 31 | B35: SD2 310*445 不銹鋼電動捲門 | E35: 2 | Q35: 2 | S35: 310 | T35: 445 | U35: 13.795 | V35: 13.2 | W35: 12
A36: 32 | B36: SD3 350*400 不銹鋼電動捲門 | F36: 1 | Q36: 1 | S36: 350 | T36: 400 | U36: 14 | V36: 13.43 | W36: 11.5
A37: 33 | B37: SD4 350*375 不銹鋼電動捲門 | G37: 1 | H37: 1 | I37: 1 | J37: 1 | K37: 1 | L37: 1 | M37: 1 | N37: 1 | Q37: =SUM(C37:P37) -> 8 | S37: 350 | T37: 375 | U37: 13.125 | V37: 12.58 | W37: 11
A38: 34 | B38: SD5 500*280 不銹鋼電動防火捲門 60A | C38: 1 | Q38: 1 | S38: 500 | T38: 280 | U38: 14 | V38: 13.475 | W38: 10.6
A39: 35 | B39: SD6 181*280 遮煙捲簾 | E39: 2 | F39: 2 | G39: 2 | H39: 2 | I39: 2 | J39: 2 | K39: 2 | L39: 2 | M39: 2 | Q39: 18 | S39: 181 | T39: 280 | U39: 5.068 | V39: 4.7025 | W39: 7.41
A40: 36 | B40: L1 鍍鋅鋼板防火百葉閘門 65*65 | D40: 1 | Q40: 1 | S40: 65 | T40: 65 | U40: =+(S40/100)*(T40/100) -> 0.4225 | V40: =+(S40/100-0.1)*(T40/100-0.1) -> 0.3025 | W40: =+(S40/100)*2+(T40/100)*2 -> 2.6
A41: 37 | B41: L1a 鍍鋅鋼板防火百葉閘門 65*65 | D41: 1 | Q41: 1 | S41: 65 | T41: 65 | U41: =+(S41/100)*(T41/100) -> 0.4225 | V41: =+(S41/100-0.1)*(T41/100-0.1) -> 0.3025 | W41: =+(S41/100)*2+(T41/100)*2 -> 2.6
A42: 38 | B42: L2 284*156 防颱型鋁百葉 | E42: 1 | Q42: 1 | S42: 284 | T42: 156 | U42: 4.4304 | V42: 4.0004 | W42: 8.8
A43: 39 | B43: L3 134*156 防颱型鋁百葉 | E43: 4 | Q43: 4 | S43: 134 | T43: 156 | U43: 2.0904 | V43: 1.8104 | W43: 5.8
A44: 40 | B44: L4 140*200 防颱型鋁百葉 | E44: 1 | Q44: 1 | S44: 140 | T44: 200 | U44: 2.8 | V44: 2.47 | W44: 6.8
A45: 41 | B45: L5 250*100 防颱型鋁百葉 | E45: 1 | Q45: 1 | S45: 250 | T45: 100 | U45: 2.5 | V45: 2.16 | W45: 7
A46: 42 | B46: L6 1100*100 防颱型鋁百葉+鋁窗 | H46: 1 | J46: 1 | L46: 1 | Q46: 3 | S46: 1100 | T46: 100 | U46: 11 | V46: 9.81 | W46: 24
A47: 43 | B47: L7 85*150 防颱型鋁百葉 | N47: 2 | Q47: 2 | S47: 85 | T47: 150 | U47: 1.275 | V47: 1.05 | W47: 4.7
A48: 44 | B48: L8 100*100 可關閉防水型鋁百葉 | O48: 1 | Q48: 1 | S48: 100 | T48: 100 | U48: 1 | V48: 0.81 | W48: 4
A49: 45 | B49: L8a 100*100 可關閉防水型鋁百葉 | O49: 1 | P49: 1 | Q49: 2 | S49: 100 | T49: 100 | U49: 1 | V49: 0.81 | W49: 4
A50: 46 | B50: L9 60*60 防颱型鋁百葉 | O50: 1 | Q50: 1 | S50: 60 | T50: 60 | U50: 0.36 | V50: 0.25 | W50: 2.4
A51: 47 | B51: L9a 60*60 防颱型鋁百葉 | P51: 1 | Q51: 1 | S51: 60 | T51: 60 | U51: 0.36 | V51: 0.25 | W51: 2.4
A52: 48 | B52: L10 130*55 防颱型鋁百葉 | P52: 1 | Q52: 1 | S52: 130 | T52: 55 | U52: 0.715 | V52: 0.54 | W52: 3.7
A53: 49 | B53: W1 1100*200 鋁窗 (附摺疊紗窗) | N53: 1 | Q53: 1 | S53: 1100 | T53: 200 | U53: 22 | V53: 20.71 | W53: 26
A54: 50 | B54: W2 1100*100 鋁窗 (附摺疊紗窗) | F54: 1 | G54: 1 | I54: 1 | K54: 1 | M54: 1 | Q54: 5 | S54: 1100 | T54: 100 | U54: 11 | V54: 9.81 | W54: 24
A55: 51 | B55: W3 300*200 鋁窗 (附摺疊紗窗) | O55: 1 | Q55: 1 | S55: 300 | T55: 200 | U55: 6 | V55: 5.51 | W55: 10
A56: 52 | B56: W4 180*100 鋁窗 (附摺疊紗窗) | O56: 1 | Q56: 1 | S56: 180 | T56: 100 | U56: 1.8 | V56: 1.53 | W56: 5.6
A57: 53 | B57: W4a 180*100 鋁窗 (附摺疊紗窗) | P57: 1 | Q57: 1 | S57: 180 | T57: 100 | U57: 1.8 | V57: 1.53 | W57: 5.6
A58: 54 | B58: W5 180*100 鋁窗+防颱型百葉 (附摺疊紗窗) | P58: 1 | Q58: 1 | S58: 180 | T58: 100 | U58: 1.8 | V58: 1.53 | W58: 5.6
A59: 55 | B59: W6 100*100 鋁窗 (附摺疊紗窗) | E59: 2 | Q59: 2 | S59: 100 | T59: 100 | U59: 1 | V59: 0.81 | W59: 4
A60: 56 | B60: W6a 100*100 鋁窗 (附摺疊紗窗) | F60: 2 | G60: 2 | H60: 2 | I60: 2 | J60: 2 | K60: 2 | L60: 2 | M60: 2 | N60: 2 | Q60: 18 | S60: 100 | T60: 100 | U60: 1 | V60: 0.81 | W60: 4
A61: 57 | B61: W7 100*50 鋁窗 (附摺疊紗窗) | E61: 1 | P61: 3 | Q61: 4 | S61: 100 | T61: 50 | U61: 0.5 | V61: 0.36 | W61: 3
A62: 58 | B62: W8 840*245 鋁窗+鋁門 (附紗窗,紗門) | E62: 1 | Q62: 1 | S62: 840 | T62: 245 | U62: 20.58 | V62: =1.4*7.4+1*2.4 -> 12.76 | W62: 21.7
A63: 59 | B63: W9 100*103 鋁窗 (附紗窗) | E63: 1 | Q63: 1 | S63: 100 | T63: 103 | U63: 1.03 | V63: 0.837 | W63: 4.06
A64: 60 | B64: CW1 1214*4845 玻璃帷幕牆 含飾板 | E64: 1 | Q64: 1 | S64: 1214 | T64: 4845
A65: 61 | B65: CW2 3980.5*1185 玻璃帷幕牆 | E65: 1 | Q65: 1 | S65: 3980.5 | T65: 1185
A66: 62 | B66: CW3 219.5*500 玻璃帷幕牆 | E66: 1 | Q66: 1 | S66: 219.5 | T66: 500 | U66: =+(S66/100)*(T66/100) -> 10.975 | V66: =+(S66/100-0.1)*(T66/100-0.1) -> 10.2655 | W66: =+(S66/100)*2+(T66/100)*2 -> 14.39
A67: 63 | B67: CW4 219.5*500 玻璃帷幕牆 | F67: 1 | Q67: 1 | S67: 219.5 | T67: 500 | U67: 10.975 | V67: 10.2655 | W67: 14.39
A68: 64 | B68: CW5 1498*400 玻璃帷幕牆 風除室 | E68: 1 | Q68: 1 | S68: 1498 | T68: 400
A69: 65 | B69: CW6 979*370 玻璃帷幕牆 | G69: 1 | Q69: =SUM(C69:P69) -> 1 | S69: 979 | T69: 370 | U69: =+(S69/100)*(T69/100) -> 36.223 | V69: =+(S69/100-0.1)*(T69/100-0.1) -> 34.884 | W69: =+(S69/100)*2+(T69/100)*2 -> 26.98
A70: 66 | B70: CW7 994*345 玻璃帷幕牆 | G70: 2 | Q70: 2 | S70: 994 | T70: 345 | U70: 34.293 | V70: 32.964 | W70: 26.78
A71: =1+A70 -> 67 | B71: CW8 898*345 玻璃帷幕牆 | G71: 1 | Q71: 1 | S71: 898 | T71: 345 | U71: 30.981 | V71: 29.748 | W71: 24.86
A72: 68 | B72: CW9 979*200 玻璃帷幕牆 | H72: 1 | I72: 1 | J72: 1 | K72: 1 | L72: 1 | M72: 1 | Q72: 6 | S72: 979 | T72: 200 | U72: =+(S72/100)*(T72/100) -> 19.58 | V72: =+(S72/100-0.1)*(T72/100-0.1) -> 18.411 | W72: =+(S72/100)*2+(T72/100)*2 -> 23.58
A73: 69 | B73: CW10 968*305 玻璃帷幕牆 | N73: 1 | Q73: 1 | S73: 968 | T73: 305 | U73: =+(S73/100)*(T73/100) -> 29.524 | V73: =+(S73/100-0.1)*(T73/100-0.1) -> 28.261 | W73: =+(S73/100)*2+(T73/100)*2 -> 25.46
A74: 70 | B74: CW11 980*305 玻璃帷幕牆 | N74: 1 | Q74: 1 | S74: 980 | T74: 305 | U74: 29.89 | V74: 28.615 | W74: 25.7 | Y74: 39.9022 | Z74: 20.547 | AA74: 1534.7 | AB74: 260
A75: 71 | B75: CW12 1691*360 玻璃帷幕牆 | O75: 1 | Q75: 1 | S75: 1691 | T75: 360 | U75: 60.876 | V75: 58.835 | W75: 41.02 | Y75: 5.72 | Z75: 7.4 | AA75: 220 | AB75: 260
A76: 72 | B76: CW13 180*5010 玻璃帷幕牆 | F76: 1 | Q76: 1 | S76: 180 | T76: 5010 | Y76: 0
A77: 73 | B77: CW14 242*4110 玻璃帷幕牆 | F77: 1 | Q77: 1 | S77: 242 | T77: 4110
A78: 74 | B78: CW15 3424*434 玻璃帷幕牆 含鋁飾板 | H78: 1 | I78: 1 | J78: 1 | K78: 1 | L78: 1 | M78: 1 | Q78: 6 | S78: 3424 | T78: 434
A79: 75
A80: 76 | Q80: 0

Sheet 廁所雜項
B2: 業 主: 樂迦再生科技股份有限公司
B3: 工程名稱:竹北生醫園區廠房新建工程
A4: 圖號 | B4: 名稱 | T4: 7F | U4: 8F | V4: 9F | W4: 20F | X4: R1 | Y4: R2 | Z4: 合計 | AA4: 備註
B5: 廁所熱固性樹脂板搗擺隔間 含門扇五金 | Z5: =SUM(C5:S5) -> 0
B6: 小便斗隔板 | Z6: =SUM(C6:S6) -> 0
B7: 不銹鋼排水淺溝 | Z7: 0
B8: 無障礙面盆扶手 | Z8: 0
B9: 無障礙馬桶扶手(全) | Z9: 0
B10: 無障礙小便斗扶手(全) | Z10: 0
B11: 無障礙廁所明鏡 50*90 | Z11: 0
B12: 明鏡 | Z12: 0
B13: 人造石洗手台 | Z13: 0
B14: 人造大理石檯面 | Z14: 0
B15: P型人造大理石檯面 | Z15: 0
B16: 擦手紙架 | Z16: 0
B17: 乾手機 | Z17: 0
B18: 雙衣鈎 | Z18: 0
B19: 馬桶背板牆 H=90 | Z19: =SUM(C19:S19) -> 0
B20: 背板牆台面-石材,14cm | Z20: 0
Z21: 0
Z22: 0
Z23: 0
A45: 合計 | C45: =SUM(C5:C44) -> 0 | D45: =SUM(D5:D44) -> 0 | E45: =SUM(E5:E44) -> 0 | G45: =SUM(G5:G44) -> 0 | W45: =SUM(W5:W44) -> 0 | Y45: =SUM(Y5:Y44) -> 0 | Z45: =SUM(Z5:Z44) -> 0

Sheet 連續壁
B2: 工 程 數 量 計 算
B3: 業 主: 樂迦再生科技股份有限公司 | D3: 日 期:2022-0
B4: 工程名稱:竹北生醫園區廠房新建工程 | D4: 施工地點:
B5: 項 目 | C5: 數 量 計 算 | D5: 數量合計 | F5: 單位
